{"text_format":"1","workbook":"xlsx","n_sheets":8,"sheets":["Microbial template example","Section 1 A to J","Section 2 K to P","Section 3 Q to AK","Section 4 AL to AS","Excel Val. MIC","Excel Val. Chems","Excel Val. Crypto"],"not_rendered":{"charts":0,"images":2,"macros":1,"external_links":0,"defined_names":1,"comments":0,"pivot_tables":0},"unopened":[],"bounds":{"document_bytes":16777216,"sheet_cells":100000,"rows_first":2000,"rows_last":500,"rows_between":2000,"halvings":0,"cell_chars":16384,"cell_head_chars":4096},"cells_cut":0,"cells_raw":0,"read":"whole","date_system":"1900"}

{"sheet":"Microbial template example","index":0,"n_rows":21,"n_cols":45,"rows_kept":21,"cut":false,"hidden":false,"merged":[[0,0,1,4],[6,0,6,15],[6,37,6,44],[6,16,6,36],[0,7,0,15],[0,22,0,23],[1,22,1,23],[2,20,2,23],[4,2,4,3],[4,0,4,1]]}
["CMDP\nCompliance Monitoring Data Portal",null,null,null,null,null,null,"Microbiological Samples ",null,null,null,null,null,null,null,null,null,null,null,null,"Version:",null,"2.048"]
[null,null,null,null,null,null,null,null,null,null,null,null,null,null,null,null,null,null,null,null,"Last Updated",null,"2024-08-28"]
[null,null,null,null,null,null,null,null,null,null,null,null,null,null,null,null,null,null,null,null,"* - Indicates Required Field"]
[]
["Reporting Lab. ID *",null,"ORELAP LAB ID"]
[]
["Sample Information\n(* - Field required for record to exist)",null,null,null,null,null,null,null,null,null,null,null,null,null,null,null,"Results\n(* - Field required for record to exist)",null,null,null,null,null,null,null,null,null,null,null,null,null,null,null,null,null,null,null,null,"Field Results and Measurements (Optional)\n(* - Field required for record to exist)"]
["Sample ID*","Sample Received Date f","WS ID*","Facility ID*","Sampling Point ID*","Sampling Location","Collection Date*f","Collection Time (24H) f","Sample Type*f","Sample Volume (ML) f","Repeat Location","Original Sample ID +","Original Reporting Lab.ID","Original Collection Date","Comment","Sample Collector Name","Analyte*f\n[Code - Name]",null,"A/P*f",null,"Count","Units +","Volume (ML) +",null,"Interference",null,"Volume Assayed (ML) f",null,"Method f","Analysis Start Date f","Analysis Start Time f","Analysis Completed Date","Analysis Completed Time","Analyst Name","Analyzing Lab ID","Source Type","Comment","Parameter* \n[Code - Name]",null,"Result*","Result UOM*",null,"Method","Analyst Name","Comment"]
["X9340045-01","2023-12-26","OR4199999","DIST-A","A","SPACE 2","2023-12-25","15:35:00","Routine",100,null,null,null,null,null,null,"3100 - COLIFORM (TCR)",null,"Present",null,null,null,null,null,null,null,100,null,"9223B-COLILERT-18","2023-12-26","16:29:00",null,null,null,null,null,null,"1013 - Free Chlorine Residual",null,"0.5","mg/L"]
[null,null,null,null,null,null,null,null,null,null,null,null,null,null,null,null,"3014 - E. COLI",null,"Absent",null,null,null,null,null,null,null,100,null,"9223B-COLILERT-18","2023-12-26","16:29:00"]
["X9352021-01","2023-12-28","OR4199999","DIST-A","A","CLASSROOM 3 ","2023-12-28","11:05:00","Repeat",100,null,"X9340045-01","OR100029","2023-12-25",null,null,"3100 - COLIFORM (TCR)",null,"Present",null,null,null,null,null,null,null,100,null,"9223B-COLILERT","2023-12-28","15:20:00",null,null,null,null,null,null,"1013 - Free Chlorine Residual",null,"0.7","mg/L"]
[null,null,null,null,null,null,null,null,null,null,null,null,null,null,null,null,"3014 - E. COLI",null,"Absent",null,null,null,null,null,null,null,100,null,"9223B-COLILERT","2023-12-28","15:20:00"]
["X9352021-02","2023-12-28","OR4199999","SRC-AA","1","WELL 1","2023-12-28","11:15:00","Triggered",100,null,"X9340045-01","OR100029","2023-12-25",null,null,"3100 - COLIFORM (TCR)",null,"Present",null,null,null,null,null,null,null,100,null,"9223B-COLILERT","2023-12-28","15:20:00"]
[null,null,null,null,null,null,null,null,null,null,null,null,null,null,null,null,"3014 - E. COLI",null,"Present",null,null,null,null,null,null,null,100,null,"9223B-COLILERT","2023-12-28","15:20:00"]
["Z933045-01","2024-01-06","OR4199999","SRC-AA","1","WELL 1","2024-01-05","15:35:00","Routine",100,null,null,null,null,null,null,"3100 - COLIFORM (TCR)",null,"Absent",null,null,null,null,null,null,null,100,null,"9221B-STANDARD TOTAL COLIFORM FERMENTATION TECHNIQUE","2024-01-06","16:29:00"]
["ZZ92008-05","2023-12-28","OR4199999","DIST-A","A","28469 MORNINGSIDE AVE","2023-12-28","09:10:00","Routine",100,null,null,null,null,null,null,"3100 - COLIFORM (TCR)",null,"Present",null,null,null,null,null,null,null,100,null,"9223B-COLISURE","2023-12-28","15:55:00",null,null,null,null,null,null,"1013 - Free Chlorine Residual",null,"1.0","mg/L"]
[null,null,null,null,null,null,null,null,null,null,null,null,null,null,null,null,"3014 - E. COLI",null,"Absent",null,null,null,null,null,null,null,100,null,"9223B-COLISURE","2023-12-28","15:55:00"]
["Z55325-01","2023-12-31","OR4199999","SRC-AA","1","WELL 1","2023-12-31","10:20:00","Confirmation",100,null,"X9352021-02","OR100029","2023-12-28",null,null,"3100 - COLIFORM (TCR)",null,"Present",null,null,null,null,null,null,null,100,null,"9223B-COLILERT","2023-12-31","15:20:00"]
[null,null,null,null,null,null,null,null,null,null,null,null,null,null,null,null,"3014 - E. COLI",null,"Absent",null,null,null,null,null,null,null,100,null,"9223B-COLILERT","2023-12-31","15:20:00"]
["LT2-result","2025-12-01","OR4199999","SRC-MF","1","river","2025-12-01","09:10:00","Routine",100,null,null,null,null,null,null,"3014 - E. COLI",null,"Present",null,"52","Most Probable Number",100,null,null,null,100,null,"9223B-QT-COLILERT - QUANTITRAY","2025-12-01","15:55:00"]
["LT2-ND","2025-12-02","OR4199999","SRC-MF","1","river","2025-12-02","10:20:00","Routine",100,null,null,null,null,null,null,"3014 - E. COLI",null,"Absent",null,"0","Most Probable Number",100,null,null,null,100,null,"9223B-18QT-COLILERT-18 – QUANTITRAY (MPN)","2025-12-02","15:20:00"]

{"sheet":"Section 1 A to J","index":1,"n_rows":17,"n_cols":2,"rows_kept":17,"cut":false,"hidden":false,"merged":[]}
["Section 1: Sample information Excel columns A to J"]
["Column","Values"]
["A","Sample ID = lab sample ID"]
["B","Sample Received = Date samples were received at the lab"]
["C","WS ID = PWS ID Format for Oregon PWS is OR41#####. Further information on Oregon PWS can be found at Data Online https://yourwater.oregon.gov/wssearch.php"]
["D","Facility ID= DIST-A or SRC-$$"]
["E","Sampling Point ID = for DIST-A this is A, for all other facilities this is 1"]
["F","Sampling Location= address or another unique identifier i.e. Well #3 or kitchen sink"]
["G","Collection Date = MM/DD/YYYY"]
["H","Collection Time = 24 hour format XX:XX"]
["I","Sample Type = select from drop down.  For Oregon only use Routine, Repeat, Triggered, Confirmation or Special"]
["J","Sample Volume (ML)= default is 100 ML"]
[]
["For each unique sample, the sample ID is only listed for the first row with analyte code 3100 - COLIFORM (TCR) and associated field results if applicable. "]
["For subsequent analytes 3014 - E. COLI See section 3 only Excel columns Q to AO are entered. "]
[]
["Please note that the symbol $ stands for a letter (SRC-$$ or SRC-AA).  "]

{"sheet":"Section 2 K to P","index":2,"n_rows":7,"n_cols":2,"rows_kept":7,"cut":false,"hidden":false,"merged":[]}
["Section 2: Additional Sample information for Repeats & Triggered Excel columns K to P"]
["Column","Values"]
["K","Repeat Location: Not required."]
["L","Original Sample ID: For Repeat or Triggered samples, enter the lab Sample ID of the original TC+ sample."]
["M","Original Reporting Lab. ID: ORELAP ID ORXXXXX"]
["N","Original Collection Date: MM/DD/YYYY"]
["O to P","None of the remaining columns O to P are required and should be left blank."]

{"sheet":"Section 3 Q to AK","index":3,"n_rows":27,"n_cols":7,"rows_kept":27,"cut":false,"hidden":false,"merged":[]}
["Section 3 Microbial Results  Excel columns Q to AK"]
["Column","Values"]
["Q","Analyte [Code-Name]: From the drop-down menu select either 3014 E. Coli or 3100 Coliform (TCR)"]
["R"," Leave blank"]
["S","A/P: From the drop-down menu select whether the contaminant was Present or Absent"]
[null,"For samples that are TC absent only enter data for 3100. For samples that are TC+ need to enter data for both 3100 & 3014"]
["T"," Leave blank"]
["U","Count - Required for LT2 - enumerated E. coli Monitoring only.  Otherwise Leave blank. Must use whole numbers.  "]
[null,null,"If result is less than detection level then use 0 and column S must be \"Absent\";"]
[null,null,"Any result other than 0 column S must be \"Present\""]
["V","Units - Required for LT2 - enumerated E. coli Monitoring only.  Otherwise Leave blank.  Use \"Most Probable Number\" from drop down menu"]
["W","Volume (ML) - Required for LT2 - enumerated E. coli Monitoring only.  Otherwise Leave blank. Use 100 ML as default"]
["X to Z"," Leave blank"]
["AA","Volume Assayed (ML): Use 100 ML as default"]
["AC","Method: From the drop-down menu select one of these methods only. If the coliform method the lab is using is not included please contact Drinking Water Services"]
[null,"9223B-COLILERT"]
[null,"9223B-COLILERT-18"]
[null,"9223B-COLISURE"]
[null,"9221B-STANDARD TOTAL COLIFORM FERMENTATION TECHNIQUE"]
[null,"9223B-QT-COLILERT - QUANTITRAY",null,null,null,null,"NOTE - LT2 enumerated E.coli monitoring only"]
[null,"9223B-18QT-COLILERT-18 – QUANTITRAY (MPN)",null,null,null,null,"NOTE - LT2 enumerated E.coli monitoring only"]
["AD","Analysis Start Date = MM/DD/YYYY"]
["AE"," Analysis Start Time= use 24 hr.  XX:XX"]
["AF to AK","None of the remaining columns AF to AK are required and should be left blank."]
[]
["Please note that for each unique sample, the sample ID is only listed for the first row with analyte code 3100 - COLIFORM (TCR) and associated field results if applicable. "]
["For subsequent analytes 3014 - E. COLI only Excel columns Q to AO are entered. See example excel template for more information."]

{"sheet":"Section 4 AL to AS","index":4,"n_rows":10,"n_cols":2,"rows_kept":10,"cut":false,"hidden":false,"merged":[]}
["Section 4: Field Results and Measurements (Distribution Chlorine) Excel columns AL to AS"]
["Column","Values"]
["AL","Parameter [Code – Name] = From the drop-down menu select 1013 – Free Chlorine Residual. Do not use 1012 – Total Chlorine Residual"]
["AM","Not required leave blank"]
["AN","Result= Enter the numerical value of the field result/measurement."]
["AO","Result UOM= From the drop-down menu select mg/L"]
["AQ to AS","None of the remaining columns AQ to AS are required and should be left blank."]
[]
["Please note that for each unique sample, the sample ID is only listed for the first row with analyte code 3100 - COLIFORM (TCR) and associated field results if applicable. "]
["For subsequent analytes 3014 - E. COLI only Excel columns Q to AO are entered. See example excel template for more information."]

{"sheet":"Excel Val. MIC","index":5,"n_rows":218,"n_cols":47,"rows_kept":218,"cut":false,"hidden":true,"merged":[]}
["Microbiological Template Validations"]
["Field","Reporting Lab","Sample ID","WS ID","Facility ID","Sampling Point ID","Collection Date","Collection Time","Sample Type",null,"Sample Volume",null,"Repeat Location","Original Sample ID","Comment","Analyte",null,"A/P",null,"Count","Units","Volume",null,"Interference",null,"Volume Assayed",null,"Method NM","Method CD","Analysis Start Time","Aanlysis Completed Date","Analysis Completed Time","Analyzing Lab","Source Type","Comment","Paramteter",null,"Result","UOM",null,"Comment","Method NM","Method Name"]
["Validations","None","None","None","Non","None","Less than of equal to Today()","Must be between 00:00 and 23:59","List of values",null,"List of values",null,"List of values","None","None","List of values",null,"List of values",null,"None","List of values","List of values",null,"List of values",null,"List of values",null,"10133-10133","10133","Between 00:00 and 23:59","Greater than or equal to Analysis Start Date","Between 00:00 and 23:59","None","List of values","None","List of values",null,"None","List of values","None","None","10133-10133","10133",null,null,null,{"$f":"(AB3=AP3)","v":true}]
["Extra",null,null,null,null,null,{"$f":"TODAY()","v":"2026-07-02"},null,"Routine","RT","100 ml","100 ml","Original Site",null,null,"2078 - CRYPTOSPORIDIUM","2078","Absent","A",null,"Colonies","1 ml","1 ml","Confluent Growth","CNFG","1 ml","1 ml","110.2-VISUAL COMPARISON METHOD","110.2",null,null,null,null,"Flowing Stream",null,"0100 - Turbidity","0100",null,"mg/L","mg/L",null,"110.2-VISUAL COMPARISON METHOD","VISUAL COMPARISON METHOD",null,null,null,{"$f":"(AB4=AP4)","v":true}]
[null,null,null,null,null,null,null,null,"Repeat","RP","200 ml","200 ml","Downstream",null,null,"3000 - COLIFORM (PRE-TCR)","3000","Present","P",null,"Tubes","5 ml","5 ml","Turbid Culture - no gas","TCNG","5 ml","5 ml","1103.1-MTEC BROTH - MF","1103.1",null,null,null,null,"Lake",null,"0999 - Chlorine","0999",null,"Fahrenheit","F",null,"1103.1-MTEC BROTH - MF","MTEC BROTH - MF",null,null,null,true]
[null,null,null,null,null,null,null,null,"Triggered","TG","300 ml","300 ml","Upstream",null,null,"3001 - HETEROTROPHIC BACTERIA (HPC OR SPC)","3001",null,null,null,"Most Probable Number","10 ml","10 ml","Too Numerous to Count","TNTC","10 ml","10 ml","120.1-CONDUCTANCE AT 25C","120.1",null,null,null,null,"Reservoir",null,"1006 - Chloramine","1006",null,"Celsius","C",null,"120.1-CONDUCTANCE AT 25C","CONDUCTANCE AT 25C",null,null,null,true]
[null,null,null,null,null,null,null,null,"Confirmation","CO","400 ml","400 ml","Source",null,null,"3002 - ENTEROCOCCI","3002",null,null,null,"Colony Forming Units","100 ml","100 ml",null,null,"100 ml","100 ml","130-THERMOMETRIC","130",null,null,null,null,"GWUDI",null,"1012 - Total Chlorine Residual","1012",null,"NTU","NTU",null,"130-THERMOMETRIC","THERMOMETRIC",null,null,null,true]
[null,null,null,null,null,null,null,null,"Special","SP","500 ml","500 ml","Alternative (RTCR)",null,null,"3003 - FECAL STREPTOCOCCUS","3003",null,null,null,"Cysts, Calculated","400 ml","400 ml",null,null,"400 ml","400 ml","150.1-ELECTROMETRIC-INDIVIDUAL MEASUREMENT","150.1",null,null,null,null,null,null,"1013 - Free Chlorine Residual","1013",null,"pH","ph",null,"150.1-ELECTROMETRIC-INDIVIDUAL MEASUREMENT","ELECTROMETRIC-INDIVIDUAL MEASUREMENT",null,null,null,true]
[null,null,null,null,null,null,null,null,"Batch Blanks","BB","1 liter","1 liter","Other (TCR)",null,null,"3004 - STAPHYLOCOCCUS","3004",null,null,null,"Cysts, Observed","500 ml","500 ml",null,null,"500 ml","500 ml","150.2-ELECTROMETRIC-ONLINE MEASUREMENT","150.2",null,null,null,null,null,null,"1925 - pH","1925",null,"mL","mL",null,"150.2-ELECTROMETRIC-ONLINE MEASUREMENT","ELECTROMETRIC-ONLINE MEASUREMENT",null,null,null,true]
[null,null,null,null,null,null,null,null,"Field Blanks","FB",null,null,null,null,null,"3005 - NON-COLIFORM GROWTH IDENTIFICATION","3005",null,null,null,"Observations","1 liter","1 liter",null,null,null,null,"1600-MEMBRANE FILTER","1600",null,null,null,null,null,null,"1996 - Temperature","1996",null,"L","L",null,"1600-MEMBRANE FILTER","MEMBRANE FILTER",null,null,null,true]
[null,null,null,null,null,null,null,null,"Performance Evaluation","PE",null,null,null,null,null,"3006 - IRON BACTERIA ID","3006",null,null,null,"Oocysts, Calculated","100 liter","100 liter",null,null,null,null,"1601-2 STEP ENRICHMENT P/A PROCEDURE","1601",null,null,null,null,null,null,"1905 - Color","1905",null,"CU","CU",null,"1601-2 STEP ENRICHMENT P/A PROCEDURE","2 STEP ENRICHMENT P/A PROCEDURE",null,null,null,true]
[null,null,null,null,null,null,null,null,"Shipping Blanks","SB",null,null,null,null,null,"3007 - SALMONELLA-SHIGELLA","3007",null,null,null,"Oocysts, Observed","10 Gal","10 Gal",null,null,null,null,"1602-SINGLE LAYER AGAR PROCEDURE","1602",null,null,null,null,null,null,null,null,null,null,null,null,"1602-SINGLE LAYER AGAR PROCEDURE","SINGLE LAYER AGAR PROCEDURE",null,null,null,true]
[null,null,null,null,null,null,null,null,"Split Blanks","ST",null,null,null,null,null,"3008 - GIARDIA LAMBLIA","3008",null,null,null,"Plaque Forming Units","100 Gal","100 Gal",null,null,null,null,"1603-MODIFIED MTEC - MF","1603",null,null,null,null,null,null,null,null,null,null,null,null,"1603-MODIFIED MTEC - MF","MODIFIED MTEC - MF",null,null,null,true]
[null,null,null,null,null,null,null,null,"Maximum Residence Time","MR",null,null,null,null,null,"3009 - FUNGUS /ML","3009",null,null,null,null,"400 Gal","400 Gal",null,null,null,null,"1604-MEMBRANE FILTER METHOD WITH MI AGAR","1604",null,null,null,null,null,null,null,null,null,null,null,null,"1604-MEMBRANE FILTER METHOD WITH MI AGAR","MEMBRANE FILTER METHOD WITH MI AGAR",null,null,null,true]
[null,null,null,null,null,null,null,null,"Matrix Spike","MS",null,null,null,null,null,"3010 - VIRUS PFU/GAL","3010",null,null,null,null,null,null,null,null,null,null,"1622-Cryptosporidium in Water by Filtration/IMS/FA","1622",null,null,null,null,null,null,null,null,null,null,null,null,"1622-Cryptosporidium in Water by Filtration/IMS/FA","Cryptosporidium in Water by Filtration/IMS/FA",null,null,null,true]
[null,null,null,null,null,null,null,null,null,null,null,null,null,null,null,"3011 - ACTINOMYCETES /ML","3011",null,null,null,null,null,null,null,null,null,null,"1623-Cryptosporidium and Giardia in Water by Filtration/IMS/FA","1623",null,null,null,null,null,null,null,null,null,null,null,null,"1623-Cryptosporidium and Giardia in Water by Filtration/IMS/FA","Cryptosporidium and Giardia in Water by Filtration/IMS/FA",null,null,null,true]
[null,null,null,null,null,null,null,null,null,null,null,null,null,null,null,"3012 - LEGIONELLA","3012",null,null,null,null,null,null,null,null,null,null,"1623.1-Filtration/Immunomagnetic Separation/Immunofluorescence Assay Microscopy","1623.1",null,null,null,null,null,null,null,null,null,null,null,null,"1623.1-Filtration/Immunomagnetic Separation/Immunofluorescence Assay Microscopy","Filtration/Immunomagnetic Separation/Immunofluorescence Assay Microscopy",null,null,null,true]
[null,null,null,null,null,null,null,null,null,null,null,null,null,null,null,"3013 - FECAL COLIFORM","3013",null,null,null,null,null,null,null,null,null,null,"180.1-180.1","180.1",null,null,null,null,null,null,null,null,null,null,null,null,"180.1-180.1","180.1",null,null,null,true]
[null,null,null,null,null,null,null,null,null,null,null,null,null,null,null,"3014 - E. COLI","3014",null,null,null,null,null,null,null,null,null,null,"200.5-Axially viewed inductively coupled plasma-atomic emission spectrometry (AVICP-AES)","200.5",null,null,null,null,null,null,null,null,null,null,null,null,"200.5-Axially viewed inductively coupled plasma-atomic emission spectrometry (AVICP-AES)","Axially viewed inductively coupled plasma-atomic emission spectrometry (AVICP-AES)",null,null,null,true]
[null,null,null,null,null,null,null,null,null,null,null,null,null,null,null,"3015 - CRYPTOSPORIDIUM","3015",null,null,null,null,null,null,null,null,null,null,"200.7-INDUCTIVELY COUPLED PLASMA","200.7",null,null,null,null,null,null,null,null,null,null,null,null,"200.7-INDUCTIVELY COUPLED PLASMA","INDUCTIVELY COUPLED PLASMA",null,null,null,true]
[null,null,null,null,null,null,null,null,null,null,null,null,null,null,null,"3016 - SHIGELLA","3016",null,null,null,null,null,null,null,null,null,null,"200.8-INDUCTIVELY COUPLED PLASMA MASS SPECTROM","200.8",null,null,null,null,null,null,null,null,null,null,null,null,"200.8-INDUCTIVELY COUPLED PLASMA MASS SPECTROM","INDUCTIVELY COUPLED PLASMA MASS SPECTROM",null,null,null,true]
[null,null,null,null,null,null,null,null,null,null,null,null,null,null,null,"3017 - PSEUDOMONAS","3017",null,null,null,null,null,null,null,null,null,null,"2120B-VISUAL COMPARISON METHOD","2120B",null,null,null,null,null,null,null,null,null,null,null,null,"2120B-VISUAL COMPARISON METHOD","VISUAL COMPARISON METHOD",null,null,null,true]
[null,null,null,null,null,null,null,null,null,null,null,null,null,null,null,"3018 - CLOSTRIDIUM","3018",null,null,null,null,null,null,null,null,null,null,"2120B-01-2120 B-01","2120B-01",null,null,null,null,null,null,null,null,null,null,null,null,"2120B-01-2120 B-01","2120 B-01",null,null,null,true]
[null,null,null,null,null,null,null,null,null,null,null,null,null,null,null,"3019 - CAMPYLOBACTER JEJUNI","3019",null,null,null,null,null,null,null,null,null,null,"2130B-NEPHELOMETRIC","2130B",null,null,null,null,null,null,null,null,null,null,null,null,"2130B-NEPHELOMETRIC","NEPHELOMETRIC",null,null,null,true]
[null,null,null,null,null,null,null,null,null,null,null,null,null,null,null,"3020 - VIBRIO CHOLERAE","3020",null,null,null,null,null,null,null,null,null,null,"2130B-01-2130B-01","2130B-01",null,null,null,null,null,null,null,null,null,null,null,null,"2130B-01-2130B-01","2130B-01",null,null,null,true]
[null,null,null,null,null,null,null,null,null,null,null,null,null,null,null,"3021 - LEPTOSPIRES","3021",null,null,null,null,null,null,null,null,null,null,"2150B-Threshold Odor Test","2150B",null,null,null,null,null,null,null,null,null,null,null,null,"2150B-Threshold Odor Test","Threshold Odor Test",null,null,null,true]
[null,null,null,null,null,null,null,null,null,null,null,null,null,null,null,"3022 - YERSINIA ENTEROCOLITICA","3022",null,null,null,null,null,null,null,null,null,null,"2150B-97-2150B-97","2150B-97",null,null,null,null,null,null,null,null,null,null,null,null,"2150B-97-2150B-97","2150B-97",null,null,null,true]
[null,null,null,null,null,null,null,null,null,null,null,null,null,null,null,"3023 - ENTEROBACTER","3023",null,null,null,null,null,null,null,null,null,null,"2320-TITRIMETRIC","2320",null,null,null,null,null,null,null,null,null,null,null,null,"2320-TITRIMETRIC","TITRIMETRIC",null,null,null,true]
[null,null,null,null,null,null,null,null,null,null,null,null,null,null,null,"3024 - KLEBSIELLA","3024",null,null,null,null,null,null,null,null,null,null,"2320B-TITRIMETRIC","2320B",null,null,null,null,null,null,null,null,null,null,null,null,"2320B-TITRIMETRIC","TITRIMETRIC",null,null,null,true]
[null,null,null,null,null,null,null,null,null,null,null,null,null,null,null,"3025 - CITROBACTER","3025",null,null,null,null,null,null,null,null,null,null,"2320B-97-2320B-97","2320B-97",null,null,null,null,null,null,null,null,null,null,null,null,"2320B-97-2320B-97","2320B-97",null,null,null,true]
[null,null,null,null,null,null,null,null,null,null,null,null,null,null,null,"3026 - AEROMONAS","3026",null,null,null,null,null,null,null,null,null,null,"2330B-2330B","2330B",null,null,null,null,null,null,null,null,null,null,null,null,"2330B-2330B","2330B",null,null,null,true]
[null,null,null,null,null,null,null,null,null,null,null,null,null,null,null,"3027 - ERWINIA","3027",null,null,null,null,null,null,null,null,null,null,"2340B-HARDNESS IN WATER BY CALCULATION","2340B",null,null,null,null,null,null,null,null,null,null,null,null,"2340B-HARDNESS IN WATER BY CALCULATION","HARDNESS IN WATER BY CALCULATION",null,null,null,true]
[null,null,null,null,null,null,null,null,null,null,null,null,null,null,null,"3028 - COLIPHAGE (FOR GWR)","3028",null,null,null,null,null,null,null,null,null,null,"2510B-CONDUCTANCE AT 25C","2510B",null,null,null,null,null,null,null,null,null,null,null,null,"2510B-CONDUCTANCE AT 25C","CONDUCTANCE AT 25C",null,null,null,true]
[null,null,null,null,null,null,null,null,null,null,null,null,null,null,null,"3029 - TOTAL COLIFORM FOR UCMR 3","3029",null,null,null,null,null,null,null,null,null,null,"2540C-Total Dissolved Solids Dried at 180 deg C","2540C",null,null,null,null,null,null,null,null,null,null,null,null,"2540C-Total Dissolved Solids Dried at 180 deg C","Total Dissolved Solids Dried at 180 deg C",null,null,null,true]
[null,null,null,null,null,null,null,null,null,null,null,null,null,null,null,"3030 - BACTERIOPHAGE-MALE SPECIFIC","3030",null,null,null,null,null,null,null,null,null,null,"2550-THERMOMETRIC","2550",null,null,null,null,null,null,null,null,null,null,null,null,"2550-THERMOMETRIC","THERMOMETRIC",null,null,null,true]
[null,null,null,null,null,null,null,null,null,null,null,null,null,null,null,"3031 - BACTERIOPHAGE-SOMATIC","3031",null,null,null,null,null,null,null,null,null,null,"2550-00-2550-00","2550-00",null,null,null,null,null,null,null,null,null,null,null,null,"2550-00-2550-00","2550-00",null,null,null,true]
[null,null,null,null,null,null,null,null,null,null,null,null,null,null,null,"3032 - AEROBIC SPORES","3032",null,null,null,null,null,null,null,null,null,null,"300.0-ION CHROMATOGRAPHY","300.0",null,null,null,null,null,null,null,null,null,null,null,null,"300.0-ION CHROMATOGRAPHY","ION CHROMATOGRAPHY",null,null,null,true]
[null,null,null,null,null,null,null,null,null,null,null,null,null,null,null,"3100 - COLIFORM (TCR)","3100",null,null,null,null,null,null,null,null,null,null,"300.1-ION CHROMATOGRAPHY","300.1",null,null,null,null,null,null,null,null,null,null,null,null,"300.1-ION CHROMATOGRAPHY","ION CHROMATOGRAPHY",null,null,null,true]
[null,null,null,null,null,null,null,null,null,null,null,null,null,null,null,"3200 - AEROMONAS HYDROPHILA","3200",null,null,null,null,null,null,null,null,null,null,"303.1-MEMBRANE FILTER","303.1",null,null,null,null,null,null,null,null,null,null,null,null,"303.1-MEMBRANE FILTER","MEMBRANE FILTER",null,null,null,{"$f":"(AB39=AP39)","v":true}]
[null,null,null,null,null,null,null,null,null,null,null,null,null,null,null,"3201 - AEROMONAS SPP.","3201",null,null,null,null,null,null,null,null,null,null,"307.1-FERMENTATION TUBE - 10","307.1",null,null,null,null,null,null,null,null,null,null,null,null,"307.1-FERMENTATION TUBE - 10","FERMENTATION TUBE - 10",null,null,null,true]
[null,null,null,null,null,null,null,null,null,null,null,null,null,null,null,"3210 - HELICOBACTER PYLORI","3210",null,null,null,null,null,null,null,null,null,null,"307.2-FERMENTATION TUBE - 5","307.2",null,null,null,null,null,null,null,null,null,null,null,null,"307.2-FERMENTATION TUBE - 5","FERMENTATION TUBE - 5",null,null,null,true]
[null,null,null,null,null,null,null,null,null,null,null,null,null,null,null,"3300 - CYANOBACTERIA","3300",null,null,null,null,null,null,null,null,null,null,"307.3-FERMENTATION TUBE - PRESENCE/ABSENCE","307.3",null,null,null,null,null,null,null,null,null,null,null,null,"307.3-FERMENTATION TUBE - PRESENCE/ABSENCE","FERMENTATION TUBE - PRESENCE/ABSENCE",null,null,null,true]
[null,null,null,null,null,null,null,null,null,null,null,null,null,null,null,"3310 - ALGAE TOXINS","3310",null,null,null,null,null,null,null,null,null,null,"310.1-TITRIMETRIC","310.1",null,null,null,null,null,null,null,null,null,null,null,null,"310.1-TITRIMETRIC","TITRIMETRIC",null,null,null,true]
[null,null,null,null,null,null,null,null,null,null,null,null,null,null,null,"3400 - ECHOVIRUSES","3400",null,null,null,null,null,null,null,null,null,null,"310.2-EC MEDIUM - PRESENCE/ABSENCE","310.2",null,null,null,null,null,null,null,null,null,null,null,null,"310.2-EC MEDIUM - PRESENCE/ABSENCE","EC MEDIUM - PRESENCE/ABSENCE",null,null,null,true]
[null,null,null,null,null,null,null,null,null,null,null,null,null,null,null,"3410 - COXSACKIEVIRUSES","3410",null,null,null,null,null,null,null,null,null,null,"310.3-COLILERT - PRESENCE/ABSENCE","310.3",null,null,null,null,null,null,null,null,null,null,null,null,"310.3-COLILERT - PRESENCE/ABSENCE","COLILERT - PRESENCE/ABSENCE",null,null,null,true]
[null,null,null,null,null,null,null,null,null,null,null,null,null,null,null,"3420 - CALICIVIRUSES","3420",null,null,null,null,null,null,null,null,null,null,"310.4-NUTRIENT AGAR AND MUG","310.4",null,null,null,null,null,null,null,null,null,null,null,null,"310.4-NUTRIENT AGAR AND MUG","NUTRIENT AGAR AND MUG",null,null,null,true]
[null,null,null,null,null,null,null,null,null,null,null,null,null,null,null,"3430 - ADENOVIRUSES","3430",null,null,null,null,null,null,null,null,null,null,"3111B-ATOMIC ABSORPTION DIRECT ASPIRATION","3111B",null,null,null,null,null,null,null,null,null,null,null,null,"3111B-ATOMIC ABSORPTION DIRECT ASPIRATION","ATOMIC ABSORPTION DIRECT ASPIRATION",null,null,null,true]
[null,null,null,null,null,null,null,null,null,null,null,null,null,null,null,"3440 - ENTEROVIRUSES","3440",null,null,null,null,null,null,null,null,null,null,"3111B-99-3111B-99","3111B-99",null,null,null,null,null,null,null,null,null,null,null,null,"3111B-99-3111B-99","3111B-99",null,null,null,true]
[null,null,null,null,null,null,null,null,null,null,null,null,null,null,null,"3450 - NOROVIRUSES","3450",null,null,null,null,null,null,null,null,null,null,"3120B-INDUCTIVELY COUPLED PLASMA","3120B",null,null,null,null,null,null,null,null,null,null,null,null,"3120B-INDUCTIVELY COUPLED PLASMA","INDUCTIVELY COUPLED PLASMA",null,null,null,true]
[null,null,null,null,null,null,null,null,null,null,null,null,null,null,null,"3500 - MICROSPORIDIA","3500",null,null,null,null,null,null,null,null,null,null,"3120B-99-3120B-99","3120B-99",null,null,null,null,null,null,null,null,null,null,null,null,"3120B-99-3120B-99","3120B-99",null,null,null,true]
[null,null,null,null,null,null,null,null,null,null,null,null,null,null,null,null,null,null,null,null,null,null,null,null,null,null,null,"327-Spectrophotometric","327",null,null,null,null,null,null,null,null,null,null,null,null,"327-Spectrophotometric","Spectrophotometric",null,null,null,true]
[null,null,null,null,null,null,null,null,null,null,null,null,null,null,null,null,null,null,null,null,null,null,null,null,null,null,null,"334-On-line Chlorine Analyzer","334",null,null,null,null,null,null,null,null,null,null,null,null,"334-On-line Chlorine Analyzer","On-line Chlorine Analyzer",null,null,null,true]
[null,null,null,null,null,null,null,null,null,null,null,null,null,null,null,null,null,null,null,null,null,null,null,null,null,null,null,"334.0-On-line Chlorine Analyzer","334.0",null,null,null,null,null,null,null,null,null,null,null,null,"334.0-On-line Chlorine Analyzer","On-line Chlorine Analyzer",null,null,null,true]
[null,null,null,null,null,null,null,null,null,null,null,null,null,null,null,null,null,null,null,null,null,null,null,null,null,null,null,"334.0.16-On-line Chlorine Analyzer","334.0.16",null,null,null,null,null,null,null,null,null,null,null,null,"334.0.16-On-line Chlorine Analyzer","On-line Chlorine Analyzer",null,null,null,true]
[null,null,null,null,null,null,null,null,null,null,null,null,null,null,null,null,null,null,null,null,null,null,null,null,null,null,null,"3500CA-B-EDTA TITRIMETRIC","3500CA-B",null,null,null,null,null,null,null,null,null,null,null,null,"3500CA-B-EDTA TITRIMETRIC","EDTA TITRIMETRIC",null,null,null,true]
[null,null,null,null,null,null,null,null,null,null,null,null,null,null,null,null,null,null,null,null,null,null,null,null,null,null,null,"3500CA-B-97-3500-CA-B-97","3500CA-B-97",null,null,null,null,null,null,null,null,null,null,null,null,"3500CA-B-97-3500-CA-B-97","3500-CA-B-97",null,null,null,true]
[null,null,null,null,null,null,null,null,null,null,null,null,null,null,null,null,null,null,null,null,null,null,null,null,null,null,null,"3500CA-D-EDTA TITRIMETRIC","3500CA-D",null,null,null,null,null,null,null,null,null,null,null,null,"3500CA-D-EDTA TITRIMETRIC","EDTA TITRIMETRIC",null,null,null,true]
[null,null,null,null,null,null,null,null,null,null,null,null,null,null,null,null,null,null,null,null,null,null,null,null,null,null,null,"365.1-COLORIMETRIC, AUTOMATED, ASCORBIC ACID","365.1",null,null,null,null,null,null,null,null,null,null,null,null,"365.1-COLORIMETRIC, AUTOMATED, ASCORBIC ACID","COLORIMETRIC, AUTOMATED, ASCORBIC ACID",null,null,null,true]
[null,null,null,null,null,null,null,null,null,null,null,null,null,null,null,null,null,null,null,null,null,null,null,null,null,null,null,"4110-COLORIMETRIC SPADNS, WITH DISTILLATION","4110",null,null,null,null,null,null,null,null,null,null,null,null,"4110-COLORIMETRIC SPADNS, WITH DISTILLATION","COLORIMETRIC SPADNS, WITH DISTILLATION",null,null,null,true]
[null,null,null,null,null,null,null,null,null,null,null,null,null,null,null,null,null,null,null,null,null,null,null,null,null,null,null,"4110B-ION CHROMATOGRAPHY","4110B",null,null,null,null,null,null,null,null,null,null,null,null,"4110B-ION CHROMATOGRAPHY","ION CHROMATOGRAPHY",null,null,null,true]
[null,null,null,null,null,null,null,null,null,null,null,null,null,null,null,null,null,null,null,null,null,null,null,null,null,null,null,"4110B-00-4110B-00","4110B-00",null,null,null,null,null,null,null,null,null,null,null,null,"4110B-00-4110B-00","4110B-00",null,null,null,true]
[null,null,null,null,null,null,null,null,null,null,null,null,null,null,null,null,null,null,null,null,null,null,null,null,null,null,null,"415.1-IODINE","415.1",null,null,null,null,null,null,null,null,null,null,null,null,"415.1-IODINE","IODINE",null,null,null,true]
[null,null,null,null,null,null,null,null,null,null,null,null,null,null,null,null,null,null,null,null,null,null,null,null,null,null,null,"415.2-IODINE","415.2",null,null,null,null,null,null,null,null,null,null,null,null,"415.2-IODINE","IODINE",null,null,null,true]
[null,null,null,null,null,null,null,null,null,null,null,null,null,null,null,null,null,null,null,null,null,null,null,null,null,null,null,"415.3-Calculation using DOC and UV254 data","415.3",null,null,null,null,null,null,null,null,null,null,null,null,"415.3-Calculation using DOC and UV254 data","Calculation using DOC and UV254 data",null,null,null,true]
[null,null,null,null,null,null,null,null,null,null,null,null,null,null,null,null,null,null,null,null,null,null,null,null,null,null,null,"4500-CL D-AMPEROMETRIC TITRATION","4500-CL D",null,null,null,null,null,null,null,null,null,null,null,null,"4500-CL D-AMPEROMETRIC TITRATION","AMPEROMETRIC TITRATION",null,null,null,true]
[null,null,null,null,null,null,null,null,null,null,null,null,null,null,null,null,null,null,null,null,null,null,null,null,null,null,null,"4500-CL D-00-AMPEROMETRIC TITRATION","4500-CL D-00",null,null,null,null,null,null,null,null,null,null,null,null,"4500-CL D-00-AMPEROMETRIC TITRATION","AMPEROMETRIC TITRATION",null,null,null,true]
[null,null,null,null,null,null,null,null,null,null,null,null,null,null,null,null,null,null,null,null,null,null,null,null,null,null,null,"4500-CL E-AMPEROMETRIC TITRATION (LOW LEVEL MEASUREMENT)","4500-CL E",null,null,null,null,null,null,null,null,null,null,null,null,"4500-CL E-AMPEROMETRIC TITRATION (LOW LEVEL MEASUREMENT)","AMPEROMETRIC TITRATION (LOW LEVEL MEASUREMENT)",null,null,null,true]
[null,null,null,null,null,null,null,null,null,null,null,null,null,null,null,null,null,null,null,null,null,null,null,null,null,null,null,"4500-CL E-00-AMPEROMETRIC TITRATION (LOW LEVEL MEASUREMENT)","4500-CL E-00",null,null,null,null,null,null,null,null,null,null,null,null,"4500-CL E-00-AMPEROMETRIC TITRATION (LOW LEVEL MEASUREMENT)","AMPEROMETRIC TITRATION (LOW LEVEL MEASUREMENT)",null,null,null,{"$f":"(AB68=AP68)","v":true}]
[null,null,null,null,null,null,null,null,null,null,null,null,null,null,null,null,null,null,null,null,null,null,null,null,null,null,null,"4500-CL F-DPD FERROUS TITRIMETRIC","4500-CL F",null,null,null,null,null,null,null,null,null,null,null,null,"4500-CL F-DPD FERROUS TITRIMETRIC","DPD FERROUS TITRIMETRIC",null,null,null,true]
[null,null,null,null,null,null,null,null,null,null,null,null,null,null,null,null,null,null,null,null,null,null,null,null,null,null,null,"4500-CL F-00-DPD FERROUS TITRIMETRIC","4500-CL F-00",null,null,null,null,null,null,null,null,null,null,null,null,"4500-CL F-00-DPD FERROUS TITRIMETRIC","DPD FERROUS TITRIMETRIC",null,null,null,true]
[null,null,null,null,null,null,null,null,null,null,null,null,null,null,null,null,null,null,null,null,null,null,null,null,null,null,null,"4500-CL G-DPD COLORIMETRIC","4500-CL G",null,null,null,null,null,null,null,null,null,null,null,null,"4500-CL G-DPD COLORIMETRIC","DPD COLORIMETRIC",null,null,null,true]
[null,null,null,null,null,null,null,null,null,null,null,null,null,null,null,null,null,null,null,null,null,null,null,null,null,null,null,"4500-CL G-00-DPD COLORIMETRIC","4500-CL G-00",null,null,null,null,null,null,null,null,null,null,null,null,"4500-CL G-00-DPD COLORIMETRIC","DPD COLORIMETRIC",null,null,null,true]
[null,null,null,null,null,null,null,null,null,null,null,null,null,null,null,null,null,null,null,null,null,null,null,null,null,null,null,"4500-CL H-SYRINGALDAZINE (FACTS)","4500-CL H",null,null,null,null,null,null,null,null,null,null,null,null,"4500-CL H-SYRINGALDAZINE (FACTS)","SYRINGALDAZINE (FACTS)",null,null,null,true]
[null,null,null,null,null,null,null,null,null,null,null,null,null,null,null,null,null,null,null,null,null,null,null,null,null,null,null,"4500-CL H-00-SYRINGALDAZINE (FACTS)","4500-CL H-00",null,null,null,null,null,null,null,null,null,null,null,null,"4500-CL H-00-SYRINGALDAZINE (FACTS)","SYRINGALDAZINE (FACTS)",null,null,null,true]
[null,null,null,null,null,null,null,null,null,null,null,null,null,null,null,null,null,null,null,null,null,null,null,null,null,null,null,"4500-CL I-IODOMETRIC ELECTRODE","4500-CL I",null,null,null,null,null,null,null,null,null,null,null,null,"4500-CL I-IODOMETRIC ELECTRODE","IODOMETRIC ELECTRODE",null,null,null,true]
[null,null,null,null,null,null,null,null,null,null,null,null,null,null,null,null,null,null,null,null,null,null,null,null,null,null,null,"4500-CL I-00-IODOMETRIC ELECTRODE","4500-CL I-00",null,null,null,null,null,null,null,null,null,null,null,null,"4500-CL I-00-IODOMETRIC ELECTRODE","IODOMETRIC ELECTRODE",null,null,null,true]
[null,null,null,null,null,null,null,null,null,null,null,null,null,null,null,null,null,null,null,null,null,null,null,null,null,null,null,"4500-CLO2 C-AMPEROMETRIC TITRATION","4500-CLO2 C",null,null,null,null,null,null,null,null,null,null,null,null,"4500-CLO2 C-AMPEROMETRIC TITRATION","AMPEROMETRIC TITRATION",null,null,null,true]
[null,null,null,null,null,null,null,null,null,null,null,null,null,null,null,null,null,null,null,null,null,null,null,null,null,null,null,"4500-CLO2 C-00-AMPEROMETRIC TITRATION","4500-CLO2 C-00",null,null,null,null,null,null,null,null,null,null,null,null,"4500-CLO2 C-00-AMPEROMETRIC TITRATION","AMPEROMETRIC TITRATION",null,null,null,true]
[null,null,null,null,null,null,null,null,null,null,null,null,null,null,null,null,null,null,null,null,null,null,null,null,null,null,null,"4500-CLO2 D-DPD METHOD","4500-CLO2 D",null,null,null,null,null,null,null,null,null,null,null,null,"4500-CLO2 D-DPD METHOD","DPD METHOD",null,null,null,true]
[null,null,null,null,null,null,null,null,null,null,null,null,null,null,null,null,null,null,null,null,null,null,null,null,null,null,null,"4500-CLO2 E-AMPEROMETRIC TITRATION","4500-CLO2 E",null,null,null,null,null,null,null,null,null,null,null,null,"4500-CLO2 E-AMPEROMETRIC TITRATION","AMPEROMETRIC TITRATION",null,null,null,true]
[null,null,null,null,null,null,null,null,null,null,null,null,null,null,null,null,null,null,null,null,null,null,null,null,null,null,null,"4500-CLO2 E-00-AMPEROMETRIC TITRATION","4500-CLO2 E-00",null,null,null,null,null,null,null,null,null,null,null,null,"4500-CLO2 E-00-AMPEROMETRIC TITRATION","AMPEROMETRIC TITRATION",null,null,null,true]
[null,null,null,null,null,null,null,null,null,null,null,null,null,null,null,null,null,null,null,null,null,null,null,null,null,null,null,"4500H+B-4500H+B","4500H+B",null,null,null,null,null,null,null,null,null,null,null,null,"4500H+B-4500H+B","4500H+B",null,null,null,true]
[null,null,null,null,null,null,null,null,null,null,null,null,null,null,null,null,null,null,null,null,null,null,null,null,null,null,null,"4500H-B-ELECTROMETRIC-ONLINE MEASUREMENT","4500H-B",null,null,null,null,null,null,null,null,null,null,null,null,"4500H-B-ELECTROMETRIC-ONLINE MEASUREMENT","ELECTROMETRIC-ONLINE MEASUREMENT",null,null,null,true]
[null,null,null,null,null,null,null,null,null,null,null,null,null,null,null,null,null,null,null,null,null,null,null,null,null,null,null,"4500H-B-00-4500-H-B-00","4500H-B-00",null,null,null,null,null,null,null,null,null,null,null,null,"4500H-B-00-4500-H-B-00","4500-H-B-00",null,null,null,true]
[null,null,null,null,null,null,null,null,null,null,null,null,null,null,null,null,null,null,null,null,null,null,null,null,null,null,null,"4500O3-B-Indigo Method","4500O3-B",null,null,null,null,null,null,null,null,null,null,null,null,"4500O3-B-Indigo Method","Indigo Method",null,null,null,true]
[null,null,null,null,null,null,null,null,null,null,null,null,null,null,null,null,null,null,null,null,null,null,null,null,null,null,null,"4500O3-B-97-4500O3-B-97","4500O3-B-97",null,null,null,null,null,null,null,null,null,null,null,null,"4500O3-B-97-4500O3-B-97","4500O3-B-97",null,null,null,true]
[null,null,null,null,null,null,null,null,null,null,null,null,null,null,null,null,null,null,null,null,null,null,null,null,null,null,null,"4500P-E-COLORIMETRIC, MANUAL","4500P-E",null,null,null,null,null,null,null,null,null,null,null,null,"4500P-E-COLORIMETRIC, MANUAL","COLORIMETRIC, MANUAL",null,null,null,true]
[null,null,null,null,null,null,null,null,null,null,null,null,null,null,null,null,null,null,null,null,null,null,null,null,null,null,null,"4500P-E-99-4500P-E-99","4500P-E-99",null,null,null,null,null,null,null,null,null,null,null,null,"4500P-E-99-4500P-E-99","4500P-E-99",null,null,null,true]
[null,null,null,null,null,null,null,null,null,null,null,null,null,null,null,null,null,null,null,null,null,null,null,null,null,null,null,"4500P-F-COLORIMETRIC, AUTOMATED, ASCORBIC ACID","4500P-F",null,null,null,null,null,null,null,null,null,null,null,null,"4500P-F-COLORIMETRIC, AUTOMATED, ASCORBIC ACID","COLORIMETRIC, AUTOMATED, ASCORBIC ACID",null,null,null,true]
[null,null,null,null,null,null,null,null,null,null,null,null,null,null,null,null,null,null,null,null,null,null,null,null,null,null,null,"5310B-HIGH TEMPERATURE COMBUSTION METHOD","5310B",null,null,null,null,null,null,null,null,null,null,null,null,"5310B-HIGH TEMPERATURE COMBUSTION METHOD","HIGH TEMPERATURE COMBUSTION METHOD",null,null,null,true]
[null,null,null,null,null,null,null,null,null,null,null,null,null,null,null,null,null,null,null,null,null,null,null,null,null,null,null,"5310C-PERSULFATE-ULTRAVIOLET OR OXIDATION","5310C",null,null,null,null,null,null,null,null,null,null,null,null,"5310C-PERSULFATE-ULTRAVIOLET OR OXIDATION","PERSULFATE-ULTRAVIOLET OR OXIDATION",null,null,null,true]
[null,null,null,null,null,null,null,null,null,null,null,null,null,null,null,null,null,null,null,null,null,null,null,null,null,null,null,"5310D-WET-OXIDATION METHOD","5310D",null,null,null,null,null,null,null,null,null,null,null,null,"5310D-WET-OXIDATION METHOD","WET-OXIDATION METHOD",null,null,null,true]
[null,null,null,null,null,null,null,null,null,null,null,null,null,null,null,null,null,null,null,null,null,null,null,null,null,null,null,"5540C-Methylene Blue Active Substances (MBAS)","5540C",null,null,null,null,null,null,null,null,null,null,null,null,"5540C-Methylene Blue Active Substances (MBAS)","Methylene Blue Active Substances (MBAS)",null,null,null,true]
[null,null,null,null,null,null,null,null,null,null,null,null,null,null,null,null,null,null,null,null,null,null,null,null,null,null,null,"5540C-00-5540 C-00","5540C-00",null,null,null,null,null,null,null,null,null,null,null,null,"5540C-00-5540 C-00","5540 C-00",null,null,null,true]
[null,null,null,null,null,null,null,null,null,null,null,null,null,null,null,null,null,null,null,null,null,null,null,null,null,null,null,"5910B-ULTRAVIOLET ABSORPTION METHOD","5910B",null,null,null,null,null,null,null,null,null,null,null,null,"5910B-ULTRAVIOLET ABSORPTION METHOD","ULTRAVIOLET ABSORPTION METHOD",null,null,null,true]
[null,null,null,null,null,null,null,null,null,null,null,null,null,null,null,null,null,null,null,null,null,null,null,null,null,null,null,"5910B-00-5910B-00","5910B-00",null,null,null,null,null,null,null,null,null,null,null,null,"5910B-00-5910B-00","5910B-00",null,null,null,true]
[null,null,null,null,null,null,null,null,null,null,null,null,null,null,null,null,null,null,null,null,null,null,null,null,null,null,null,"9213D-MTEC BROTH - MF","9213D",null,null,null,null,null,null,null,null,null,null,null,null,"9213D-MTEC BROTH - MF","MTEC BROTH - MF",null,null,null,true]
[null,null,null,null,null,null,null,null,null,null,null,null,null,null,null,null,null,null,null,null,null,null,null,null,null,null,null,"9215 with R2A Medium-9215 with R2A Medium","9215 with R2A Medium",null,null,null,null,null,null,null,null,null,null,null,null,"9215 with R2A Medium-9215 with R2A Medium","9215 with R2A Medium",null,null,null,true]
[null,null,null,null,null,null,null,null,null,null,null,null,null,null,null,null,null,null,null,null,null,null,null,null,null,null,null,"9215B-POUR PLATE","9215B",null,null,null,null,null,null,null,null,null,null,null,null,"9215B-POUR PLATE","POUR PLATE",null,null,null,true]
[null,null,null,null,null,null,null,null,null,null,null,null,null,null,null,null,null,null,null,null,null,null,null,null,null,null,null,"9215B-00-9215B-00","9215B-00",null,null,null,null,null,null,null,null,null,null,null,null,"9215B-00-9215B-00","9215B-00",null,null,null,true]
[null,null,null,null,null,null,null,null,null,null,null,null,null,null,null,null,null,null,null,null,null,null,null,null,null,null,null,"9215B-INDEXX SIMPLATE-IDEXX SIMPLATE HPC","9215B-INDEXX SIMPLATE",null,null,null,null,null,null,null,null,null,null,null,null,"9215B-INDEXX SIMPLATE-IDEXX SIMPLATE HPC","IDEXX SIMPLATE HPC",null,null,null,true]
[null,null,null,null,null,null,null,null,null,null,null,null,null,null,null,null,null,null,null,null,null,null,null,null,null,null,null,"9215C-SPREAD PLATE","9215C",null,null,null,null,null,null,null,null,null,null,null,null,"9215C-SPREAD PLATE","SPREAD PLATE",null,null,null,true]
[null,null,null,null,null,null,null,null,null,null,null,null,null,null,null,null,null,null,null,null,null,null,null,null,null,null,null,"9215D-MEMBRANE FILTER","9215D",null,null,null,null,null,null,null,null,null,null,null,null,"9215D-MEMBRANE FILTER","MEMBRANE FILTER",null,null,null,true]
[null,null,null,null,null,null,null,null,null,null,null,null,null,null,null,null,null,null,null,null,null,null,null,null,null,null,null,"9215E-SIMPLATE","9215E",null,null,null,null,null,null,null,null,null,null,null,null,"9215E-SIMPLATE","SIMPLATE",null,null,null,true]
[null,null,null,null,null,null,null,null,null,null,null,null,null,null,null,null,null,null,null,null,null,null,null,null,null,null,null,"9221A-STANDARD TOTAL COLIFORM FERMENTATION TECHNIQUE","9221A",null,null,null,null,null,null,null,null,null,null,null,null,"9221A-STANDARD TOTAL COLIFORM FERMENTATION TECHNIQUE","STANDARD TOTAL COLIFORM FERMENTATION TECHNIQUE",null,null,null,true]
[null,null,null,null,null,null,null,null,null,null,null,null,null,null,null,null,null,null,null,null,null,null,null,null,null,null,null,"9221A-06-STANDARD TOTAL COLIFORM FERMENTATION TECHNIQUE","9221A-06",null,null,null,null,null,null,null,null,null,null,null,null,"9221A-06-STANDARD TOTAL COLIFORM FERMENTATION TECHNIQUE","STANDARD TOTAL COLIFORM FERMENTATION TECHNIQUE",null,null,null,true]
[null,null,null,null,null,null,null,null,null,null,null,null,null,null,null,null,null,null,null,null,null,null,null,null,null,null,null,"9221B-STANDARD TOTAL COLIFORM FERMENTATION TECHNIQUE","9221B",null,null,null,null,null,null,null,null,null,null,null,null,"9221B-STANDARD TOTAL COLIFORM FERMENTATION TECHNIQUE","STANDARD TOTAL COLIFORM FERMENTATION TECHNIQUE",null,null,null,true]
[null,null,null,null,null,null,null,null,null,null,null,null,null,null,null,null,null,null,null,null,null,null,null,null,null,null,null,"9221B-06-STANDARD TOTAL COLIFORM FERMENTATION TECHNIQUE","9221B-06",null,null,null,null,null,null,null,null,null,null,null,null,"9221B-06-STANDARD TOTAL COLIFORM FERMENTATION TECHNIQUE","STANDARD TOTAL COLIFORM FERMENTATION TECHNIQUE",null,null,null,true]
[null,null,null,null,null,null,null,null,null,null,null,null,null,null,null,null,null,null,null,null,null,null,null,null,null,null,null,"9221B-10-FERMENTATION TUBE - 10","9221B-10",null,null,null,null,null,null,null,null,null,null,null,null,"9221B-10-FERMENTATION TUBE - 10","FERMENTATION TUBE - 10",null,null,null,true]
[null,null,null,null,null,null,null,null,null,null,null,null,null,null,null,null,null,null,null,null,null,null,null,null,null,null,null,"9221B-5-FERMENTATION TUBE - 5","9221B-5",null,null,null,null,null,null,null,null,null,null,null,null,"9221B-5-FERMENTATION TUBE - 5","FERMENTATION TUBE - 5",null,null,null,true]
[null,null,null,null,null,null,null,null,null,null,null,null,null,null,null,null,null,null,null,null,null,null,null,null,null,null,null,"9221B-99-STANDARD TOTAL COLIFORM FERMENTATION TECHNIQUE","9221B-99",null,null,null,null,null,null,null,null,null,null,null,null,"9221B-99-STANDARD TOTAL COLIFORM FERMENTATION TECHNIQUE","STANDARD TOTAL COLIFORM FERMENTATION TECHNIQUE",null,null,null,true]
[null,null,null,null,null,null,null,null,null,null,null,null,null,null,null,null,null,null,null,null,null,null,null,null,null,null,null,"9221C-TOTAL COLIFORM FERMENTATION TECHNIQUE","9221C",null,null,null,null,null,null,null,null,null,null,null,null,"9221C-TOTAL COLIFORM FERMENTATION TECHNIQUE","TOTAL COLIFORM FERMENTATION TECHNIQUE",null,null,null,true]
[null,null,null,null,null,null,null,null,null,null,null,null,null,null,null,null,null,null,null,null,null,null,null,null,null,null,null,"9221C-06-TOTAL COLIFORM FERMENTATION TECHNIQUE","9221C-06",null,null,null,null,null,null,null,null,null,null,null,null,"9221C-06-TOTAL COLIFORM FERMENTATION TECHNIQUE","TOTAL COLIFORM FERMENTATION TECHNIQUE",null,null,null,true]
[null,null,null,null,null,null,null,null,null,null,null,null,null,null,null,null,null,null,null,null,null,null,null,null,null,null,null,"9221D-FERMENTATION TUBE - PRESENCE/ABSENCE","9221D",null,null,null,null,null,null,null,null,null,null,null,null,"9221D-FERMENTATION TUBE - PRESENCE/ABSENCE","FERMENTATION TUBE - PRESENCE/ABSENCE",null,null,null,true]
[null,null,null,null,null,null,null,null,null,null,null,null,null,null,null,null,null,null,null,null,null,null,null,null,null,null,null,"9221D-99-FERMENTATION TUBE - PRESENCE/ABSENCE","9221D-99",null,null,null,null,null,null,null,null,null,null,null,null,"9221D-99-FERMENTATION TUBE - PRESENCE/ABSENCE","FERMENTATION TUBE - PRESENCE/ABSENCE",null,null,null,true]
[null,null,null,null,null,null,null,null,null,null,null,null,null,null,null,null,null,null,null,null,null,null,null,null,null,null,null,"9221E-Fecal Coliform Procedure","9221E",null,null,null,null,null,null,null,null,null,null,null,null,"9221E-Fecal Coliform Procedure","Fecal Coliform Procedure",null,null,null,true]
[null,null,null,null,null,null,null,null,null,null,null,null,null,null,null,null,null,null,null,null,null,null,null,null,null,null,null,"9221E-10-EC MEDIUM - 10 TUBES","9221E-10",null,null,null,null,null,null,null,null,null,null,null,null,"9221E-10-EC MEDIUM - 10 TUBES","EC MEDIUM - 10 TUBES",null,null,null,true]
[null,null,null,null,null,null,null,null,null,null,null,null,null,null,null,null,null,null,null,null,null,null,null,null,null,null,null,"9221E-5-EC MEDIUM - 5 TUBES","9221E-5",null,null,null,null,null,null,null,null,null,null,null,null,"9221E-5-EC MEDIUM - 5 TUBES","EC MEDIUM - 5 TUBES",null,null,null,true]
[null,null,null,null,null,null,null,null,null,null,null,null,null,null,null,null,null,null,null,null,null,null,null,null,null,null,null,"9221E-96-Fecal Coliform Procedure","9221E-96",null,null,null,null,null,null,null,null,null,null,null,null,"9221E-96-Fecal Coliform Procedure","Fecal Coliform Procedure",null,null,null,true]
[null,null,null,null,null,null,null,null,null,null,null,null,null,null,null,null,null,null,null,null,null,null,null,null,null,null,null,"9221E-PA-EC MEDIUM - PRESENCE/ABSENCE","9221E-PA",null,null,null,null,null,null,null,null,null,null,null,null,"9221E-PA-EC MEDIUM - PRESENCE/ABSENCE","EC MEDIUM - PRESENCE/ABSENCE",null,null,null,true]
[null,null,null,null,null,null,null,null,null,null,null,null,null,null,null,null,null,null,null,null,null,null,null,null,null,null,null,"9221F-EC-MUG MEDIUM","9221F",null,null,null,null,null,null,null,null,null,null,null,null,"9221F-EC-MUG MEDIUM","EC-MUG MEDIUM",null,null,null,true]
[null,null,null,null,null,null,null,null,null,null,null,null,null,null,null,null,null,null,null,null,null,null,null,null,null,null,null,"9221F-06-EC-MUG MEDIUIM","9221F-06",null,null,null,null,null,null,null,null,null,null,null,null,"9221F-06-EC-MUG MEDIUIM","EC-MUG MEDIUIM",null,null,null,true]
[null,null,null,null,null,null,null,null,null,null,null,null,null,null,null,null,null,null,null,null,null,null,null,null,null,null,null,"9221F-10-EC MUG - 10 TUBES","9221F-10",null,null,null,null,null,null,null,null,null,null,null,null,"9221F-10-EC MUG - 10 TUBES","EC MUG - 10 TUBES",null,null,null,true]
[null,null,null,null,null,null,null,null,null,null,null,null,null,null,null,null,null,null,null,null,null,null,null,null,null,null,null,"9221F-5-EC MUG - 5 TUBES","9221F-5",null,null,null,null,null,null,null,null,null,null,null,null,"9221F-5-EC MUG - 5 TUBES","EC MUG - 5 TUBES",null,null,null,true]
[null,null,null,null,null,null,null,null,null,null,null,null,null,null,null,null,null,null,null,null,null,null,null,null,null,null,null,"9221F-PA-EC MUG - PRESENCE/ABSENCE","9221F-PA",null,null,null,null,null,null,null,null,null,null,null,null,"9221F-PA-EC MUG - PRESENCE/ABSENCE","EC MUG - PRESENCE/ABSENCE",null,null,null,true]
[null,null,null,null,null,null,null,null,null,null,null,null,null,null,null,null,null,null,null,null,null,null,null,null,null,null,null,"9222A-TOTAL COLIFORM FERMENTATION TECHNIQUE","9222A",null,null,null,null,null,null,null,null,null,null,null,null,"9222A-TOTAL COLIFORM FERMENTATION TECHNIQUE","TOTAL COLIFORM FERMENTATION TECHNIQUE",null,null,null,true]
[null,null,null,null,null,null,null,null,null,null,null,null,null,null,null,null,null,null,null,null,null,null,null,null,null,null,null,"9222B-MEMBRANE FILTER","9222B",null,null,null,null,null,null,null,null,null,null,null,null,"9222B-MEMBRANE FILTER","MEMBRANE FILTER",null,null,null,true]
[null,null,null,null,null,null,null,null,null,null,null,null,null,null,null,null,null,null,null,null,null,null,null,null,null,null,null,"9222B-97-TOTAL COLIFORM FERMENTATION TECHNIQUE","9222B-97",null,null,null,null,null,null,null,null,null,null,null,null,"9222B-97-TOTAL COLIFORM FERMENTATION TECHNIQUE","TOTAL COLIFORM FERMENTATION TECHNIQUE",null,null,null,true]
[null,null,null,null,null,null,null,null,null,null,null,null,null,null,null,null,null,null,null,null,null,null,null,null,null,null,null,"9222C-MEMBRANE FILTER - DELAYED","9222C",null,null,null,null,null,null,null,null,null,null,null,null,"9222C-MEMBRANE FILTER - DELAYED","MEMBRANE FILTER - DELAYED",null,null,null,true]
[null,null,null,null,null,null,null,null,null,null,null,null,null,null,null,null,null,null,null,null,null,null,null,null,null,null,null,"9222C-97-TOTAL COLIFORM FERMENTATION TECHNIQUE","9222C-97",null,null,null,null,null,null,null,null,null,null,null,null,"9222C-97-TOTAL COLIFORM FERMENTATION TECHNIQUE","TOTAL COLIFORM FERMENTATION TECHNIQUE",null,null,null,true]
[null,null,null,null,null,null,null,null,null,null,null,null,null,null,null,null,null,null,null,null,null,null,null,null,null,null,null,"9222D-FECAL COLIFORM MEMBRANE FILTER","9222D",null,null,null,null,null,null,null,null,null,null,null,null,"9222D-FECAL COLIFORM MEMBRANE FILTER","FECAL COLIFORM MEMBRANE FILTER",null,null,null,true]
[null,null,null,null,null,null,null,null,null,null,null,null,null,null,null,null,null,null,null,null,null,null,null,null,null,null,null,"9222D-97-MEMBRANE FILTER","9222D-97",null,null,null,null,null,null,null,null,null,null,null,null,"9222D-97-MEMBRANE FILTER","MEMBRANE FILTER",null,null,null,{"$f":"(AB132=AP132)","v":true}]
[null,null,null,null,null,null,null,null,null,null,null,null,null,null,null,null,null,null,null,null,null,null,null,null,null,null,null,"9222G-EC BROTH WITH MUG","9222G",null,null,null,null,null,null,null,null,null,null,null,null,"9222G-EC BROTH WITH MUG","EC BROTH WITH MUG",null,null,null,true]
[null,null,null,null,null,null,null,null,null,null,null,null,null,null,null,null,null,null,null,null,null,null,null,null,null,null,null,"9222G-NUTRIENT AGAR AND MUG","9222G",null,null,null,null,null,null,null,null,null,null,null,null,"9222G-NUTRIENT AGAR AND MUG","NUTRIENT AGAR AND MUG",null,null,null,true]
[null,null,null,null,null,null,null,null,null,null,null,null,null,null,null,null,null,null,null,null,null,null,null,null,null,null,null,"9222H-EC BROTH WITH MUG","9222H",null,null,null,null,null,null,null,null,null,null,null,null,"9222H-EC BROTH WITH MUG","EC BROTH WITH MUG",null,null,null,{"$f":"(AB136=AP136)","v":true}]
[null,null,null,null,null,null,null,null,null,null,null,null,null,null,null,null,null,null,null,null,null,null,null,null,null,null,null,"9223-ONPG-MUG Test","9223",null,null,null,null,null,null,null,null,null,null,null,null,"9223-ONPG-MUG Test","ONPG-MUG Test",null,null,null,true]
[null,null,null,null,null,null,null,null,null,null,null,null,null,null,null,null,null,null,null,null,null,null,null,null,null,null,null,"9223B-COLILERT","9223B",null,null,null,null,null,null,null,null,null,null,null,null,"9223B-COLILERT","COLILERT",null,null,null,true]
[null,null,null,null,null,null,null,null,null,null,null,null,null,null,null,null,null,null,null,null,null,null,null,null,null,null,null,"9223B-COLILERT-18","9223B",null,null,null,null,null,null,null,null,null,null,null,null,"9223B-COLILERT-18","COLILERT-18",null,null,null,true]
[null,null,null,null,null,null,null,null,null,null,null,null,null,null,null,null,null,null,null,null,null,null,null,null,null,null,null,"9223B-COLISURE","9223B",null,null,null,null,null,null,null,null,null,null,null,null,"9223B-COLISURE","COLISURE",null,null,null,true]
[null,null,null,null,null,null,null,null,null,null,null,null,null,null,null,null,null,null,null,null,null,null,null,null,null,null,null,"9223B-ONPG-MUG Test","9223B",null,null,null,null,null,null,null,null,null,null,null,null,"9223B-ONPG-MUG Test","ONPG-MUG Test",null,null,null,true]
[null,null,null,null,null,null,null,null,null,null,null,null,null,null,null,null,null,null,null,null,null,null,null,null,null,null,null,"9223B-04-COLILERT","9223B-04",null,null,null,null,null,null,null,null,null,null,null,null,"9223B-04-COLILERT","COLILERT",null,null,null,true]
[null,null,null,null,null,null,null,null,null,null,null,null,null,null,null,null,null,null,null,null,null,null,null,null,null,null,null,"9223B-04-COLILERT-18","9223B-04",null,null,null,null,null,null,null,null,null,null,null,null,"9223B-04-COLILERT-18","COLILERT-18",null,null,null,true]
[null,null,null,null,null,null,null,null,null,null,null,null,null,null,null,null,null,null,null,null,null,null,null,null,null,null,null,"9223B-04-COLISURE","9223B-04",null,null,null,null,null,null,null,null,null,null,null,null,"9223B-04-COLISURE","COLISURE",null,null,null,true]
[null,null,null,null,null,null,null,null,null,null,null,null,null,null,null,null,null,null,null,null,null,null,null,null,null,null,null,"9223B-04-ONPG-MUG Test","9223B-04",null,null,null,null,null,null,null,null,null,null,null,null,"9223B-04-ONPG-MUG Test","ONPG-MUG Test",null,null,null,true]
[null,null,null,null,null,null,null,null,null,null,null,null,null,null,null,null,null,null,null,null,null,null,null,null,null,null,null,"9223B-10-COLILERT - 10 TUBES","9223B-10",null,null,null,null,null,null,null,null,null,null,null,null,"9223B-10-COLILERT - 10 TUBES","COLILERT - 10 TUBES",null,null,null,true]
[null,null,null,null,null,null,null,null,null,null,null,null,null,null,null,null,null,null,null,null,null,null,null,null,null,null,null,"9223B-18-COLILERT-18 – PRESENCE ABSENCE","9223B-18",null,null,null,null,null,null,null,null,null,null,null,null,"9223B-18-COLILERT-18 – PRESENCE ABSENCE","COLILERT-18 – PRESENCE ABSENCE",null,null,null,true]
[null,null,null,null,null,null,null,null,null,null,null,null,null,null,null,null,null,null,null,null,null,null,null,null,null,null,null,"9223B-18QT-COLILERT-18 – QUANTITRAY (MPN)","9223B-18QT",null,null,null,null,null,null,null,null,null,null,null,null,"9223B-18QT-COLILERT-18 – QUANTITRAY (MPN)","COLILERT-18 – QUANTITRAY (MPN)",null,null,null,true]
[null,null,null,null,null,null,null,null,null,null,null,null,null,null,null,null,null,null,null,null,null,null,null,null,null,null,null,"9223B-97-COLILERT","9223B-97",null,null,null,null,null,null,null,null,null,null,null,null,"9223B-97-COLILERT","COLILERT",null,null,null,true]
[null,null,null,null,null,null,null,null,null,null,null,null,null,null,null,null,null,null,null,null,null,null,null,null,null,null,null,"9223B-97-COLILERT-18","9223B-97",null,null,null,null,null,null,null,null,null,null,null,null,"9223B-97-COLILERT-18","COLILERT-18",null,null,null,true]
[null,null,null,null,null,null,null,null,null,null,null,null,null,null,null,null,null,null,null,null,null,null,null,null,null,null,null,"9223B-97-COLISURE","9223B-97",null,null,null,null,null,null,null,null,null,null,null,null,"9223B-97-COLISURE","COLISURE",null,null,null,true]
[null,null,null,null,null,null,null,null,null,null,null,null,null,null,null,null,null,null,null,null,null,null,null,null,null,null,null,"9223B-97-ONPG-MUG Test","9223B-97",null,null,null,null,null,null,null,null,null,null,null,null,"9223B-97-ONPG-MUG Test","ONPG-MUG Test",null,null,null,true]
[null,null,null,null,null,null,null,null,null,null,null,null,null,null,null,null,null,null,null,null,null,null,null,null,null,null,null,"9223B-MPN-SM 9223 MPN","9223B-MPN",null,null,null,null,null,null,null,null,null,null,null,null,"9223B-MPN-SM 9223 MPN","SM 9223 MPN",null,null,null,true]
[null,null,null,null,null,null,null,null,null,null,null,null,null,null,null,null,null,null,null,null,null,null,null,null,null,null,null,"9223B-MW-SM 9223B Multiple Well","9223B-MW",null,null,null,null,null,null,null,null,null,null,null,null,"9223B-MW-SM 9223B Multiple Well","SM 9223B Multiple Well",null,null,null,true]
[null,null,null,null,null,null,null,null,null,null,null,null,null,null,null,null,null,null,null,null,null,null,null,null,null,null,null,"9223B-PA-COLILERT - PRESENCE/ABSENCE","9223B-PA",null,null,null,null,null,null,null,null,null,null,null,null,"9223B-PA-COLILERT - PRESENCE/ABSENCE","COLILERT - PRESENCE/ABSENCE",null,null,null,true]
[null,null,null,null,null,null,null,null,null,null,null,null,null,null,null,null,null,null,null,null,null,null,null,null,null,null,null,"9223B-QT-COLILERT - QUANTITRAY","9223B-QT",null,null,null,null,null,null,null,null,null,null,null,null,"9223B-QT-COLILERT - QUANTITRAY","COLILERT - QUANTITRAY",null,null,null,true]
[null,null,null,null,null,null,null,null,null,null,null,null,null,null,null,null,null,null,null,null,null,null,null,null,null,null,null,"9230B-FERMENTATION TUBE - MULTIPLE","9230B",null,null,null,null,null,null,null,null,null,null,null,null,"9230B-FERMENTATION TUBE - MULTIPLE","FERMENTATION TUBE - MULTIPLE",null,null,null,true]
[null,null,null,null,null,null,null,null,null,null,null,null,null,null,null,null,null,null,null,null,null,null,null,null,null,null,null,"9230B-04-Multiple-Tube Technique","9230B-04",null,null,null,null,null,null,null,null,null,null,null,null,"9230B-04-Multiple-Tube Technique","Multiple-Tube Technique",null,null,null,true]
[null,null,null,null,null,null,null,null,null,null,null,null,null,null,null,null,null,null,null,null,null,null,null,null,null,null,null,"9230B-10-FERMENTATION TUBE - 5","9230B-10",null,null,null,null,null,null,null,null,null,null,null,null,"9230B-10-FERMENTATION TUBE - 5","FERMENTATION TUBE - 5",null,null,null,true]
[null,null,null,null,null,null,null,null,null,null,null,null,null,null,null,null,null,null,null,null,null,null,null,null,null,null,null,"9230B-5-FERMENTATION TUBE - 10","9230B-5",null,null,null,null,null,null,null,null,null,null,null,null,"9230B-5-FERMENTATION TUBE - 10","FERMENTATION TUBE - 10",null,null,null,true]
[null,null,null,null,null,null,null,null,null,null,null,null,null,null,null,null,null,null,null,null,null,null,null,null,null,null,null,"9230C-MEMBRANE FILTER","9230C",null,null,null,null,null,null,null,null,null,null,null,null,"9230C-MEMBRANE FILTER","MEMBRANE FILTER",null,null,null,true]
[null,null,null,null,null,null,null,null,null,null,null,null,null,null,null,null,null,null,null,null,null,null,null,null,null,null,null,"9260J-LEGIONALLACEAE","9260J",null,null,null,null,null,null,null,null,null,null,null,null,"9260J-LEGIONALLACEAE","LEGIONALLACEAE",null,null,null,true]
[null,null,null,null,null,null,null,null,null,null,null,null,null,null,null,null,null,null,null,null,null,null,null,null,null,null,null,"9711B-GIARDIA LAMBLIA","9711B",null,null,null,null,null,null,null,null,null,null,null,null,"9711B-GIARDIA LAMBLIA","GIARDIA LAMBLIA",null,null,null,true]
[null,null,null,null,null,null,null,null,null,null,null,null,null,null,null,null,null,null,null,null,null,null,null,null,null,null,null,"976-EPA 1623","976",null,null,null,null,null,null,null,null,null,null,null,null,"976-EPA 1623","EPA 1623",null,null,null,true]
[null,null,null,null,null,null,null,null,null,null,null,null,null,null,null,null,null,null,null,null,null,null,null,null,null,null,null,"AMI Turbiwell.15-LED Nephelometry (on-line)","AMI Turbiwell.15",null,null,null,null,null,null,null,null,null,null,null,null,"AMI Turbiwell.15-LED Nephelometry (on-line)","LED Nephelometry (on-line)",null,null,null,true]
[null,null,null,null,null,null,null,null,null,null,null,null,null,null,null,null,null,null,null,null,null,null,null,null,null,null,null,"CHROMOCULT MF AGAR-CHROMOCULT COLIFORM MF AGAR","CHROMOCULT MF AGAR",null,null,null,null,null,null,null,null,null,null,null,null,"CHROMOCULT MF AGAR-CHROMOCULT COLIFORM MF AGAR","CHROMOCULT COLIFORM MF AGAR",null,null,null,true]
[null,null,null,null,null,null,null,null,null,null,null,null,null,null,null,null,null,null,null,null,null,null,null,null,null,null,null,"COLISCAN-COLISCAN","COLISCAN",null,null,null,null,null,null,null,null,null,null,null,null,"COLISCAN-COLISCAN","COLISCAN",null,null,null,true]
[null,null,null,null,null,null,null,null,null,null,null,null,null,null,null,null,null,null,null,null,null,null,null,null,null,null,null,"COLISURE-COLISURE REAGENT","COLISURE",null,null,null,null,null,null,null,null,null,null,null,null,"COLISURE-COLISURE REAGENT","COLISURE REAGENT",null,null,null,{"$f":"(AB168=AP168)","v":true}]
[null,null,null,null,null,null,null,null,null,null,null,null,null,null,null,null,null,null,null,null,null,null,null,null,null,null,null,"COLISURE-5-COLISURE - 5 TUBES","COLISURE-5",null,null,null,null,null,null,null,null,null,null,null,null,"COLISURE-5-COLISURE - 5 TUBES","COLISURE - 5 TUBES",null,null,null,true]
[null,null,null,null,null,null,null,null,null,null,null,null,null,null,null,null,null,null,null,null,null,null,null,null,null,null,null,"COLISURE-PA-COLISURE - PRESENCE/ABSENCE","COLISURE-PA",null,null,null,null,null,null,null,null,null,null,null,null,"COLISURE-PA-COLISURE - PRESENCE/ABSENCE","COLISURE - PRESENCE/ABSENCE",null,null,null,true]
[null,null,null,null,null,null,null,null,null,null,null,null,null,null,null,null,null,null,null,null,null,null,null,null,null,null,null,"COLISURE-QT-COLISURE – QUANTITRAY (MPN)","COLISURE-QT",null,null,null,null,null,null,null,null,null,null,null,null,"COLISURE-QT-COLISURE – QUANTITRAY (MPN)","COLISURE – QUANTITRAY (MPN)",null,null,null,true]
[null,null,null,null,null,null,null,null,null,null,null,null,null,null,null,null,null,null,null,null,null,null,null,null,null,null,null,"COLITAG-COLITAG","COLITAG",null,null,null,null,null,null,null,null,null,null,null,null,"COLITAG-COLITAG","COLITAG",null,null,null,true]
[null,null,null,null,null,null,null,null,null,null,null,null,null,null,null,null,null,null,null,null,null,null,null,null,null,null,null,"ChlordioX Plus.32-Amperometric Sensor","ChlordioX Plus.32",null,null,null,null,null,null,null,null,null,null,null,null,"ChlordioX Plus.32-Amperometric Sensor","Amperometric Sensor",null,null,null,true]
[null,null,null,null,null,null,null,null,null,null,null,null,null,null,null,null,null,null,null,null,null,null,null,null,null,null,null,"ChloroSense-ChloroSense","ChloroSense",null,null,null,null,null,null,null,null,null,null,null,null,"ChloroSense-ChloroSense","ChloroSense",null,null,null,true]
[null,null,null,null,null,null,null,null,null,null,null,null,null,null,null,null,null,null,null,null,null,null,null,null,null,null,null,"ChloroSense.17-Amperometric Sensor","ChloroSense.17",null,null,null,null,null,null,null,null,null,null,null,null,"ChloroSense.17-Amperometric Sensor","Amperometric Sensor",null,null,null,true]
[null,null,null,null,null,null,null,null,null,null,null,null,null,null,null,null,null,null,null,null,null,null,null,null,null,null,null,"Colilert-18-COLILERT-18","Colilert-18",null,null,null,null,null,null,null,null,null,null,null,null,"Colilert-18-COLILERT-18","COLILERT-18",null,null,null,true]
[null,null,null,null,null,null,null,null,null,null,null,null,null,null,null,null,null,null,null,null,null,null,null,null,null,null,null,"D1067-02B-D1067-02B","D1067-02B",null,null,null,null,null,null,null,null,null,null,null,null,"D1067-02B-D1067-02B","D1067-02B",null,null,null,true]
[null,null,null,null,null,null,null,null,null,null,null,null,null,null,null,null,null,null,null,null,null,null,null,null,null,null,null,"D1067-06B-D1067-06B","D1067-06B",null,null,null,null,null,null,null,null,null,null,null,null,"D1067-06B-D1067-06B","D1067-06B",null,null,null,true]
[null,null,null,null,null,null,null,null,null,null,null,null,null,null,null,null,null,null,null,null,null,null,null,null,null,null,null,"D1067-11B-D1067-11B","D1067-11B",null,null,null,null,null,null,null,null,null,null,null,null,"D1067-11B-D1067-11B","D1067-11B",null,null,null,true]
[null,null,null,null,null,null,null,null,null,null,null,null,null,null,null,null,null,null,null,null,null,null,null,null,null,null,null,"D1067-88B-TITRIMETRIC","D1067-88B",null,null,null,null,null,null,null,null,null,null,null,null,"D1067-88B-TITRIMETRIC","TITRIMETRIC",null,null,null,true]
[null,null,null,null,null,null,null,null,null,null,null,null,null,null,null,null,null,null,null,null,null,null,null,null,null,null,null,"D1067-92B-TITRIMETRIC","D1067-92B",null,null,null,null,null,null,null,null,null,null,null,null,"D1067-92B-TITRIMETRIC","TITRIMETRIC",null,null,null,true]
[null,null,null,null,null,null,null,null,null,null,null,null,null,null,null,null,null,null,null,null,null,null,null,null,null,null,null,"D1125-91A-CONDUCTANCE AT 25C","D1125-91A",null,null,null,null,null,null,null,null,null,null,null,null,"D1125-91A-CONDUCTANCE AT 25C","CONDUCTANCE AT 25C",null,null,null,true]
[null,null,null,null,null,null,null,null,null,null,null,null,null,null,null,null,null,null,null,null,null,null,null,null,null,null,null,"D1253-03-D1253-03","D1253-03",null,null,null,null,null,null,null,null,null,null,null,null,"D1253-03-D1253-03","D1253-03",null,null,null,true]
[null,null,null,null,null,null,null,null,null,null,null,null,null,null,null,null,null,null,null,null,null,null,null,null,null,null,null,"D1253-08-D1253-08","D1253-08",null,null,null,null,null,null,null,null,null,null,null,null,"D1253-08-D1253-08","D1253-08",null,null,null,true]
[null,null,null,null,null,null,null,null,null,null,null,null,null,null,null,null,null,null,null,null,null,null,null,null,null,null,null,"D1253-86-D1253-86","D1253-86",null,null,null,null,null,null,null,null,null,null,null,null,"D1253-86-D1253-86","D1253-86",null,null,null,true]
[null,null,null,null,null,null,null,null,null,null,null,null,null,null,null,null,null,null,null,null,null,null,null,null,null,null,null,"D1293-12-D1293-12","D1293-12",null,null,null,null,null,null,null,null,null,null,null,null,"D1293-12-D1293-12","D1293-12",null,null,null,true]
[null,null,null,null,null,null,null,null,null,null,null,null,null,null,null,null,null,null,null,null,null,null,null,null,null,null,null,"D1293-84B-ELECTROMETRIC-ONLINE MEASUREMENT","D1293-84B",null,null,null,null,null,null,null,null,null,null,null,null,"D1293-84B-ELECTROMETRIC-ONLINE MEASUREMENT","ELECTROMETRIC-ONLINE MEASUREMENT",null,null,null,true]
[null,null,null,null,null,null,null,null,null,null,null,null,null,null,null,null,null,null,null,null,null,null,null,null,null,null,null,"D1293-95-ELECTROMETRIC-ONLINE MEASUREMENT","D1293-95",null,null,null,null,null,null,null,null,null,null,null,null,"D1293-95-ELECTROMETRIC-ONLINE MEASUREMENT","ELECTROMETRIC-ONLINE MEASUREMENT",null,null,null,true]
[null,null,null,null,null,null,null,null,null,null,null,null,null,null,null,null,null,null,null,null,null,null,null,null,null,null,null,"D1293-99-D1293-99","D1293-99",null,null,null,null,null,null,null,null,null,null,null,null,"D1293-99-D1293-99","D1293-99",null,null,null,true]
[null,null,null,null,null,null,null,null,null,null,null,null,null,null,null,null,null,null,null,null,null,null,null,null,null,null,null,"D4327-91-ION CHROMATOGRAPHY","D4327-91",null,null,null,null,null,null,null,null,null,null,null,null,"D4327-91-ION CHROMATOGRAPHY","ION CHROMATOGRAPHY",null,null,null,true]
[null,null,null,null,null,null,null,null,null,null,null,null,null,null,null,null,null,null,null,null,null,null,null,null,null,null,null,"D511-09A-D511-09A","D511-09A",null,null,null,null,null,null,null,null,null,null,null,null,"D511-09A-D511-09A","D511-09A",null,null,null,true]
[null,null,null,null,null,null,null,null,null,null,null,null,null,null,null,null,null,null,null,null,null,null,null,null,null,null,null,"D511-09B-D511-09B","D511-09B",null,null,null,null,null,null,null,null,null,null,null,null,"D511-09B-D511-09B","D511-09B",null,null,null,true]
[null,null,null,null,null,null,null,null,null,null,null,null,null,null,null,null,null,null,null,null,null,null,null,null,null,null,null,"D511-93A-EDTA TITRIMETRIC","D511-93A",null,null,null,null,null,null,null,null,null,null,null,null,"D511-93A-EDTA TITRIMETRIC","EDTA TITRIMETRIC",null,null,null,true]
[null,null,null,null,null,null,null,null,null,null,null,null,null,null,null,null,null,null,null,null,null,null,null,null,null,null,null,"D511-93B-ATOMIC ABSORPTION DIRECT ASPIRATION","D511-93B",null,null,null,null,null,null,null,null,null,null,null,null,"D511-93B-ATOMIC ABSORPTION DIRECT ASPIRATION","ATOMIC ABSORPTION DIRECT ASPIRATION",null,null,null,true]
[null,null,null,null,null,null,null,null,null,null,null,null,null,null,null,null,null,null,null,null,null,null,null,null,null,null,null,"D515-88A-COLORIMETRIC, MANUAL","D515-88A",null,null,null,null,null,null,null,null,null,null,null,null,"D515-88A-COLORIMETRIC, MANUAL","COLORIMETRIC, MANUAL",null,null,null,true]
[null,null,null,null,null,null,null,null,null,null,null,null,null,null,null,null,null,null,null,null,null,null,null,null,null,null,null,"D6919-03-D6919-03","D6919-03",null,null,null,null,null,null,null,null,null,null,null,null,"D6919-03-D6919-03","D6919-03",null,null,null,true]
[null,null,null,null,null,null,null,null,null,null,null,null,null,null,null,null,null,null,null,null,null,null,null,null,null,null,null,"D6919-09-ION CHROMATOGRAPHY","D6919-09",null,null,null,null,null,null,null,null,null,null,null,null,"D6919-09-ION CHROMATOGRAPHY","ION CHROMATOGRAPHY",null,null,null,true]
[null,null,null,null,null,null,null,null,null,null,null,null,null,null,null,null,null,null,null,null,null,null,null,null,null,null,null,"E*COLITE-E*COLITE","E*COLITE",null,null,null,null,null,null,null,null,null,null,null,null,"E*COLITE-E*COLITE","E*COLITE",null,null,null,true]
[null,null,null,null,null,null,null,null,null,null,null,null,null,null,null,null,null,null,null,null,null,null,null,null,null,null,null,"ENTEROLERT-ENTEROLERT","ENTEROLERT",null,null,null,null,null,null,null,null,null,null,null,null,"ENTEROLERT-ENTEROLERT","ENTEROLERT",null,null,null,true]
[null,null,null,null,null,null,null,null,null,null,null,null,null,null,null,null,null,null,null,null,null,null,null,null,null,null,null,"EPA 1615-EPA 1615","EPA 1615",null,null,null,null,null,null,null,null,null,null,null,null,"EPA 1615-EPA 1615","EPA 1615",null,null,null,{"$f":"(AB200=AP200)","v":true}]
[null,null,null,null,null,null,null,null,null,null,null,null,null,null,null,null,null,null,null,null,null,null,null,null,null,null,null,"HACH 10258 (2016)-360 DEGREE NEPHELOMETRY (LASER)","HACH 10258 (2016)",null,null,null,null,null,null,null,null,null,null,null,null,"HACH 10258 (2016)-360 DEGREE NEPHELOMETRY (LASER)","360 DEGREE NEPHELOMETRY (LASER)",null,null,null,true]
[null,null,null,null,null,null,null,null,null,null,null,null,null,null,null,null,null,null,null,null,null,null,null,null,null,null,null,"I-1030-85-TITRIMETRIC","I-1030-85",null,null,null,null,null,null,null,null,null,null,null,null,"I-1030-85-TITRIMETRIC","TITRIMETRIC",null,null,null,true]
[null,null,null,null,null,null,null,null,null,null,null,null,null,null,null,null,null,null,null,null,null,null,null,null,null,null,null,"I-1601-85-COLORIMETRIC-MOLYBDATE BLUE","I-1601-85",null,null,null,null,null,null,null,null,null,null,null,null,"I-1601-85-COLORIMETRIC-MOLYBDATE BLUE","COLORIMETRIC-MOLYBDATE BLUE",null,null,null,true]
[null,null,null,null,null,null,null,null,null,null,null,null,null,null,null,null,null,null,null,null,null,null,null,null,null,null,null,"I-2598-85-COLORIMETRIC, AUTO; DISCRETE","I-2598-85",null,null,null,null,null,null,null,null,null,null,null,null,"I-2598-85-COLORIMETRIC, AUTO; DISCRETE","COLORIMETRIC, AUTO; DISCRETE",null,null,null,true]
[null,null,null,null,null,null,null,null,null,null,null,null,null,null,null,null,null,null,null,null,null,null,null,null,null,null,null,"I-2601-90-COLORIMETRIC, AUTO; SEGMENTED","I-2601-90",null,null,null,null,null,null,null,null,null,null,null,null,"I-2601-90-COLORIMETRIC, AUTO; SEGMENTED","COLORIMETRIC, AUTO; SEGMENTED",null,null,null,true]
[null,null,null,null,null,null,null,null,null,null,null,null,null,null,null,null,null,null,null,null,null,null,null,null,null,null,null,"M-COLIBLUE24-M-COLIBLUE24","M-COLIBLUE24",null,null,null,null,null,null,null,null,null,null,null,null,"M-COLIBLUE24-M-COLIBLUE24","M-COLIBLUE24",null,null,null,true]
[null,null,null,null,null,null,null,null,null,null,null,null,null,null,null,null,null,null,null,null,null,null,null,null,null,null,null,"MODIFIED COLITAG-MODIFIED COLITAG","MODIFIED COLITAG",null,null,null,null,null,null,null,null,null,null,null,null,"MODIFIED COLITAG-MODIFIED COLITAG","MODIFIED COLITAG",null,null,null,true]
[null,null,null,null,null,null,null,null,null,null,null,null,null,null,null,null,null,null,null,null,null,null,null,null,null,null,null,"Method 2-Method 2","Method 2",null,null,null,null,null,null,null,null,null,null,null,null,"Method 2-Method 2","Method 2",null,null,null,true]
[null,null,null,null,null,null,null,null,null,null,null,null,null,null,null,null,null,null,null,null,null,null,null,null,null,null,null,"Mitchell M5271.10-Laser Nephelometry (on-line)","Mitchell M5271.10",null,null,null,null,null,null,null,null,null,null,null,null,"Mitchell M5271.10-Laser Nephelometry (on-line)","Laser Nephelometry (on-line)",null,null,null,true]
[null,null,null,null,null,null,null,null,null,null,null,null,null,null,null,null,null,null,null,null,null,null,null,null,null,null,null,"Mitchell M5331.11-LED Nephelometry (on-line)","Mitchell M5331.11",null,null,null,null,null,null,null,null,null,null,null,null,"Mitchell M5331.11-LED Nephelometry (on-line)","LED Nephelometry (on-line)",null,null,null,true]
[null,null,null,null,null,null,null,null,null,null,null,null,null,null,null,null,null,null,null,null,null,null,null,null,null,null,null,"NUTRIENT AGAR & MUG-NUTRIENT AGAR AND MUG","NUTRIENT AGAR & MUG",null,null,null,null,null,null,null,null,null,null,null,null,"NUTRIENT AGAR & MUG-NUTRIENT AGAR AND MUG","NUTRIENT AGAR AND MUG",null,null,null,true]
[null,null,null,null,null,null,null,null,null,null,null,null,null,null,null,null,null,null,null,null,null,null,null,null,null,null,null,"Orion AQ4500.12-LED Nephelometry (portable)","Orion AQ4500.12",null,null,null,null,null,null,null,null,null,null,null,null,"Orion AQ4500.12-LED Nephelometry (portable)","LED Nephelometry (portable)",null,null,null,true]
[null,null,null,null,null,null,null,null,null,null,null,null,null,null,null,null,null,null,null,null,null,null,null,null,null,null,null,"READYCULT 100-READYCULT COLIFORMS 100","READYCULT 100",null,null,null,null,null,null,null,null,null,null,null,null,"READYCULT 100-READYCULT COLIFORMS 100","READYCULT COLIFORMS 100",null,null,null,true]
[null,null,null,null,null,null,null,null,null,null,null,null,null,null,null,null,null,null,null,null,null,null,null,null,null,null,null,"SIMPLATE-SIMPLATE","SIMPLATE",null,null,null,null,null,null,null,null,null,null,null,null,"SIMPLATE-SIMPLATE","SIMPLATE",null,null,null,true]
[null,null,null,null,null,null,null,null,null,null,null,null,null,null,null,null,null,null,null,null,null,null,null,null,null,null,null,"SIMPLATE-SIMPLATE FOR HPC","SIMPLATE",null,null,null,null,null,null,null,null,null,null,null,null,"SIMPLATE-SIMPLATE FOR HPC","SIMPLATE FOR HPC",null,null,null,true]
[null,null,null,null,null,null,null,null,null,null,null,null,null,null,null,null,null,null,null,null,null,null,null,null,null,null,null,"SM 9222G.1C(2)‐1997-EC + MUG","SM 9222G.1C(2)‐1997",null,null,null,null,null,null,null,null,null,null,null,null,"SM 9222G.1C(2)‐1997-EC + MUG","EC + MUG",null,null,null,true]
[null,null,null,null,null,null,null,null,null,null,null,null,null,null,null,null,null,null,null,null,null,null,null,null,null,null,null,"Tecta EC/TC .33-TECTA EC/TC .33","Tecta EC/TC .33",null,null,null,null,null,null,null,null,null,null,null,null,"Tecta EC/TC .33-TECTA EC/TC .33","TECTA EC/TC .33",null,null,null,true]
[null,null,null,null,null,null,null,null,null,null,null,null,null,null,null,null,null,null,null,null,null,null,null,null,null,null,null,"Tecta EC/TC.33-TECTA EC/TC.33","Tecta EC/TC.33",null,null,null,null,null,null,null,null,null,null,null,null,"Tecta EC/TC.33-TECTA EC/TC.33","TECTA EC/TC.33",null,null,null,true]
[null,null,null,null,null,null,null,null,null,null,null,null,null,null,null,null,null,null,null,null,null,null,null,null,null,null,null,"UOM-UOM","UOM",null,null,null,null,null,null,null,null,null,null,null,null,"UOM-UOM","UOM"]

{"sheet":"Excel Val. Chems","index":6,"n_rows":763,"n_cols":45,"rows_kept":763,"cut":false,"hidden":true,"merged":[]}
["Chemicals-Radionuclides Template Validations"]
["Field","Reporting Lab","Sample ID","WS ID","Facility ID","Sampling Point ID","Sampling Location","Collection Date","Collection Time","Sample Type",null,"Sample Volume",null,"Repeat Location","Original Sample","Comment","Analyte*",null,"Not Detected",null,"Result","Result UOM","Standard Deviation (+/-)","Reporting Limit","Reporting Limit UOM","Volume Assayed",null,"Method NM","Method CD","Analysis Start Time","Analysis Completed Date","Analysis Completed Time","Analyzing Lab","Comments","Parameter",null,"Result","UOM",null,"Method","Comment","Method NM","Method Name"]
["Validation","None","None","None","None","None","None","Less than or equal to Today()","Between 00:00 and 23:59","List of values",null,"List of values",null,"Original Site",null,"None","List of values",null,"List of values",null,"None","List of values","None","None","List of values","List of values",null,"100.1-TRANSMISSION ELECTRON MICROSCOPY","100.1","Between 00:00 and 23:59","Greater than or equal to Analysis Start Date","Between 00:00 and 23:59","None","None","List of values",null,"None","List of values",null,"List of values?","None","100.1-TRANSMISSION ELECTRON MICROSCOPY","TRANSMISSION ELECTRON MICROSCOPY",null,{"$f":"(AB3=AP3)","v":true}]
["Extra (Values)",null,null,null,null,null,null,{"$f":"TODAY()","v":"2026-07-02"},null,"Routine","RT","100 ml","100 ml","Downstream",null,null,"0100-TURBIDITY","0100","Yes","true",null,"MFL",null,null,"MFL","1 ml","1 ml","100.2-TRANSMISSION ELECTRON MICROSCOPY","100.2",null,null,null,null,null,"0100 - Turbidity","0100",null,"mg/L","mg/L",null,null,"100.2-TRANSMISSION ELECTRON MICROSCOPY","TRANSMISSION ELECTRON MICROSCOPY",null,true]
[null,null,null,null,null,null,null,null,null,"Repeat","RP","200 ml","200 ml","Upstream",null,null,"0999-CHLORINE","0999","No","false",null,"pCi/L",null,null,"pCi/L","5 ml","5 ml","10133-10133","10133",null,null,null,null,null,"0999 - Chlorine","0999",null,"Fahrenheit","F",null,null,"10133-10133","10133",null,true]
[null,null,null,null,null,null,null,null,null,"Triggered","TG","300 ml","300 ml","Source",null,null,"1000-TOTAL CHLORINE","1000",null,null,null,"ng/L",null,null,"ng/L","10 ml","10 ml","10206-HACH METHOD","10206",null,null,null,null,null,"1006 - Chloramine","1006",null,"Celsius","C",null,null,"10206-HACH METHOD","HACH METHOD",null,true]
[null,null,null,null,null,null,null,null,null,"Confirmation","CO","400 ml","400 ml","Alternative (RTCR)",null,null,"1001-COMBINED CHLORINE","1001",null,null,null,"ug/L",null,null,"ug/L","100 ml","100 ml","10225-10225","10225",null,null,null,null,null,"1012 - Total Chlorine Residual","1012",null,"NTU","NTU",null,null,"10225-10225","10225",null,true]
[null,null,null,null,null,null,null,null,null,"Special","SP","500 ml","500 ml","Other (TCR)",null,null,"1002-ALUMINUM","1002",null,null,null,"mg/L",null,null,"mg/L","400 ml","400 ml","110.2-VISUAL COMPARISON METHOD","110.2",null,null,null,null,null,"1013 - Free Chlorine Residual","1013",null,"pH","ph",null,null,"110.2-VISUAL COMPARISON METHOD","VISUAL COMPARISON METHOD",null,true]
[null,null,null,null,null,null,null,null,null,"Batch Blanks","BB","1 liter","1 liter",null,null,null,"1003-NITROGEN-AMMONIA AS (N)","1003",null,null,null,"CU",null,null,"CU","500 ml","500 ml","120.1-CONDUCTANCE AT 25C","120.1",null,null,null,null,null,"1925 - pH","1925",null,"mL","mL",null,null,"120.1-CONDUCTANCE AT 25C","CONDUCTANCE AT 25C",null,true]
[null,null,null,null,null,null,null,null,null,"Field Blanks","FB",null,null,null,null,null,"1004-BROMIDE","1004",null,null,null,"TON",null,null,"TON",null,null,"129-71W-AUTOMATED ALIZARIN FLUORIDE BLUE, TECHNI","129-71W",null,null,null,null,null,"1996 - Temperature","1996",null,"L","L",null,null,"129-71W-AUTOMATED ALIZARIN FLUORIDE BLUE, TECHNI","AUTOMATED ALIZARIN FLUORIDE BLUE, TECHNI",null,true]
[null,null,null,null,null,null,null,null,null,"Performance Evaluation","PE",null,null,null,null,null,"1005-ARSENIC","1005",null,null,null,"umho/cm",null,null,"umho/cm",null,null,"130-THERMOMETRIC","130",null,null,null,null,null,"1905 - Color","1905",null,"CU","CU",null,null,"130-THERMOMETRIC","THERMOMETRIC",null,true]
[null,null,null,null,null,null,null,null,null,"Shipping Blanks","SB",null,null,null,null,null,"1006-CHLORAMINE","1006",null,null,null,"ph",null,null,"ph",null,null,"150.1-ELECTROMETRIC-INDIVIDUAL MEASUREMENT","150.1",null,null,null,null,null,null,null,null,null,null,null,null,"150.1-ELECTROMETRIC-INDIVIDUAL MEASUREMENT","ELECTROMETRIC-INDIVIDUAL MEASUREMENT",null,true]
[null,null,null,null,null,null,null,null,null,"Split Blanks","ST",null,null,null,null,null,"1007-CHLORATE","1007",null,null,null,"NTU",null,null,"NTU",null,null,"150.2-ELECTROMETRIC-ONLINE MEASUREMENT","150.2",null,null,null,null,null,null,null,null,null,null,null,null,"150.2-ELECTROMETRIC-ONLINE MEASUREMENT","ELECTROMETRIC-ONLINE MEASUREMENT",null,true]
[null,null,null,null,null,null,null,null,null,"Maximum Residence Time","MR",null,null,null,null,null,"1008-CHLORINE DIOXIDE","1008",null,null,null,"LANG",null,null,"LANG",null,null,"1613-HIGH RES GCMS-CAPCOL- L/L EXTRACTION","1613",null,null,null,null,null,null,null,null,null,null,null,null,"1613-HIGH RES GCMS-CAPCOL- L/L EXTRACTION","HIGH RES GCMS-CAPCOL- L/L EXTRACTION",null,true]
[null,null,null,null,null,null,null,null,null,"Matrix Spike","MS",null,null,null,null,null,"1009-CHLORITE","1009",null,null,null,"C",null,null,"C",null,null,"1613B-DIOXINS, TETRA-THRU OCTA--(CDDS) AND FURAN","1613B",null,null,null,null,null,null,null,null,null,null,null,null,"1613B-DIOXINS, TETRA-THRU OCTA--(CDDS) AND FURAN","DIOXINS, TETRA-THRU OCTA--(CDDS) AND FURAN",null,true]
[null,null,null,null,null,null,null,null,null,null,null,null,null,null,null,null,"1010-BARIUM","1010",null,null,null,"ML",null,null,"ML",null,null,"180.1-180.1","180.1",null,null,null,null,null,null,null,null,null,null,null,null,"180.1-180.1","180.1",null,true]
[null,null,null,null,null,null,null,null,null,null,null,null,null,null,null,null,"1011-BROMATE","1011",null,null,null,"GAL",null,null,"GAL",null,null,"200.5-Axially viewed inductively coupled plasma-atomic emission spectrometry (AVICP-AES)","200.5",null,null,null,null,null,null,null,null,null,null,null,null,"200.5-Axially viewed inductively coupled plasma-atomic emission spectrometry (AVICP-AES)","Axially viewed inductively coupled plasma-atomic emission spectrometry (AVICP-AES)",null,true]
[null,null,null,null,null,null,null,null,null,null,null,null,null,null,null,null,"1012-TOTALCHLORINERESIDUAL","1012",null,null,null,"L",null,null,"L",null,null,"200.7-INDUCTIVELY COUPLED PLASMA","200.7",null,null,null,null,null,null,null,null,null,null,null,null,"200.7-INDUCTIVELY COUPLED PLASMA","INDUCTIVELY COUPLED PLASMA",null,true]
[null,null,null,null,null,null,null,null,null,null,null,null,null,null,null,null,"1013-FREECHLORINERESIDUAL","1013",null,null,null,"MREM",null,null,"MREM",null,null,"200.8-INDUCTIVELY COUPLED PLASMA MASS SPECTROM","200.8",null,null,null,null,null,null,null,null,null,null,null,null,"200.8-INDUCTIVELY COUPLED PLASMA MASS SPECTROM","INDUCTIVELY COUPLED PLASMA MASS SPECTROM",null,true]
[null,null,null,null,null,null,null,null,null,null,null,null,null,null,null,null,"1014-OZONE RESIDUAL","1014",null,null,null,"MREMY",null,null,"MREMY",null,null,"200.9-ATOMIC ABSORPTION, PLATFORM","200.9",null,null,null,null,null,null,null,null,null,null,null,null,"200.9-ATOMIC ABSORPTION, PLATFORM","ATOMIC ABSORPTION, PLATFORM",null,true]
[null,null,null,null,null,null,null,null,null,null,null,null,null,null,null,null,"1015-CADMIUM","1015",null,null,null,"nm",null,null,"nm",null,null,"202.1-ATOMIC ABSORPTION DIRECT ASPIRATION","202.1",null,null,null,null,null,null,null,null,null,null,null,null,"202.1-ATOMIC ABSORPTION DIRECT ASPIRATION","ATOMIC ABSORPTION DIRECT ASPIRATION",null,true]
[null,null,null,null,null,null,null,null,null,null,null,null,null,null,null,null,"1016-CALCIUM","1016",null,null,null,"cm-1",null,null,"cm-1",null,null,"202.2-ATOMIC ABSORPTION, FURNACE","202.2",null,null,null,null,null,null,null,null,null,null,null,null,"202.2-ATOMIC ABSORPTION, FURNACE","ATOMIC ABSORPTION, FURNACE",null,true]
[null,null,null,null,null,null,null,null,null,null,null,null,null,null,null,null,"1017-CHLORIDE","1017",null,null,null,"L/mg-M",null,null,"L/mg-M",null,null,"2120B-VISUAL COMPARISON METHOD","2120B",null,null,null,null,null,null,null,null,null,null,null,null,"2120B-VISUAL COMPARISON METHOD","VISUAL COMPARISON METHOD",null,true]
[null,null,null,null,null,null,null,null,null,null,null,null,null,null,null,null,"1018-CARBON, TOTAL","1018",null,null,null,"AGGR",null,null,"AGGR",null,null,"2120B-01-2120 B-01","2120B-01",null,null,null,null,null,null,null,null,null,null,null,null,"2120B-01-2120 B-01","2120 B-01",null,true]
[null,null,null,null,null,null,null,null,null,null,null,null,null,null,null,null,"1019-CALCIUM","1019",null,null,null,null,null,null,null,null,null,"213.2-ATOMIC ABSORPTION, FURNACE","213.2",null,null,null,null,null,null,null,null,null,null,null,null,"213.2-ATOMIC ABSORPTION, FURNACE","ATOMIC ABSORPTION, FURNACE",null,true]
[null,null,null,null,null,null,null,null,null,null,null,null,null,null,null,null,"1020-CHROMIUM","1020",null,null,null,null,null,null,null,null,null,"2130B-NEPHELOMETRIC","2130B",null,null,null,null,null,null,null,null,null,null,null,null,"2130B-NEPHELOMETRIC","NEPHELOMETRIC",null,true]
[null,null,null,null,null,null,null,null,null,null,null,null,null,null,null,null,"1021-HYDROXIDE AS CALCIUM CARBONATE","1021",null,null,null,null,null,null,null,null,null,"2130B-01-2130B-01","2130B-01",null,null,null,null,null,null,null,null,null,null,null,null,"2130B-01-2130B-01","2130B-01",null,true]
[null,null,null,null,null,null,null,null,null,null,null,null,null,null,null,null,"1022-COPPER, FREE","1022",null,null,null,null,null,null,null,null,null,"2150B-Threshold Odor Test","2150B",null,null,null,null,null,null,null,null,null,null,null,null,"2150B-Threshold Odor Test","Threshold Odor Test",null,true]
[null,null,null,null,null,null,null,null,null,null,null,null,null,null,null,null,"1024-CYANIDE","1024",null,null,null,null,null,null,null,null,null,"2150B-97-2150B-97","2150B-97",null,null,null,null,null,null,null,null,null,null,null,null,"2150B-97-2150B-97","2150B-97",null,true]
[null,null,null,null,null,null,null,null,null,null,null,null,null,null,null,null,"1025-FLUORIDE","1025",null,null,null,null,null,null,null,null,null,"2320-TITRIMETRIC","2320",null,null,null,null,null,null,null,null,null,null,null,null,"2320-TITRIMETRIC","TITRIMETRIC",null,true]
[null,null,null,null,null,null,null,null,null,null,null,null,null,null,null,null,"1026-BICARBONATE AS HCO3","1026",null,null,null,null,null,null,null,null,null,"2320B-TITRIMETRIC","2320B",null,null,null,null,null,null,null,null,null,null,null,null,"2320B-TITRIMETRIC","TITRIMETRIC",null,true]
[null,null,null,null,null,null,null,null,null,null,null,null,null,null,null,null,"1027-HYDROGEN SULFIDE","1027",null,null,null,null,null,null,null,null,null,"2320B-97-2320B-97","2320B-97",null,null,null,null,null,null,null,null,null,null,null,null,"2320B-97-2320B-97","2320B-97",null,true]
[null,null,null,null,null,null,null,null,null,null,null,null,null,null,null,null,"1028-IRON","1028",null,null,null,null,null,null,null,null,null,"2330B-2330B","2330B",null,null,null,null,null,null,null,null,null,null,null,null,"2330B-2330B","2330B",null,true]
[null,null,null,null,null,null,null,null,null,null,null,null,null,null,null,null,"1029-IRON, SUSPENDED","1029",null,null,null,null,null,null,null,null,null,"2330B-CALCIUM CARBONATE SATURATION","2330B",null,null,null,null,null,null,null,null,null,null,null,null,"2330B-CALCIUM CARBONATE SATURATION","CALCIUM CARBONATE SATURATION",null,true]
[null,null,null,null,null,null,null,null,null,null,null,null,null,null,null,null,"1030-LEAD","1030",null,null,null,null,null,null,null,null,null,"2330B-Langlier Index; Corrosivity","2330B",null,null,null,null,null,null,null,null,null,null,null,null,"2330B-Langlier Index; Corrosivity","Langlier Index; Corrosivity",null,{"$f":"(AB36=AP36)","v":true}]
[null,null,null,null,null,null,null,null,null,null,null,null,null,null,null,null,"1031-MAGNESIUM","1031",null,null,null,null,null,null,null,null,null,"2340B-HARDNESS IN WATER BY CALCULATION","2340B",null,null,null,null,null,null,null,null,null,null,null,null,"2340B-HARDNESS IN WATER BY CALCULATION","HARDNESS IN WATER BY CALCULATION",null,true]
[null,null,null,null,null,null,null,null,null,null,null,null,null,null,null,null,"1032-MANGANESE","1032",null,null,null,null,null,null,null,null,null,"2340B-HARDNESS TOTAL AS CACO3","2340B",null,null,null,null,null,null,null,null,null,null,null,null,"2340B-HARDNESS TOTAL AS CACO3","HARDNESS TOTAL AS CACO3",null,true]
[null,null,null,null,null,null,null,null,null,null,null,null,null,null,null,null,"1033-MANGANESE, SUSPENDED","1033",null,null,null,null,null,null,null,null,null,"2340C-EDTA Titrimetric Method","2340C",null,null,null,null,null,null,null,null,null,null,null,null,"2340C-EDTA Titrimetric Method","2340C",null,true]
[null,null,null,null,null,null,null,null,null,null,null,null,null,null,null,null,"1034-MANGANESE, DISSOLVED","1034",null,null,null,null,null,null,null,null,null,"236.1-ATOMIC ABSORPTION DIRECT ASPIRATION","236.1",null,null,null,null,null,null,null,null,null,null,null,null,"236.1-ATOMIC ABSORPTION DIRECT ASPIRATION","ATOMIC ABSORPTION DIRECT ASPIRATION",null,true]
[null,null,null,null,null,null,null,null,null,null,null,null,null,null,null,null,"1035-MERCURY","1035",null,null,null,null,null,null,null,null,null,"236.2-ATOMIC ABSORPTION, FURNACE","236.2",null,null,null,null,null,null,null,null,null,null,null,null,"236.2-ATOMIC ABSORPTION, FURNACE","ATOMIC ABSORPTION, FURNACE",null,true]
[null,null,null,null,null,null,null,null,null,null,null,null,null,null,null,null,"1036-NICKEL","1036",null,null,null,null,null,null,null,null,null,"243.1-ATOMIC ABSORPTION DIRECT ASPIRATION","243.1",null,null,null,null,null,null,null,null,null,null,null,null,"243.1-ATOMIC ABSORPTION DIRECT ASPIRATION","ATOMIC ABSORPTION DIRECT ASPIRATION",null,true]
[null,null,null,null,null,null,null,null,null,null,null,null,null,null,null,null,"1037-TOTAL KJELDAHL NITROGEN (IN WATER MG/L)","1037",null,null,null,null,null,null,null,null,null,"243.2-ATOMIC ABSORPTION, FURNACE","243.2",null,null,null,null,null,null,null,null,null,null,null,null,"243.2-ATOMIC ABSORPTION, FURNACE","ATOMIC ABSORPTION, FURNACE",null,true]
[null,null,null,null,null,null,null,null,null,null,null,null,null,null,null,null,"1038-NITRATE-NITRITE","1038",null,null,null,null,null,null,null,null,null,"245.1-MANUAL COLD VAPOR TECHNIQUE","245.1",null,null,null,null,null,null,null,null,null,null,null,null,"245.1-MANUAL COLD VAPOR TECHNIQUE","MANUAL COLD VAPOR TECHNIQUE",null,true]
[null,null,null,null,null,null,null,null,null,null,null,null,null,null,null,null,"1039-PERCHLORATE","1039",null,null,null,null,null,null,null,null,null,"245.2-AUTOMATED COLD VAPOR TECHNIQUE","245.2",null,null,null,null,null,null,null,null,null,null,null,null,"245.2-AUTOMATED COLD VAPOR TECHNIQUE","AUTOMATED COLD VAPOR TECHNIQUE",null,true]
[null,null,null,null,null,null,null,null,null,null,null,null,null,null,null,null,"1040-NITRATE","1040",null,null,null,null,null,null,null,null,null,"2510B-CONDUCTANCE AT 25C","2510B",null,null,null,null,null,null,null,null,null,null,null,null,"2510B-CONDUCTANCE AT 25C","CONDUCTANCE AT 25C",null,true]
[null,null,null,null,null,null,null,null,null,null,null,null,null,null,null,null,"1041-NITRITE","1041",null,null,null,null,null,null,null,null,null,"2540C-Total Dissolved Solids Dried at 180 deg C","2540C",null,null,null,null,null,null,null,null,null,null,null,null,"2540C-Total Dissolved Solids Dried at 180 deg C","Total Dissolved Solids Dried at 180 deg C",null,true]
[null,null,null,null,null,null,null,null,null,null,null,null,null,null,null,null,"1042-POTASSIUM","1042",null,null,null,null,null,null,null,null,null,"2550-THERMOMETRIC","2550",null,null,null,null,null,null,null,null,null,null,null,null,"2550-THERMOMETRIC","THERMOMETRIC",null,true]
[null,null,null,null,null,null,null,null,null,null,null,null,null,null,null,null,"1043-PHOSPHATE, TOTAL","1043",null,null,null,null,null,null,null,null,null,"2550-00-2550-00","2550-00",null,null,null,null,null,null,null,null,null,null,null,null,"2550-00-2550-00","2550-00",null,true]
[null,null,null,null,null,null,null,null,null,null,null,null,null,null,null,null,"1044-ORTHOPHOSPHATE","1044",null,null,null,null,null,null,null,null,null,"272.2-ATOMIC ABSORPTION, FURNACE","272.2",null,null,null,null,null,null,null,null,null,null,null,null,"272.2-ATOMIC ABSORPTION, FURNACE","ATOMIC ABSORPTION, FURNACE",null,true]
[null,null,null,null,null,null,null,null,null,null,null,null,null,null,null,null,"1045-SELENIUM","1045",null,null,null,null,null,null,null,null,null,"300-ION CHROMATOGRAPHY","300",null,null,null,null,null,null,null,null,null,null,null,null,"300-ION CHROMATOGRAPHY","ION CHROMATOGRAPHY",null,true]
[null,null,null,null,null,null,null,null,null,null,null,null,null,null,null,null,"1046-PERCENT SODIUM","1046",null,null,null,null,null,null,null,null,null,"300.0-ION CHROMATOGRAPHY","300.0",null,null,null,null,null,null,null,null,null,null,null,null,"300.0-ION CHROMATOGRAPHY","ION CHROMATOGRAPHY",null,true]
[null,null,null,null,null,null,null,null,null,null,null,null,null,null,null,null,"1047-SODIUM ADSORPTION RATIO","1047",null,null,null,null,null,null,null,null,null,"300.0 Rev 2.1-Nitrate as N via EPA 300.0 Rev. 2.1, Aug. 1993 (Determination of Inorganic Anions by Ion Chromotography)","300.0 Rev 2.1",null,null,null,null,null,null,null,null,null,null,null,null,"300.0 Rev 2.1-Nitrate as N via EPA 300.0 Rev. 2.1, Aug. 1993 (Determination of Inorganic Anions by Ion Chromotography)","Nitrate as N via EPA 300.0 Rev. 2.1, Aug. 1993 (Determination of Inorganic Anions by Ion Chromotography)",null,true]
[null,null,null,null,null,null,null,null,null,null,null,null,null,null,null,null,"1048-TOTAL HARDNESS (GR/GAL)D","1048",null,null,null,null,null,null,null,null,null,"300.1-ION CHROMATOGRAPHY","300.1",null,null,null,null,null,null,null,null,null,null,null,null,"300.1-ION CHROMATOGRAPHY","ION CHROMATOGRAPHY",null,true]
[null,null,null,null,null,null,null,null,null,null,null,null,null,null,null,null,"1049-SILICA","1049",null,null,null,null,null,null,null,null,null,"302-Two-Dimensional Ion Chromatography (IC)","302",null,null,null,null,null,null,null,null,null,null,null,null,"302-Two-Dimensional Ion Chromatography (IC)","Two-Dimensional Ion Chromatography (IC)",null,true]
[null,null,null,null,null,null,null,null,null,null,null,null,null,null,null,null,"1050-SILVER","1050",null,null,null,null,null,null,null,null,null,"302.0, 18-Two-Dimensional Ion Chromatography (IC)","302.0, 18",null,null,null,null,null,null,null,null,null,null,null,null,"302.0, 18-Two-Dimensional Ion Chromatography (IC)","Two-Dimensional Ion Chromatography (IC)",null,true]
[null,null,null,null,null,null,null,null,null,null,null,null,null,null,null,null,"1051-STRONTIUM","1051",null,null,null,null,null,null,null,null,null,"304-304","304",null,null,null,null,null,null,null,null,null,null,null,null,"304-304","304",null,true]
[null,null,null,null,null,null,null,null,null,null,null,null,null,null,null,null,"1052-SODIUM","1052",null,null,null,null,null,null,null,null,null,"305-305","305",null,null,null,null,null,null,null,null,null,null,null,null,"305-305","305",null,true]
[null,null,null,null,null,null,null,null,null,null,null,null,null,null,null,null,"1055-SULFATE","1055",null,null,null,null,null,null,null,null,null,"306-306","306",null,null,null,null,null,null,null,null,null,null,null,null,"306-306","306",null,true]
[null,null,null,null,null,null,null,null,null,null,null,null,null,null,null,null,"1056-RESIDUE, NON FILTERABLE (TSS)","1056",null,null,null,null,null,null,null,null,null,"310.1-TITRIMETRIC","310.1",null,null,null,null,null,null,null,null,null,null,null,null,"310.1-TITRIMETRIC","TITRIMETRIC",null,true]
[null,null,null,null,null,null,null,null,null,null,null,null,null,null,null,null,"1057-RESIDUE, TOTAL, FILTERABLE","1057",null,null,null,null,null,null,null,null,null,"3111B-ATOMIC ABSORPTION DIRECT ASPIRATION","3111B",null,null,null,null,null,null,null,null,null,null,null,null,"3111B-ATOMIC ABSORPTION DIRECT ASPIRATION","ATOMIC ABSORPTION DIRECT ASPIRATION",null,true]
[null,null,null,null,null,null,null,null,null,null,null,null,null,null,null,null,"1058-RESIDUE, FILTERABLE-VOLATILE","1058",null,null,null,null,null,null,null,null,null,"3111B-99-3111B-99","3111B-99",null,null,null,null,null,null,null,null,null,null,null,null,"3111B-99-3111B-99","3111B-99",null,true]
[null,null,null,null,null,null,null,null,null,null,null,null,null,null,null,null,"1059-RESIDUE, FILTERABLE-FIXED","1059",null,null,null,null,null,null,null,null,null,"3111D-ATOMIC ABSORPTION DIRECT ASPIRATION","3111D",null,null,null,null,null,null,null,null,null,null,null,null,"3111D-ATOMIC ABSORPTION DIRECT ASPIRATION","ATOMIC ABSORPTION DIRECT ASPIRATION",null,true]
[null,null,null,null,null,null,null,null,null,null,null,null,null,null,null,null,"1060-RESIDUE, TOTAL-VOLATILE","1060",null,null,null,null,null,null,null,null,null,"3111D-99-3111D-99","3111D-99",null,null,null,null,null,null,null,null,null,null,null,null,"3111D-99-3111D-99","3111D-99",null,true]
[null,null,null,null,null,null,null,null,null,null,null,null,null,null,null,null,"1061-RESIDUE, TOTAL-FIXED","1061",null,null,null,null,null,null,null,null,null,"3112B-MANUAL COLD VAPOR TECHNIQUE","3112B",null,null,null,null,null,null,null,null,null,null,null,null,"3112B-MANUAL COLD VAPOR TECHNIQUE","MANUAL COLD VAPOR TECHNIQUE",null,true]
[null,null,null,null,null,null,null,null,null,null,null,null,null,null,null,null,"1062-TOT EXTRACTABLE HYDROCARBONS-DIESEL OIL","1062",null,null,null,null,null,null,null,null,null,"3112B-09-3112B-09","3112B-09",null,null,null,null,null,null,null,null,null,null,null,null,"3112B-09-3112B-09","3112B-09",null,true]
[null,null,null,null,null,null,null,null,null,null,null,null,null,null,null,null,"1063-RESIDUE, NONFILTERABLE-FIXED","1063",null,null,null,null,null,null,null,null,null,"3113B-ATOMIC ABSORPTION, FURNACE","3113B",null,null,null,null,null,null,null,null,null,null,null,null,"3113B-ATOMIC ABSORPTION, FURNACE","ATOMIC ABSORPTION, FURNACE",null,true]
[null,null,null,null,null,null,null,null,null,null,null,null,null,null,null,null,"1064-CONDUCTIVITY @ 25 C UMHOS/CM","1064",null,null,null,null,null,null,null,null,null,"3113B-04-ATOMIC ABSORPTION, FURNACE","3113B-04",null,null,null,null,null,null,null,null,null,null,null,null,"3113B-04-ATOMIC ABSORPTION, FURNACE","ATOMIC ABSORPTION, FURNACE",null,{"$f":"(AB68=AP68)","v":true}]
[null,null,null,null,null,null,null,null,null,null,null,null,null,null,null,null,"1065-TOT EXTRACTABLE HYDROCARBONS-WASTE OIL","1065",null,null,null,null,null,null,null,null,null,"3113B-10-ATOMIC ABSORPTION, FURNACE","3113B-10",null,null,null,null,null,null,null,null,null,null,null,null,"3113B-10-ATOMIC ABSORPTION, FURNACE","ATOMIC ABSORPTION, FURNACE",null,true]
[null,null,null,null,null,null,null,null,null,null,null,null,null,null,null,null,"1066-PH, CACO3 STABILITY S.U.","1066",null,null,null,null,null,null,null,null,null,"3113B-99-3113B-99","3113B-99",null,null,null,null,null,null,null,null,null,null,null,null,"3113B-99-3113B-99","3113B-99",null,true]
[null,null,null,null,null,null,null,null,null,null,null,null,null,null,null,null,"1067-ALKALINITY, CACO3 STABILITY","1067",null,null,null,null,null,null,null,null,null,"3114B-ATOMIC ABSORPTION, GASEOUS HYDRIDE","3114B",null,null,null,null,null,null,null,null,null,null,null,null,"3114B-ATOMIC ABSORPTION, GASEOUS HYDRIDE","ATOMIC ABSORPTION, GASEOUS HYDRIDE",null,true]
[null,null,null,null,null,null,null,null,null,null,null,null,null,null,null,null,"1068-ACIDITY, TOTAL (CACO3)","1068",null,null,null,null,null,null,null,null,null,"3114B-09-3114B-09","3114B-09",null,null,null,null,null,null,null,null,null,null,null,null,"3114B-09-3114B-09","3114B-09",null,true]
[null,null,null,null,null,null,null,null,null,null,null,null,null,null,null,null,"1069-ACIDITY, M.O. (CACO3)","1069",null,null,null,null,null,null,null,null,null,"3114B-97-3114B-97","3114B-97",null,null,null,null,null,null,null,null,null,null,null,null,"3114B-97-3114B-97","3114B-97",null,true]
[null,null,null,null,null,null,null,null,null,null,null,null,null,null,null,null,"1070-RESIDUE, TOTAL","1070",null,null,null,null,null,null,null,null,null,"3120B-INDUCTIVELY COUPLED PLASMA","3120B",null,null,null,null,null,null,null,null,null,null,null,null,"3120B-INDUCTIVELY COUPLED PLASMA","INDUCTIVELY COUPLED PLASMA",null,true]
[null,null,null,null,null,null,null,null,null,null,null,null,null,null,null,null,"1071-RESIDUE, SETTLEABLE (BY WEIGHT)","1071",null,null,null,null,null,null,null,null,null,"3120B-99-3120B-99","3120B-99",null,null,null,null,null,null,null,null,null,null,null,null,"3120B-99-3120B-99","3120B-99",null,true]
[null,null,null,null,null,null,null,null,null,null,null,null,null,null,null,null,"1072-PHOSPHORUS, SOLUBLE","1072",null,null,null,null,null,null,null,null,null,"3125-ICP-MS","3125",null,null,null,null,null,null,null,null,null,null,null,null,"3125-ICP-MS","ICP-MS",null,true]
[null,null,null,null,null,null,null,null,null,null,null,null,null,null,null,null,"1073-PHOSPHATE, REACTIVE","1073",null,null,null,null,null,null,null,null,null,"317-317","317",null,null,null,null,null,null,null,null,null,null,null,null,"317-317","317",null,true]
[null,null,null,null,null,null,null,null,null,null,null,null,null,null,null,null,"1074-ANTIMONY, TOTAL","1074",null,null,null,null,null,null,null,null,null,"317.0-ION CHROMATOGRAPHY","317.0",null,null,null,null,null,null,null,null,null,null,null,null,"317.0-ION CHROMATOGRAPHY","ION CHROMATOGRAPHY",null,true]
[null,null,null,null,null,null,null,null,null,null,null,null,null,null,null,null,"1075-BERYLLIUM, TOTAL","1075",null,null,null,null,null,null,null,null,null,"321.8-321.8","321.8",null,null,null,null,null,null,null,null,null,null,null,null,"321.8-321.8","321.8",null,true]
[null,null,null,null,null,null,null,null,null,null,null,null,null,null,null,null,"1076-COD MG/L","1076",null,null,null,null,null,null,null,null,null,"326.0-326.0","326.0",null,null,null,null,null,null,null,null,null,null,null,null,"326.0-326.0","326.0",null,true]
[null,null,null,null,null,null,null,null,null,null,null,null,null,null,null,null,"1077-RESIDUE, NONFILTERABLE, VOLATILE","1077",null,null,null,null,null,null,null,null,null,"327-Spectrophotometric","327",null,null,null,null,null,null,null,null,null,null,null,null,"327-Spectrophotometric","Spectrophotometric",null,true]
[null,null,null,null,null,null,null,null,null,null,null,null,null,null,null,null,"1078-BISMUTH, TOTAL","1078",null,null,null,null,null,null,null,null,null,"330.0-ION CHROMATOGRAPHY, MASS SPECTROMETRY","330.0",null,null,null,null,null,null,null,null,null,null,null,null,"330.0-ION CHROMATOGRAPHY, MASS SPECTROMETRY","ION CHROMATOGRAPHY, MASS SPECTROMETRY",null,true]
[null,null,null,null,null,null,null,null,null,null,null,null,null,null,null,null,"1079-BORON, TOTAL","1079",null,null,null,null,null,null,null,null,null,"330.3-CHLORINE RESIDUAL, IODOMETRIC TITRATION","330.3",null,null,null,null,null,null,null,null,null,null,null,null,"330.3-CHLORINE RESIDUAL, IODOMETRIC TITRATION","CHLORINE RESIDUAL, IODOMETRIC TITRATION",null,true]
[null,null,null,null,null,null,null,null,null,null,null,null,null,null,null,null,"1080-CHROMIUM, HEX","1080",null,null,null,null,null,null,null,null,null,"331.0-LIQUID CHROMATOGRAPHY","331.0",null,null,null,null,null,null,null,null,null,null,null,null,"331.0-LIQUID CHROMATOGRAPHY","LIQUID CHROMATOGRAPHY",null,true]
[null,null,null,null,null,null,null,null,null,null,null,null,null,null,null,null,"1081-COBALT, TOTAL","1081",null,null,null,null,null,null,null,null,null,"332.0-ION CHROMATOGRAPHY, MASS SPECTROMETRY","332.0",null,null,null,null,null,null,null,null,null,null,null,null,"332.0-ION CHROMATOGRAPHY, MASS SPECTROMETRY","ION CHROMATOGRAPHY, MASS SPECTROMETRY",null,true]
[null,null,null,null,null,null,null,null,null,null,null,null,null,null,null,null,"1082-IRON, DISSOLVED","1082",null,null,null,null,null,null,null,null,null,"334-On-line Chlorine Analyzer","334",null,null,null,null,null,null,null,null,null,null,null,null,"334-On-line Chlorine Analyzer","On-line Chlorine Analyzer",null,true]
[null,null,null,null,null,null,null,null,null,null,null,null,null,null,null,null,"1083-LITHIUM, TOTAL","1083",null,null,null,null,null,null,null,null,null,"334.0-On-line Chlorine Analyzer","334.0",null,null,null,null,null,null,null,null,null,null,null,null,"334.0-On-line Chlorine Analyzer","On-line Chlorine Analyzer",null,true]
[null,null,null,null,null,null,null,null,null,null,null,null,null,null,null,null,"1084-MOLYBDENUM, TOTAL","1084",null,null,null,null,null,null,null,null,null,"334.0.16-On-line Chlorine Analyzer","334.0.16",null,null,null,null,null,null,null,null,null,null,null,null,"334.0.16-On-line Chlorine Analyzer","On-line Chlorine Analyzer",null,true]
[null,null,null,null,null,null,null,null,null,null,null,null,null,null,null,null,"1085-THALLIUM, TOTAL","1085",null,null,null,null,null,null,null,null,null,"335.4-SPECTROPHOTOMETRIC SEMI-AUTOMATED","335.4",null,null,null,null,null,null,null,null,null,null,null,null,"335.4-SPECTROPHOTOMETRIC SEMI-AUTOMATED","SPECTROPHOTOMETRIC SEMI-AUTOMATED",null,true]
[null,null,null,null,null,null,null,null,null,null,null,null,null,null,null,null,"1086-TIN, TOTAL","1086",null,null,null,null,null,null,null,null,null,"350.1-AMMONIA NITROGEN BY S/A COLORIMETRY","350.1",null,null,null,null,null,null,null,null,null,null,null,null,"350.1-AMMONIA NITROGEN BY S/A COLORIMETRY","AMMONIA NITROGEN BY S/A COLORIMETRY",null,true]
[null,null,null,null,null,null,null,null,null,null,null,null,null,null,null,null,"1087-TITANIUM, TOTAL","1087",null,null,null,null,null,null,null,null,null,"350.2-AMMONIA BY COLORIMETRY (NESSLERIZATION).","350.2",null,null,null,null,null,null,null,null,null,null,null,null,"350.2-AMMONIA BY COLORIMETRY (NESSLERIZATION).","AMMONIA BY COLORIMETRY (NESSLERIZATION).",null,true]
[null,null,null,null,null,null,null,null,null,null,null,null,null,null,null,null,"1088-VANADIUM, TOTAL","1088",null,null,null,null,null,null,null,null,null,"350.3-ION SELECTIVE ELECTRODE, AMMONIA","350.3",null,null,null,null,null,null,null,null,null,null,null,null,"350.3-ION SELECTIVE ELECTRODE, AMMONIA","ION SELECTIVE ELECTRODE, AMMONIA",null,true]
[null,null,null,null,null,null,null,null,null,null,null,null,null,null,null,null,"1089-MBAS - FOAMING AGENTS (SURFACTANTS)","1089",null,null,null,null,null,null,null,null,null,"3500AL-D-COLORIMETRIC","3500AL-D",null,null,null,null,null,null,null,null,null,null,null,null,"3500AL-D-COLORIMETRIC","COLORIMETRIC",null,true]
[null,null,null,null,null,null,null,null,null,null,null,null,null,null,null,null,"1090-OIL-GREASE, TOTAL","1090",null,null,null,null,null,null,null,null,null,"3500CA-B-EDTA TITRIMETRIC","3500CA-B",null,null,null,null,null,null,null,null,null,null,null,null,"3500CA-B-EDTA TITRIMETRIC","EDTA TITRIMETRIC",null,true]
[null,null,null,null,null,null,null,null,null,null,null,null,null,null,null,null,"1091-BOD, 5-DAY MG/L","1091",null,null,null,null,null,null,null,null,null,"3500CA-B-97-3500-CA-B-97","3500CA-B-97",null,null,null,null,null,null,null,null,null,null,null,null,"3500CA-B-97-3500-CA-B-97","3500-CA-B-97",null,true]
[null,null,null,null,null,null,null,null,null,null,null,null,null,null,null,null,"1092-TOD MG/L","1092",null,null,null,null,null,null,null,null,null,"3500CA-D-EDTA TITRIMETRIC","3500CA-D",null,null,null,null,null,null,null,null,null,null,null,null,"3500CA-D-EDTA TITRIMETRIC","EDTA TITRIMETRIC",null,true]
[null,null,null,null,null,null,null,null,null,null,null,null,null,null,null,null,"1093-PHOSPHORUS, TOTAL","1093",null,null,null,null,null,null,null,null,null,"3500MG-B-Complexation Titrimetric Methods","3500MG-B",null,null,null,null,null,null,null,null,null,null,null,null,"3500MG-B-Complexation Titrimetric Methods","Complexation Titrimetric Methods",null,true]
[null,null,null,null,null,null,null,null,null,null,null,null,null,null,null,null,"1094-ASBESTOS","1094",null,null,null,null,null,null,null,null,null,"3500MG-B-97-3500Mg-B-97","3500MG-B-97",null,null,null,null,null,null,null,null,null,null,null,null,"3500MG-B-97-3500Mg-B-97","3500Mg-B-97",null,true]
[null,null,null,null,null,null,null,null,null,null,null,null,null,null,null,null,"1095-ZINC","1095",null,null,null,null,null,null,null,null,null,"3500MG-E-3500Mg-E","3500MG-E",null,null,null,null,null,null,null,null,null,null,null,null,"3500MG-E-3500Mg-E","3500Mg-E",null,true]
[null,null,null,null,null,null,null,null,null,null,null,null,null,null,null,null,"1096-OZONE","1096",null,null,null,null,null,null,null,null,null,"353.2-CADMIUM REDUCTION, AUTOMATED","353.2",null,null,null,null,null,null,null,null,null,null,null,null,"353.2-CADMIUM REDUCTION, AUTOMATED","CADMIUM REDUCTION, AUTOMATED",null,{"$f":"(AB101=AP101)","v":true}]
[null,null,null,null,null,null,null,null,null,null,null,null,null,null,null,null,"1901-CARBON DIOXIDE","1901",null,null,null,null,null,null,null,null,null,"353.3-Cadmium Reduction, Manual","353.3",null,null,null,null,null,null,null,null,null,null,null,null,"353.3-Cadmium Reduction, Manual","Cadmium Reduction, Manual",null,true]
[null,null,null,null,null,null,null,null,null,null,null,null,null,null,null,null,"1902-CARBON DISULFIDE","1902",null,null,null,null,null,null,null,null,null,"354.1-SPECTROPHOTOMETRIC, MANUAL","354.1",null,null,null,null,null,null,null,null,null,null,null,null,"354.1-SPECTROPHOTOMETRIC, MANUAL","SPECTROPHOTOMETRIC, MANUAL",null,true]
[null,null,null,null,null,null,null,null,null,null,null,null,null,null,null,null,"1905-COLOR","1905",null,null,null,null,null,null,null,null,null,"365.1-COLORIMETRIC, AUTOMATED, ASCORBIC ACID","365.1",null,null,null,null,null,null,null,null,null,null,null,null,"365.1-COLORIMETRIC, AUTOMATED, ASCORBIC ACID","COLORIMETRIC, AUTOMATED, ASCORBIC ACID",null,true]
[null,null,null,null,null,null,null,null,null,null,null,null,null,null,null,null,"1910-CORROSIVITY","1910",null,null,null,null,null,null,null,null,null,"375.1-AUTOMATED CHLORANILATE","375.1",null,null,null,null,null,null,null,null,null,null,null,null,"375.1-AUTOMATED CHLORANILATE","AUTOMATED CHLORANILATE",null,true]
[null,null,null,null,null,null,null,null,null,null,null,null,null,null,null,null,"1914-CALCIUM HARDNESS","1914",null,null,null,null,null,null,null,null,null,"375.2-375.2","375.2",null,null,null,null,null,null,null,null,null,null,null,null,"375.2-375.2","375.2",null,true]
[null,null,null,null,null,null,null,null,null,null,null,null,null,null,null,null,"1915-HARDNESS, TOTAL (AS CACO3)","1915",null,null,null,null,null,null,null,null,null,"375.4-TURBIDIMETRIC","375.4",null,null,null,null,null,null,null,null,null,null,null,null,"375.4-TURBIDIMETRIC","TURBIDIMETRIC",null,true]
[null,null,null,null,null,null,null,null,null,null,null,null,null,null,null,null,"1916-HARDNESS, CARBONATE","1916",null,null,null,null,null,null,null,null,null,"380-75WE-AUTOMATED ION SELECTIVE ELECTRODE, TECHN","380-75WE",null,null,null,null,null,null,null,null,null,null,null,null,"380-75WE-AUTOMATED ION SELECTIVE ELECTRODE, TECHN","AUTOMATED ION SELECTIVE ELECTRODE, TECHN",null,true]
[null,null,null,null,null,null,null,null,null,null,null,null,null,null,null,null,"1917-HARDNESS, NONCARBONATE","1917",null,null,null,null,null,null,null,null,null,"4.5.2.3-4.5.2.3","4.5.2.3",null,null,null,null,null,null,null,null,null,null,null,null,"4.5.2.3-4.5.2.3","4.5.2.3",null,true]
[null,null,null,null,null,null,null,null,null,null,null,null,null,null,null,null,"1918-HARDNESS, CALCIUM MAGNESIUM","1918",null,null,null,null,null,null,null,null,null,"4110-COLORIMETRIC SPADNS, WITH DISTILLATION","4110",null,null,null,null,null,null,null,null,null,null,null,null,"4110-COLORIMETRIC SPADNS, WITH DISTILLATION","COLORIMETRIC SPADNS, WITH DISTILLATION",null,true]
[null,null,null,null,null,null,null,null,null,null,null,null,null,null,null,null,"1919-CALCIUM","1919",null,null,null,null,null,null,null,null,null,"4110B-ION CHROMATOGRAPHY","4110B",null,null,null,null,null,null,null,null,null,null,null,null,"4110B-ION CHROMATOGRAPHY","ION CHROMATOGRAPHY",null,true]
[null,null,null,null,null,null,null,null,null,null,null,null,null,null,null,null,"1920-ODOR","1920",null,null,null,null,null,null,null,null,null,"4110B-00-4110B-00","4110B-00",null,null,null,null,null,null,null,null,null,null,null,null,"4110B-00-4110B-00","4110B-00",null,true]
[null,null,null,null,null,null,null,null,null,null,null,null,null,null,null,null,"1925-PH","1925",null,null,null,null,null,null,null,null,null,"415.1-IODINE","415.1",null,null,null,null,null,null,null,null,null,null,null,null,"415.1-IODINE","IODINE",null,true]
[null,null,null,null,null,null,null,null,null,null,null,null,null,null,null,null,"1927-ALKALINITY, TOTAL","1927",null,null,null,null,null,null,null,null,null,"415.2-IODINE","415.2",null,null,null,null,null,null,null,null,null,null,null,null,"415.2-IODINE","IODINE",null,true]
[null,null,null,null,null,null,null,null,null,null,null,null,null,null,null,null,"1928-ALKALINITY, BICARBONATE","1928",null,null,null,null,null,null,null,null,null,"415.3-Calculation using DOC and UV254 data","415.3",null,null,null,null,null,null,null,null,null,null,null,null,"415.3-Calculation using DOC and UV254 data","Calculation using DOC and UV254 data",null,true]
[null,null,null,null,null,null,null,null,null,null,null,null,null,null,null,null,"1929-ALKALINITY, CARBONATE","1929",null,null,null,null,null,null,null,null,null,"425.1-ANIONIC SURFACTANTS AS MBAS","425.1",null,null,null,null,null,null,null,null,null,null,null,null,"425.1-ANIONIC SURFACTANTS AS MBAS","ANIONIC SURFACTANTS AS MBAS",null,true]
[null,null,null,null,null,null,null,null,null,null,null,null,null,null,null,null,"1930-TDS","1930",null,null,null,null,null,null,null,null,null,"4500-CL D-AMPEROMETRIC TITRATION","4500-CL D",null,null,null,null,null,null,null,null,null,null,null,null,"4500-CL D-AMPEROMETRIC TITRATION","AMPEROMETRIC TITRATION",null,true]
[null,null,null,null,null,null,null,null,null,null,null,null,null,null,null,null,"1931-ALKALINITY, PHENOLPHTHALEIN","1931",null,null,null,null,null,null,null,null,null,"4500-CL D-00-AMPEROMETRIC TITRATION","4500-CL D-00",null,null,null,null,null,null,null,null,null,null,null,null,"4500-CL D-00-AMPEROMETRIC TITRATION","AMPEROMETRIC TITRATION",null,true]
[null,null,null,null,null,null,null,null,null,null,null,null,null,null,null,null,"1993-STABILITY INDEX","1993",null,null,null,null,null,null,null,null,null,"4500-CL E-AMPEROMETRIC TITRATION (LOW LEVEL MEASUREMENT)","4500-CL E",null,null,null,null,null,null,null,null,null,null,null,null,"4500-CL E-AMPEROMETRIC TITRATION (LOW LEVEL MEASUREMENT)","AMPEROMETRIC TITRATION (LOW LEVEL MEASUREMENT)",null,true]
[null,null,null,null,null,null,null,null,null,null,null,null,null,null,null,null,"1994-AGGRESSIVE INDEX","1994",null,null,null,null,null,null,null,null,null,"4500-CL E-00-AMPEROMETRIC TITRATION (LOW LEVEL MEASUREMENT)","4500-CL E-00",null,null,null,null,null,null,null,null,null,null,null,null,"4500-CL E-00-AMPEROMETRIC TITRATION (LOW LEVEL MEASUREMENT)","AMPEROMETRIC TITRATION (LOW LEVEL MEASUREMENT)",null,true]
[null,null,null,null,null,null,null,null,null,null,null,null,null,null,null,null,"1995-SCALE FORMING","1995",null,null,null,null,null,null,null,null,null,"4500-CL F-DPD FERROUS TITRIMETRIC","4500-CL F",null,null,null,null,null,null,null,null,null,null,null,null,"4500-CL F-DPD FERROUS TITRIMETRIC","DPD FERROUS TITRIMETRIC",null,true]
[null,null,null,null,null,null,null,null,null,null,null,null,null,null,null,null,"1996-WATERTEMPERATURE","1996",null,null,null,null,null,null,null,null,null,"4500-CL F-00-DPD FERROUS TITRIMETRIC","4500-CL F-00",null,null,null,null,null,null,null,null,null,null,null,null,"4500-CL F-00-DPD FERROUS TITRIMETRIC","DPD FERROUS TITRIMETRIC",null,true]
[null,null,null,null,null,null,null,null,null,null,null,null,null,null,null,null,"1997-LANGELIER INDEX (PH(S))","1997",null,null,null,null,null,null,null,null,null,"4500-CL G-DPD COLORIMETRIC","4500-CL G",null,null,null,null,null,null,null,null,null,null,null,null,"4500-CL G-DPD COLORIMETRIC","DPD COLORIMETRIC",null,true]
[null,null,null,null,null,null,null,null,null,null,null,null,null,null,null,null,"1998-SATURATION INDEX","1998",null,null,null,null,null,null,null,null,null,"4500-CL G-00-DPD COLORIMETRIC","4500-CL G-00",null,null,null,null,null,null,null,null,null,null,null,null,"4500-CL G-00-DPD COLORIMETRIC","DPD COLORIMETRIC",null,true]
[null,null,null,null,null,null,null,null,null,null,null,null,null,null,null,null,"2004-ALACHLOR ESA","2004",null,null,null,null,null,null,null,null,null,"4500-CL H-SYRINGALDAZINE (FACTS)","4500-CL H",null,null,null,null,null,null,null,null,null,null,null,null,"4500-CL H-SYRINGALDAZINE (FACTS)","SYRINGALDAZINE (FACTS)",null,true]
[null,null,null,null,null,null,null,null,null,null,null,null,null,null,null,null,"2005-ENDRIN","2005",null,null,null,null,null,null,null,null,null,"4500-CL H-00-SYRINGALDAZINE (FACTS)","4500-CL H-00",null,null,null,null,null,null,null,null,null,null,null,null,"4500-CL H-00-SYRINGALDAZINE (FACTS)","SYRINGALDAZINE (FACTS)",null,true]
[null,null,null,null,null,null,null,null,null,null,null,null,null,null,null,null,"2006-DESETHYLATRAZINE","2006",null,null,null,null,null,null,null,null,null,"4500-CL I-IODOMETRIC ELECTRODE","4500-CL I",null,null,null,null,null,null,null,null,null,null,null,null,"4500-CL I-IODOMETRIC ELECTRODE","IODOMETRIC ELECTRODE",null,true]
[null,null,null,null,null,null,null,null,null,null,null,null,null,null,null,null,"2007-DES-ISOPROPYL-ATRAZINE","2007",null,null,null,null,null,null,null,null,null,"4500-CL I-00-IODOMETRIC ELECTRODE","4500-CL I-00",null,null,null,null,null,null,null,null,null,null,null,null,"4500-CL I-00-IODOMETRIC ELECTRODE","IODOMETRIC ELECTRODE",null,true]
[null,null,null,null,null,null,null,null,null,null,null,null,null,null,null,null,"2010-BHC-GAMMA","2010",null,null,null,null,null,null,null,null,null,"4500-CLO2 C-AMPEROMETRIC TITRATION","4500-CLO2 C",null,null,null,null,null,null,null,null,null,null,null,null,"4500-CLO2 C-AMPEROMETRIC TITRATION","AMPEROMETRIC TITRATION",null,true]
[null,null,null,null,null,null,null,null,null,null,null,null,null,null,null,null,"2015-METHOXYCHLOR","2015",null,null,null,null,null,null,null,null,null,"4500-CLO2 C-00-AMPEROMETRIC TITRATION","4500-CLO2 C-00",null,null,null,null,null,null,null,null,null,null,null,null,"4500-CLO2 C-00-AMPEROMETRIC TITRATION","AMPEROMETRIC TITRATION",null,true]
[null,null,null,null,null,null,null,null,null,null,null,null,null,null,null,null,"2020-TOXAPHENE","2020",null,null,null,null,null,null,null,null,null,"4500-CLO2 D-DPD METHOD","4500-CLO2 D",null,null,null,null,null,null,null,null,null,null,null,null,"4500-CLO2 D-DPD METHOD","DPD METHOD",null,true]
[null,null,null,null,null,null,null,null,null,null,null,null,null,null,null,null,"2021-CARBARYL","2021",null,null,null,null,null,null,null,null,null,"4500-CLO2 E-AMPEROMETRIC TITRATION","4500-CLO2 E",null,null,null,null,null,null,null,null,null,null,null,null,"4500-CLO2 E-AMPEROMETRIC TITRATION","AMPEROMETRIC TITRATION",null,true]
[null,null,null,null,null,null,null,null,null,null,null,null,null,null,null,null,"2022-METHOMYL","2022",null,null,null,null,null,null,null,null,null,"4500-CLO2 E-00-AMPEROMETRIC TITRATION","4500-CLO2 E-00",null,null,null,null,null,null,null,null,null,null,null,null,"4500-CLO2 E-00-AMPEROMETRIC TITRATION","AMPEROMETRIC TITRATION",null,true]
[null,null,null,null,null,null,null,null,null,null,null,null,null,null,null,null,"2023-BAYGON","2023",null,null,null,null,null,null,null,null,null,"4500-CO2 D-Carbon Dioxide","4500-CO2 D",null,null,null,null,null,null,null,null,null,null,null,null,"4500-CO2 D-Carbon Dioxide","4500-CO2 D",null,true]
[null,null,null,null,null,null,null,null,null,null,null,null,null,null,null,null,"2024-METHIOCARB","2024",null,null,null,null,null,null,null,null,null,"4500CL-B-4500Cl-B","4500CL-B",null,null,null,null,null,null,null,null,null,null,null,null,"4500CL-B-4500Cl-B","4500Cl-B",null,true]
[null,null,null,null,null,null,null,null,null,null,null,null,null,null,null,null,"2027-ACETOCHLOR","2027",null,null,null,null,null,null,null,null,null,"4500CL-B-97-4500-Cl- B-97","4500CL-B-97",null,null,null,null,null,null,null,null,null,null,null,null,"4500CL-B-97-4500-Cl- B-97","4500-Cl- B-97",null,true]
[null,null,null,null,null,null,null,null,null,null,null,null,null,null,null,null,"2028-PARAQUAT","2028",null,null,null,null,null,null,null,null,null,"4500CL-D-97-4500Cl-D-97","4500CL-D-97",null,null,null,null,null,null,null,null,null,null,null,null,"4500CL-D-97-4500Cl-D-97","4500Cl-D-97",null,true]
[null,null,null,null,null,null,null,null,null,null,null,null,null,null,null,null,"2029-PROMETON","2029",null,null,null,null,null,null,null,null,null,"4500CN-C-AMENABLE SPECTROPHOTOMETRIC","4500CN-C",null,null,null,null,null,null,null,null,null,null,null,null,"4500CN-C-AMENABLE SPECTROPHOTOMETRIC","AMENABLE SPECTROPHOTOMETRIC",null,true]
[null,null,null,null,null,null,null,null,null,null,null,null,null,null,null,null,"2030-P-ISOPROPYLTOLUENE","2030",null,null,null,null,null,null,null,null,null,"4500CN-E-SPECTROPHOTOMETRIC, MANUAL","4500CN-E",null,null,null,null,null,null,null,null,null,null,null,null,"4500CN-E-SPECTROPHOTOMETRIC, MANUAL","SPECTROPHOTOMETRIC, MANUAL",null,true]
[null,null,null,null,null,null,null,null,null,null,null,null,null,null,null,null,"2031-DALAPON","2031",null,null,null,null,null,null,null,null,null,"4500CN-E-99-4500CN-E-99","4500CN-E-99",null,null,null,null,null,null,null,null,null,null,null,null,"4500CN-E-99-4500CN-E-99","4500CN-E-99",null,true]
[null,null,null,null,null,null,null,null,null,null,null,null,null,null,null,null,"2032-DIQUAT","2032",null,null,null,null,null,null,null,null,null,"4500CN-F-SELECTIVE ELECTRODE METHOD","4500CN-F",null,null,null,null,null,null,null,null,null,null,null,null,"4500CN-F-SELECTIVE ELECTRODE METHOD","SELECTIVE ELECTRODE METHOD",null,true]
[null,null,null,null,null,null,null,null,null,null,null,null,null,null,null,null,"2033-ENDOTHALL","2033",null,null,null,null,null,null,null,null,null,"4500CN-F-99-4500CN-F-99","4500CN-F-99",null,null,null,null,null,null,null,null,null,null,null,null,"4500CN-F-99-4500CN-F-99","4500CN-F-99",null,true]
[null,null,null,null,null,null,null,null,null,null,null,null,null,null,null,null,"2034-GLYPHOSATE","2034",null,null,null,null,null,null,null,null,null,"4500CN-G-AMENABLE SPECTROPHOTOMETRIC","4500CN-G",null,null,null,null,null,null,null,null,null,null,null,null,"4500CN-G-AMENABLE SPECTROPHOTOMETRIC","AMENABLE SPECTROPHOTOMETRIC",null,true]
[null,null,null,null,null,null,null,null,null,null,null,null,null,null,null,null,"2035-DI(2-ETHYLHEXYL) ADIPATE","2035",null,null,null,null,null,null,null,null,null,"4500CN-G-99-4500CN-G-99","4500CN-G-99",null,null,null,null,null,null,null,null,null,null,null,null,"4500CN-G-99-4500CN-G-99","4500CN-G-99",null,true]
[null,null,null,null,null,null,null,null,null,null,null,null,null,null,null,null,"2036-OXAMYL","2036",null,null,null,null,null,null,null,null,null,"4500F-B-COLORIMETRIC SPADNS, WITH DISTILLATION","4500F-B",null,null,null,null,null,null,null,null,null,null,null,null,"4500F-B-COLORIMETRIC SPADNS, WITH DISTILLATION","COLORIMETRIC SPADNS, WITH DISTILLATION",null,true]
[null,null,null,null,null,null,null,null,null,null,null,null,null,null,null,null,"2037-SIMAZINE","2037",null,null,null,null,null,null,null,null,null,"4500F-B-97-4500F-B-97","4500F-B-97",null,null,null,null,null,null,null,null,null,null,null,null,"4500F-B-97-4500F-B-97","4500F-B-97",null,true]
[null,null,null,null,null,null,null,null,null,null,null,null,null,null,null,null,"2038-PAH'S","2038",null,null,null,null,null,null,null,null,null,"4500F-C-POTENTIOMETER ION SELECTIVE ELECTRODE","4500F-C",null,null,null,null,null,null,null,null,null,null,null,null,"4500F-C-POTENTIOMETER ION SELECTIVE ELECTRODE","POTENTIOMETER ION SELECTIVE ELECTRODE",null,true]
[null,null,null,null,null,null,null,null,null,null,null,null,null,null,null,null,"2039-DI(2-ETHYLHEXYL) PHTHALATE","2039",null,null,null,null,null,null,null,null,null,"4500F-C-97-4500F-C-97","4500F-C-97",null,null,null,null,null,null,null,null,null,null,null,null,"4500F-C-97-4500F-C-97","4500F-C-97",null,true]
[null,null,null,null,null,null,null,null,null,null,null,null,null,null,null,null,"2040-PICLORAM","2040",null,null,null,null,null,null,null,null,null,"4500F-D-COLORIMETRIC SPADNS, WITH DISTILLATION","4500F-D",null,null,null,null,null,null,null,null,null,null,null,null,"4500F-D-COLORIMETRIC SPADNS, WITH DISTILLATION","COLORIMETRIC SPADNS, WITH DISTILLATION",null,true]
[null,null,null,null,null,null,null,null,null,null,null,null,null,null,null,null,"2041-DINOSEB","2041",null,null,null,null,null,null,null,null,null,"4500F-D-97-4500F-D-97","4500F-D-97",null,null,null,null,null,null,null,null,null,null,null,null,"4500F-D-97-4500F-D-97","4500F-D-97",null,true]
[null,null,null,null,null,null,null,null,null,null,null,null,null,null,null,null,"2042-HEXACHLOROCYCLOPENTADIENE","2042",null,null,null,null,null,null,null,null,null,"4500F-E-AUTOMATED ALIZARIN FLUORIDE BLUE, TECHNI","4500F-E",null,null,null,null,null,null,null,null,null,null,null,null,"4500F-E-AUTOMATED ALIZARIN FLUORIDE BLUE, TECHNI","AUTOMATED ALIZARIN FLUORIDE BLUE, TECHNI",null,true]
[null,null,null,null,null,null,null,null,null,null,null,null,null,null,null,null,"2043-ALDICARB SULFOXIDE","2043",null,null,null,null,null,null,null,null,null,"4500F-E-97-4500F-E-97","4500F-E-97",null,null,null,null,null,null,null,null,null,null,null,null,"4500F-E-97-4500F-E-97","4500F-E-97",null,true]
[null,null,null,null,null,null,null,null,null,null,null,null,null,null,null,null,"2044-ALDICARB SULFONE","2044",null,null,null,null,null,null,null,null,null,"4500H+B-4500H+B","4500H+B",null,null,null,null,null,null,null,null,null,null,null,null,"4500H+B-4500H+B","4500H+B",null,true]
[null,null,null,null,null,null,null,null,null,null,null,null,null,null,null,null,"2045-METOLACHLOR","2045",null,null,null,null,null,null,null,null,null,"4500H-B-ELECTROMETRIC-ONLINE MEASUREMENT","4500H-B",null,null,null,null,null,null,null,null,null,null,null,null,"4500H-B-ELECTROMETRIC-ONLINE MEASUREMENT","ELECTROMETRIC-ONLINE MEASUREMENT",null,true]
[null,null,null,null,null,null,null,null,null,null,null,null,null,null,null,null,"2046-CARBOFURAN","2046",null,null,null,null,null,null,null,null,null,"4500H-B-00-4500-H-B-00","4500H-B-00",null,null,null,null,null,null,null,null,null,null,null,null,"4500H-B-00-4500-H-B-00","4500-H-B-00",null,true]
[null,null,null,null,null,null,null,null,null,null,null,null,null,null,null,null,"2047-ALDICARB","2047",null,null,null,null,null,null,null,null,null,"4500NH3 G-AUTOMATED PHENATE FOR AMMONIA","4500NH3 G",null,null,null,null,null,null,null,null,null,null,null,null,"4500NH3 G-AUTOMATED PHENATE FOR AMMONIA","AUTOMATED PHENATE FOR AMMONIA",null,true]
[null,null,null,null,null,null,null,null,null,null,null,null,null,null,null,null,"2048-HYPOCHLORITE ION","2048",null,null,null,null,null,null,null,null,null,"4500NH3-D-AMMONIA SELECTIVE ELECTRODE METHOD","4500NH3-D",null,null,null,null,null,null,null,null,null,null,null,null,"4500NH3-D-AMMONIA SELECTIVE ELECTRODE METHOD","AMMONIA SELECTIVE ELECTRODE METHOD",null,true]
[null,null,null,null,null,null,null,null,null,null,null,null,null,null,null,null,"2049-1,4-DIOXANE","2049",null,null,null,null,null,null,null,null,null,"4500NH3-F-PHENATE COLORIMETRIC","4500NH3-F",null,null,null,null,null,null,null,null,null,null,null,null,"4500NH3-F-PHENATE COLORIMETRIC","PHENATE COLORIMETRIC",null,true]
[null,null,null,null,null,null,null,null,null,null,null,null,null,null,null,null,"2050-ATRAZINE","2050",null,null,null,null,null,null,null,null,null,"4500NO2-B-SPECTROPHOTOMETRIC, MANUAL","4500NO2-B",null,null,null,null,null,null,null,null,null,null,null,null,"4500NO2-B-SPECTROPHOTOMETRIC, MANUAL","SPECTROPHOTOMETRIC, MANUAL",null,true]
[null,null,null,null,null,null,null,null,null,null,null,null,null,null,null,null,"2051-LASSO","2051",null,null,null,null,null,null,null,null,null,"4500NO2-B-00-4500-NO2  B-00","4500NO2-B-00",null,null,null,null,null,null,null,null,null,null,null,null,"4500NO2-B-00-4500-NO2  B-00","4500-NO2  B-00",null,true]
[null,null,null,null,null,null,null,null,null,null,null,null,null,null,null,null,"2052-EPTC","2052",null,null,null,null,null,null,null,null,null,"4500NO3-D-ION SELECTIVE ELECTRODE","4500NO3-D",null,null,null,null,null,null,null,null,null,null,null,null,"4500NO3-D-ION SELECTIVE ELECTRODE","ION SELECTIVE ELECTRODE",null,true]
[null,null,null,null,null,null,null,null,null,null,null,null,null,null,null,null,"2053-SUTAN","2053",null,null,null,null,null,null,null,null,null,"4500NO3-D-00-4500-NO3  D-00","4500NO3-D-00",null,null,null,null,null,null,null,null,null,null,null,null,"4500NO3-D-00-4500-NO3  D-00","4500-NO3  D-00",null,true]
[null,null,null,null,null,null,null,null,null,null,null,null,null,null,null,null,"2054-CYANAZINE","2054",null,null,null,null,null,null,null,null,null,"4500NO3-E-CADMIUM REDUCTION, MANUAL","4500NO3-E",null,null,null,null,null,null,null,null,null,null,null,null,"4500NO3-E-CADMIUM REDUCTION, MANUAL","CADMIUM REDUCTION, MANUAL",null,true]
[null,null,null,null,null,null,null,null,null,null,null,null,null,null,null,null,"2055-TRIFLURALIN","2055",null,null,null,null,null,null,null,null,null,"4500NO3-E-00-4500-NO3  E-00","4500NO3-E-00",null,null,null,null,null,null,null,null,null,null,null,null,"4500NO3-E-00-4500-NO3  E-00","4500-NO3  E-00",null,true]
[null,null,null,null,null,null,null,null,null,null,null,null,null,null,null,null,"2056-DIAZINON","2056",null,null,null,null,null,null,null,null,null,"4500NO3-F-CADMIUM REDUCTION, AUTOMATED","4500NO3-F",null,null,null,null,null,null,null,null,null,null,null,null,"4500NO3-F-CADMIUM REDUCTION, AUTOMATED","CADMIUM REDUCTION, AUTOMATED",null,{"$f":"(AB165=AP165)","v":true}]
[null,null,null,null,null,null,null,null,null,null,null,null,null,null,null,null,"2057-CHLOROPYRIFOS","2057",null,null,null,null,null,null,null,null,null,"4500NO3-F-00-4500-NO3  F-00","4500NO3-F-00",null,null,null,null,null,null,null,null,null,null,null,null,"4500NO3-F-00-4500-NO3  F-00","4500-NO3  F-00",null,true]
[null,null,null,null,null,null,null,null,null,null,null,null,null,null,null,null,"2058-MALATHION","2058",null,null,null,null,null,null,null,null,null,"4500NO3F-CADMIUM REDUCTION, AUTOMATED","4500NO3F",null,null,null,null,null,null,null,null,null,null,null,null,"4500NO3F-CADMIUM REDUCTION, AUTOMATED","CADMIUM REDUCTION, AUTOMATED",null,true]
[null,null,null,null,null,null,null,null,null,null,null,null,null,null,null,null,"2059-GUTHION","2059",null,null,null,null,null,null,null,null,null,"4500O3-B-Indigo Method","4500O3-B",null,null,null,null,null,null,null,null,null,null,null,null,"4500O3-B-Indigo Method","Indigo Method",null,true]
[null,null,null,null,null,null,null,null,null,null,null,null,null,null,null,null,"2060-ISOFENPHOS","2060",null,null,null,null,null,null,null,null,null,"4500O3-B-97-4500O3-B-97","4500O3-B-97",null,null,null,null,null,null,null,null,null,null,null,null,"4500O3-B-97-4500O3-B-97","4500O3-B-97",null,true]
[null,null,null,null,null,null,null,null,null,null,null,null,null,null,null,null,"2061-TRITHION","2061",null,null,null,null,null,null,null,null,null,"4500P-E-COLORIMETRIC, MANUAL","4500P-E",null,null,null,null,null,null,null,null,null,null,null,null,"4500P-E-COLORIMETRIC, MANUAL","COLORIMETRIC, MANUAL",null,true]
[null,null,null,null,null,null,null,null,null,null,null,null,null,null,null,null,"2062-ETHION","2062",null,null,null,null,null,null,null,null,null,"4500P-E-99-4500P-E-99","4500P-E-99",null,null,null,null,null,null,null,null,null,null,null,null,"4500P-E-99-4500P-E-99","4500P-E-99",null,true]
[null,null,null,null,null,null,null,null,null,null,null,null,null,null,null,null,"2063-2,3,7,8-TCDD","2063",null,null,null,null,null,null,null,null,null,"4500P-F-COLORIMETRIC, AUTOMATED, ASCORBIC ACID","4500P-F",null,null,null,null,null,null,null,null,null,null,null,null,"4500P-F-COLORIMETRIC, AUTOMATED, ASCORBIC ACID","COLORIMETRIC, AUTOMATED, ASCORBIC ACID",null,true]
[null,null,null,null,null,null,null,null,null,null,null,null,null,null,null,null,"2064-PARATHION (ETHYL)","2064",null,null,null,null,null,null,null,null,null,"4500SI-D-MOLYBDOSILICATE","4500SI-D",null,null,null,null,null,null,null,null,null,null,null,null,"4500SI-D-MOLYBDOSILICATE","MOLYBDOSILICATE",null,true]
[null,null,null,null,null,null,null,null,null,null,null,null,null,null,null,null,"2065-HEPTACHLOR","2065",null,null,null,null,null,null,null,null,null,"4500SI-E-HETEROPOLY BLUE","4500SI-E",null,null,null,null,null,null,null,null,null,null,null,null,"4500SI-E-HETEROPOLY BLUE","HETEROPOLY BLUE",null,true]
[null,null,null,null,null,null,null,null,null,null,null,null,null,null,null,null,"2066-3-HYDROXYCARBOFURAN","2066",null,null,null,null,null,null,null,null,null,"4500SI-F-MOLYBDATE REACTIVE SILICA","4500SI-F",null,null,null,null,null,null,null,null,null,null,null,null,"4500SI-F-MOLYBDATE REACTIVE SILICA","MOLYBDATE REACTIVE SILICA",null,true]
[null,null,null,null,null,null,null,null,null,null,null,null,null,null,null,null,"2067-HEPTACHLOR EPOXIDE","2067",null,null,null,null,null,null,null,null,null,"4500SIO2-C-MOLYBDOSILICATE","4500SIO2-C",null,null,null,null,null,null,null,null,null,null,null,null,"4500SIO2-C-MOLYBDOSILICATE","MOLYBDOSILICATE",null,true]
[null,null,null,null,null,null,null,null,null,null,null,null,null,null,null,null,"2068-ENDOSULFAN I","2068",null,null,null,null,null,null,null,null,null,"4500SIO2-C-97-4500SIO2-C-97","4500SIO2-C-97",null,null,null,null,null,null,null,null,null,null,null,null,"4500SIO2-C-97-4500SIO2-C-97","4500SIO2-C-97",null,true]
[null,null,null,null,null,null,null,null,null,null,null,null,null,null,null,null,"2069-PARA-PARA DDE","2069",null,null,null,null,null,null,null,null,null,"4500SIO2-D-HETEROPOLY BLUE","4500SIO2-D",null,null,null,null,null,null,null,null,null,null,null,null,"4500SIO2-D-HETEROPOLY BLUE","HETEROPOLY BLUE",null,true]
[null,null,null,null,null,null,null,null,null,null,null,null,null,null,null,null,"2070-DIELDRIN","2070",null,null,null,null,null,null,null,null,null,"4500SIO2-D-97-4500SIO2-D-97","4500SIO2-D-97",null,null,null,null,null,null,null,null,null,null,null,null,"4500SIO2-D-97-4500SIO2-D-97","4500SIO2-D-97",null,true]
[null,null,null,null,null,null,null,null,null,null,null,null,null,null,null,null,"2071-PARA-PARA DDD","2071",null,null,null,null,null,null,null,null,null,"4500SIO2-E-Automated for Molybdate-reactive Silica","4500SIO2-E",null,null,null,null,null,null,null,null,null,null,null,null,"4500SIO2-E-Automated for Molybdate-reactive Silica","Automated for Molybdate-reactive Silica",null,true]
[null,null,null,null,null,null,null,null,null,null,null,null,null,null,null,null,"2072-ENDOSULFAN II","2072",null,null,null,null,null,null,null,null,null,"4500SIO2-E-97-4500SIO2-E-97","4500SIO2-E-97",null,null,null,null,null,null,null,null,null,null,null,null,"4500SIO2-E-97-4500SIO2-E-97","4500SIO2-E-97",null,true]
[null,null,null,null,null,null,null,null,null,null,null,null,null,null,null,null,"2073-PHOSDRIN","2073",null,null,null,null,null,null,null,null,null,"4500SO4-C-4500SO4-C","4500SO4-C",null,null,null,null,null,null,null,null,null,null,null,null,"4500SO4-C-4500SO4-C","4500SO4-C",null,true]
[null,null,null,null,null,null,null,null,null,null,null,null,null,null,null,null,"2074-ENDOSULFAN SULFATE","2074",null,null,null,null,null,null,null,null,null,"4500SO4-E-TURBIDIMETRIC","4500SO4-E",null,null,null,null,null,null,null,null,null,null,null,null,"4500SO4-E-TURBIDIMETRIC","TURBIDIMETRIC",null,true]
[null,null,null,null,null,null,null,null,null,null,null,null,null,null,null,null,"2075-PARA-PARA DDT","2075",null,null,null,null,null,null,null,null,null,"4500SO4-F-4500SO4-F","4500SO4-F",null,null,null,null,null,null,null,null,null,null,null,null,"4500SO4-F-4500SO4-F","4500SO4-F",null,true]
[null,null,null,null,null,null,null,null,null,null,null,null,null,null,null,null,"2076-BUTACHLOR","2076",null,null,null,null,null,null,null,null,null,"4500SO42-C-Gravimetric with ignition of residue","4500SO42-C",null,null,null,null,null,null,null,null,null,null,null,null,"4500SO42-C-Gravimetric with ignition of residue","Gravimetric with ignition of residue",null,true]
[null,null,null,null,null,null,null,null,null,null,null,null,null,null,null,null,"2077-PROPACHLOR","2077",null,null,null,null,null,null,null,null,null,"4500SO42-C-97-4500-SO42-C-97","4500SO42-C-97",null,null,null,null,null,null,null,null,null,null,null,null,"4500SO42-C-97-4500-SO42-C-97","4500-SO42-C-97",null,true]
[null,null,null,null,null,null,null,null,null,null,null,null,null,null,null,null,"2079-DIBROMOACETONITRILE","2079",null,null,null,null,null,null,null,null,null,"4500SO42-D-Gravimetric with drying of residue","4500SO42-D",null,null,null,null,null,null,null,null,null,null,null,null,"4500SO42-D-Gravimetric with drying of residue","Gravimetric with drying of residue",null,true]
[null,null,null,null,null,null,null,null,null,null,null,null,null,null,null,null,"2080-CYANOGEN CHLORIDE","2080",null,null,null,null,null,null,null,null,null,"4500SO42-D-97-4500-SO42-D-97","4500SO42-D-97",null,null,null,null,null,null,null,null,null,null,null,null,"4500SO42-D-97-4500-SO42-D-97","4500-SO42-D-97",null,true]
[null,null,null,null,null,null,null,null,null,null,null,null,null,null,null,null,"2081-AMYL ACETATE","2081",null,null,null,null,null,null,null,null,null,"4500SO42-E-4500-SO42-E","4500SO42-E",null,null,null,null,null,null,null,null,null,null,null,null,"4500SO42-E-4500-SO42-E","4500-SO42-E",null,true]
[null,null,null,null,null,null,null,null,null,null,null,null,null,null,null,null,"2082-BUTANE","2082",null,null,null,null,null,null,null,null,null,"4500SO42-E-97-4500-SO42-E-97","4500SO42-E-97",null,null,null,null,null,null,null,null,null,null,null,null,"4500SO42-E-97-4500-SO42-E-97","4500-SO42-E-97",null,true]
[null,null,null,null,null,null,null,null,null,null,null,null,null,null,null,null,"2083-BUTYL ACETATE","2083",null,null,null,null,null,null,null,null,null,"4500SO42-F-4500-SO42-F","4500SO42-F",null,null,null,null,null,null,null,null,null,null,null,null,"4500SO42-F-4500-SO42-F","4500-SO42-F",null,true]
[null,null,null,null,null,null,null,null,null,null,null,null,null,null,null,null,"2084-N-BUTYL ALCOHOL","2084",null,null,null,null,null,null,null,null,null,"4500SO42-F-97-4500-SO42-F-97","4500SO42-F-97",null,null,null,null,null,null,null,null,null,null,null,null,"4500SO42-F-97-4500-SO42-F-97","4500-SO42-F-97",null,true]
[null,null,null,null,null,null,null,null,null,null,null,null,null,null,null,null,"2085-SEC-BUTYL ALCOHOL","2085",null,null,null,null,null,null,null,null,null,"502.2-VOC, GC, PID/ECD, P&T, CAPCOLUMN","502.2",null,null,null,null,null,null,null,null,null,null,null,null,"502.2-VOC, GC, PID/ECD, P&T, CAPCOLUMN","VOC, GC, PID/ECD, P&T, CAPCOLUMN",null,true]
[null,null,null,null,null,null,null,null,null,null,null,null,null,null,null,null,"2086-1-CHLOROBUTANE","2086",null,null,null,null,null,null,null,null,null,"503.1-VOC, AROMATIC/UNSATURATED, GC, P&T","503.1",null,null,null,null,null,null,null,null,null,null,null,null,"503.1-VOC, AROMATIC/UNSATURATED, GC, P&T","VOC, AROMATIC/UNSATURATED, GC, P&T",null,true]
[null,null,null,null,null,null,null,null,null,null,null,null,null,null,null,null,"2087-1-CHLOROHEXANE","2087",null,null,null,null,null,null,null,null,null,"504.1-GC-MICROEXTRACTION-ECD","504.1",null,null,null,null,null,null,null,null,null,null,null,null,"504.1-GC-MICROEXTRACTION-ECD","GC-MICROEXTRACTION-ECD",null,true]
[null,null,null,null,null,null,null,null,null,null,null,null,null,null,null,null,"2088-ETHYL ACETATE","2088",null,null,null,null,null,null,null,null,null,"505-PESTICIDES, PCB, GC, MICROEXTRACT","505",null,null,null,null,null,null,null,null,null,null,null,null,"505-PESTICIDES, PCB, GC, MICROEXTRACT","PESTICIDES, PCB, GC, MICROEXTRACT",null,true]
[null,null,null,null,null,null,null,null,null,null,null,null,null,null,null,null,"2089-ETHYL ALCOHOL","2089",null,null,null,null,null,null,null,null,null,"506-GAS CHROMATOGRAPHY-L/L OR L/S EXTRACTION","506",null,null,null,null,null,null,null,null,null,null,null,null,"506-GAS CHROMATOGRAPHY-L/L OR L/S EXTRACTION","GAS CHROMATOGRAPHY-L/L OR L/S EXTRACTION",null,true]
[null,null,null,null,null,null,null,null,null,null,null,null,null,null,null,null,"2090-ETHYL ETHER","2090",null,null,null,null,null,null,null,null,null,"507-PESTICIDES, NIT/PHOS, GC, NIT/PHOSDET","507",null,null,null,null,null,null,null,null,null,null,null,null,"507-PESTICIDES, NIT/PHOS, GC, NIT/PHOSDET","PESTICIDES, NIT/PHOS, GC, NIT/PHOSDET",null,true]
[null,null,null,null,null,null,null,null,null,null,null,null,null,null,null,null,"2091-ISO-OCTANE","2091",null,null,null,null,null,null,null,null,null,"508-PESTICIDES, CHLORINATED, GC, ELCAPDET","508",null,null,null,null,null,null,null,null,null,null,null,null,"508-PESTICIDES, CHLORINATED, GC, ELCAPDET","PESTICIDES, CHLORINATED, GC, ELCAPDET",null,true]
[null,null,null,null,null,null,null,null,null,null,null,null,null,null,null,null,"2092-ISOBUTYL ACETATE","2092",null,null,null,null,null,null,null,null,null,"508.1-PESTICIDES, PCB, GC, MICROEXTRACT","508.1",null,null,null,null,null,null,null,null,null,null,null,null,"508.1-PESTICIDES, PCB, GC, MICROEXTRACT","PESTICIDES, PCB, GC, MICROEXTRACT",null,true]
[null,null,null,null,null,null,null,null,null,null,null,null,null,null,null,null,"2093-ISOBUTYL ALCOHOL","2093",null,null,null,null,null,null,null,null,null,"508A-PACKED COLUMN-GAS CHROMATOGRAPHY","508A",null,null,null,null,null,null,null,null,null,null,null,null,"508A-PACKED COLUMN-GAS CHROMATOGRAPHY","PACKED COLUMN-GAS CHROMATOGRAPHY",null,true]
[null,null,null,null,null,null,null,null,null,null,null,null,null,null,null,null,"2094-ISOPROPYL ACETATE","2094",null,null,null,null,null,null,null,null,null,"510.1-TTHM AFTER INCUBATION","510.1",null,null,null,null,null,null,null,null,null,null,null,null,"510.1-TTHM AFTER INCUBATION","TTHM AFTER INCUBATION",null,true]
[null,null,null,null,null,null,null,null,null,null,null,null,null,null,null,null,"2095-ISOPROPYL ALCOHOL","2095",null,null,null,null,null,null,null,null,null,"515.1-ACIDS, CHLORINATED, GC, ELCAPDET","515.1",null,null,null,null,null,null,null,null,null,null,null,null,"515.1-ACIDS, CHLORINATED, GC, ELCAPDET","ACIDS, CHLORINATED, GC, ELCAPDET",null,true]
[null,null,null,null,null,null,null,null,null,null,null,null,null,null,null,null,"2096-RDX","2096",null,null,null,null,null,null,null,null,null,"515.2-ACIDS, CHLORINATED, GC, ELCAPDET","515.2",null,null,null,null,null,null,null,null,null,null,null,null,"515.2-ACIDS, CHLORINATED, GC, ELCAPDET","ACIDS, CHLORINATED, GC, ELCAPDET",null,{"$f":"(AB205=AP205)","v":true}]
[null,null,null,null,null,null,null,null,null,null,null,null,null,null,null,null,"2097-AMINOMETHYLPHOSPHONIC ACID","2097",null,null,null,null,null,null,null,null,null,"515.3-515.3","515.3",null,null,null,null,null,null,null,null,null,null,null,null,"515.3-515.3","515.3",null,true]
[null,null,null,null,null,null,null,null,null,null,null,null,null,null,null,null,"2098-BROMACIL","2098",null,null,null,null,null,null,null,null,null,"515.3-ACIDS, CHLORINATED, GC, ELCAPDET","515.3",null,null,null,null,null,null,null,null,null,null,null,null,"515.3-ACIDS, CHLORINATED, GC, ELCAPDET","ACIDS, CHLORINATED, GC, ELCAPDET",null,true]
[null,null,null,null,null,null,null,null,null,null,null,null,null,null,null,null,"2099-DCPA","2099",null,null,null,null,null,null,null,null,null,"515.4-515.4","515.4",null,null,null,null,null,null,null,null,null,null,null,null,"515.4-515.4","515.4",null,true]
[null,null,null,null,null,null,null,null,null,null,null,null,null,null,null,null,"2100-DCPA MONO ACID DEGRADATE","2100",null,null,null,null,null,null,null,null,null,"515.4-ACIDS, CHLORINATED, GC, ELCAPDET","515.4",null,null,null,null,null,null,null,null,null,null,null,null,"515.4-ACIDS, CHLORINATED, GC, ELCAPDET","ACIDS, CHLORINATED, GC, ELCAPDET",null,true]
[null,null,null,null,null,null,null,null,null,null,null,null,null,null,null,null,"2101-DCPA DI ACID DEGRADATE","2101",null,null,null,null,null,null,null,null,null,"523-523","523",null,null,null,null,null,null,null,null,null,null,null,null,"523-523","523",null,true]
[null,null,null,null,null,null,null,null,null,null,null,null,null,null,null,null,"2102-DISULFOTON","2102",null,null,null,null,null,null,null,null,null,"523, 26-Solid Phase Extraction/Gas Chromatography/Mass Spectrometry (GC/MS)","523, 26",null,null,null,null,null,null,null,null,null,null,null,null,"523, 26-Solid Phase Extraction/Gas Chromatography/Mass Spectrometry (GC/MS)","Solid Phase Extraction/Gas Chromatography/Mass Spectrometry (GC/MS)",null,true]
[null,null,null,null,null,null,null,null,null,null,null,null,null,null,null,null,"2103-DIURON","2103",null,null,null,null,null,null,null,null,null,"524.1-VOC, GC/MS, P&T, PACKCOLUMN","524.1",null,null,null,null,null,null,null,null,null,null,null,null,"524.1-VOC, GC/MS, P&T, PACKCOLUMN","VOC, GC/MS, P&T, PACKCOLUMN",null,true]
[null,null,null,null,null,null,null,null,null,null,null,null,null,null,null,null,"2105-2,4-D","2105",null,null,null,null,null,null,null,null,null,"524.2-VOC, GC/MS, P&T, CAPCOLUMN","524.2",null,null,null,null,null,null,null,null,null,null,null,null,"524.2-VOC, GC/MS, P&T, CAPCOLUMN","VOC, GC/MS, P&T, CAPCOLUMN",null,true]
[null,null,null,null,null,null,null,null,null,null,null,null,null,null,null,null,"2106-2,4-DB","2106",null,null,null,null,null,null,null,null,null,"524.3-Purge & trap/Gas Chromatography/Mass Spectrometry","524.3",null,null,null,null,null,null,null,null,null,null,null,null,"524.3-Purge & trap/Gas Chromatography/Mass Spectrometry","Purge & trap/Gas Chromatography/Mass Spectrometry",null,true]
[null,null,null,null,null,null,null,null,null,null,null,null,null,null,null,null,"2107-TRICLOPYR","2107",null,null,null,null,null,null,null,null,null,"524.3, 9-Purge & trap/Gas Chromatography/Mass Spectrometry","524.3, 9",null,null,null,null,null,null,null,null,null,null,null,null,"524.3, 9-Purge & trap/Gas Chromatography/Mass Spectrometry","Purge & trap/Gas Chromatography/Mass Spectrometry",null,true]
[null,null,null,null,null,null,null,null,null,null,null,null,null,null,null,null,"2108-DCPA MONO/DI-ACID DEGRADATES","2108",null,null,null,null,null,null,null,null,null,"524.3, 9 -Purge & trap/Gas Chromatography/Mass Spectrometry","524.3, 9 ",null,null,null,null,null,null,null,null,null,null,null,null,"524.3, 9 -Purge & trap/Gas Chromatography/Mass Spectrometry","Purge & trap/Gas Chromatography/Mass Spectrometry",null,true]
[null,null,null,null,null,null,null,null,null,null,null,null,null,null,null,null,"2109-3,4-DICHLOROBENZOIC ACID","2109",null,null,null,null,null,null,null,null,null,"524.4-Purge & trap/Gas Chromatography/Mass Spectrometry","524.4",null,null,null,null,null,null,null,null,null,null,null,null,"524.4-Purge & trap/Gas Chromatography/Mass Spectrometry","Purge & trap/Gas Chromatography/Mass Spectrometry",null,true]
[null,null,null,null,null,null,null,null,null,null,null,null,null,null,null,null,"2110-2,4,5-TP","2110",null,null,null,null,null,null,null,null,null,"524.4, 29-Purge & trap/Gas Chromatography/Mass Spectrometry","524.4, 29",null,null,null,null,null,null,null,null,null,null,null,null,"524.4, 29-Purge & trap/Gas Chromatography/Mass Spectrometry","Purge & trap/Gas Chromatography/Mass Spectrometry",null,true]
[null,null,null,null,null,null,null,null,null,null,null,null,null,null,null,null,"2111-2,4,5-T","2111",null,null,null,null,null,null,null,null,null,"525.1-ORGANICS, GC/MS, LIQ/SOLEXT, CAPCOLUMN","525.1",null,null,null,null,null,null,null,null,null,null,null,null,"525.1-ORGANICS, GC/MS, LIQ/SOLEXT, CAPCOLUMN","ORGANICS, GC/MS, LIQ/SOLEXT, CAPCOLUMN",null,true]
[null,null,null,null,null,null,null,null,null,null,null,null,null,null,null,null,"2112-MECOPROP","2112",null,null,null,null,null,null,null,null,null,"525.2-ORGANICS, GC/MS, LIQ/SOLEXT, CAPCOLUMN","525.2",null,null,null,null,null,null,null,null,null,null,null,null,"525.2-ORGANICS, GC/MS, LIQ/SOLEXT, CAPCOLUMN","ORGANICS, GC/MS, LIQ/SOLEXT, CAPCOLUMN",null,true]
[null,null,null,null,null,null,null,null,null,null,null,null,null,null,null,null,"2113-MCPA","2113",null,null,null,null,null,null,null,null,null,"525.3-Solid Phase Extraction/Gas Chromatography/Mass Spectrometry (GC/MS)","525.3",null,null,null,null,null,null,null,null,null,null,null,null,"525.3-Solid Phase Extraction/Gas Chromatography/Mass Spectrometry (GC/MS)","Solid Phase Extraction/Gas Chromatography/Mass Spectrometry (GC/MS)",null,true]
[null,null,null,null,null,null,null,null,null,null,null,null,null,null,null,null,"2114-PERMETHRIN (MIXED, CIS, TRANS)","2114",null,null,null,null,null,null,null,null,null,"525.3, 24-Solid Phase Extraction/Gas Chromatography/Mass Spectrometry (GC/MS)","525.3, 24",null,null,null,null,null,null,null,null,null,null,null,null,"525.3, 24-Solid Phase Extraction/Gas Chromatography/Mass Spectrometry (GC/MS)","Solid Phase Extraction/Gas Chromatography/Mass Spectrometry (GC/MS)",null,true]
[null,null,null,null,null,null,null,null,null,null,null,null,null,null,null,null,"2200-2-NITROANILINE","2200",null,null,null,null,null,null,null,null,null,"527-GC/MS SOLID PHS EXTRACT & CAPILLARY COL","527",null,null,null,null,null,null,null,null,null,null,null,null,"527-GC/MS SOLID PHS EXTRACT & CAPILLARY COL","GC/MS SOLID PHS EXTRACT & CAPILLARY COL",null,{"$f":"(AB224=AP224)","v":true}]
[null,null,null,null,null,null,null,null,null,null,null,null,null,null,null,null,"2201-3-NITROANILINE","2201",null,null,null,null,null,null,null,null,null,"531.1-PESTICIDES, CARBAMATES, HPLC, POSTCOL","531.1",null,null,null,null,null,null,null,null,null,null,null,null,"531.1-PESTICIDES, CARBAMATES, HPLC, POSTCOL","PESTICIDES, CARBAMATES, HPLC, POSTCOL",null,true]
[null,null,null,null,null,null,null,null,null,null,null,null,null,null,null,null,"2202-DIBENZOFURAN","2202",null,null,null,null,null,null,null,null,null,"531.2-531.2","531.2",null,null,null,null,null,null,null,null,null,null,null,null,"531.2-531.2","531.2",null,true]
[null,null,null,null,null,null,null,null,null,null,null,null,null,null,null,null,"2203-4-NITROANILINE","2203",null,null,null,null,null,null,null,null,null,"531.2-PESTICIDES, CARBAMATES, HPLC, POSTCOL","531.2",null,null,null,null,null,null,null,null,null,null,null,null,"531.2-PESTICIDES, CARBAMATES, HPLC, POSTCOL","PESTICIDES, CARBAMATES, HPLC, POSTCOL",null,true]
[null,null,null,null,null,null,null,null,null,null,null,null,null,null,null,null,"2204-AZOBENZENE","2204",null,null,null,null,null,null,null,null,null,"5310B-HIGH TEMPERATURE COMBUSTION METHOD","5310B",null,null,null,null,null,null,null,null,null,null,null,null,"5310B-HIGH TEMPERATURE COMBUSTION METHOD","HIGH TEMPERATURE COMBUSTION METHOD",null,true]
[null,null,null,null,null,null,null,null,null,null,null,null,null,null,null,null,"2205-CHLORAMBEN","2205",null,null,null,null,null,null,null,null,null,"5310C-PERSULFATE-ULTRAVIOLET OR OXIDATION","5310C",null,null,null,null,null,null,null,null,null,null,null,null,"5310C-PERSULFATE-ULTRAVIOLET OR OXIDATION","PERSULFATE-ULTRAVIOLET OR OXIDATION",null,true]
[null,null,null,null,null,null,null,null,null,null,null,null,null,null,null,null,"2206-DICHLORPROP","2206",null,null,null,null,null,null,null,null,null,"5310D-WET-OXIDATION METHOD","5310D",null,null,null,null,null,null,null,null,null,null,null,null,"5310D-WET-OXIDATION METHOD","WET-OXIDATION METHOD",null,true]
[null,null,null,null,null,null,null,null,null,null,null,null,null,null,null,null,"2207-BENFLURALIN","2207",null,null,null,null,null,null,null,null,null,"535-LC/MS/MS SOLID PH EXTR & LIQUID CHROM","535",null,null,null,null,null,null,null,null,null,null,null,null,"535-LC/MS/MS SOLID PH EXTR & LIQUID CHROM","LC/MS/MS SOLID PH EXTR & LIQUID CHROM",null,true]
[null,null,null,null,null,null,null,null,null,null,null,null,null,null,null,null,"2209-BROMOXYNIL","2209",null,null,null,null,null,null,null,null,null,"536-Liquid Chromatography Electrospray Ionization Tandem Mass Spectrometry (LC/ESI-MS/MS)","536",null,null,null,null,null,null,null,null,null,null,null,null,"536-Liquid Chromatography Electrospray Ionization Tandem Mass Spectrometry (LC/ESI-MS/MS)","Liquid Chromatography Electrospray Ionization Tandem Mass Spectrometry (LC/ESI-MS/MS)",null,true]
[null,null,null,null,null,null,null,null,null,null,null,null,null,null,null,null,"2210-CHLOROMETHANE","2210",null,null,null,null,null,null,null,null,null,"536, 25-Liquid Chromatography Electrospray Ionization Tandem Mass Spectrometry (LC/ESI-MS/MS)","536, 25",null,null,null,null,null,null,null,null,null,null,null,null,"536, 25-Liquid Chromatography Electrospray Ionization Tandem Mass Spectrometry (LC/ESI-MS/MS)","Liquid Chromatography Electrospray Ionization Tandem Mass Spectrometry (LC/ESI-MS/MS)",null,true]
[null,null,null,null,null,null,null,null,null,null,null,null,null,null,null,null,"2212-DICHLORODIFLUOROMETHANE","2212",null,null,null,null,null,null,null,null,null,"547-HIGH PERF LIQ CHROM-POST COL REACTOR-FLU","547",null,null,null,null,null,null,null,null,null,null,null,null,"547-HIGH PERF LIQ CHROM-POST COL REACTOR-FLU","HIGH PERF LIQ CHROM-POST COL REACTOR-FLU",null,true]
[null,null,null,null,null,null,null,null,null,null,null,null,null,null,null,null,"2213-CHLOROTHALONIL","2213",null,null,null,null,null,null,null,null,null,"548.1-GC-L/S EXTRACTION-ELECTRON CAPTURE DETEC","548.1",null,null,null,null,null,null,null,null,null,null,null,null,"548.1-GC-L/S EXTRACTION-ELECTRON CAPTURE DETEC","GC-L/S EXTRACTION-ELECTRON CAPTURE DETEC",null,true]
[null,null,null,null,null,null,null,null,null,null,null,null,null,null,null,null,"2214-BROMOMETHANE","2214",null,null,null,null,null,null,null,null,null,"549-HIGH PERF LIQ CHROM-L/S EXTRACT- UV DETE","549",null,null,null,null,null,null,null,null,null,null,null,null,"549-HIGH PERF LIQ CHROM-L/S EXTRACT- UV DETE","HIGH PERF LIQ CHROM-L/S EXTRACT- UV DETE",null,true]
[null,null,null,null,null,null,null,null,null,null,null,null,null,null,null,null,"2215-CHLOROPYRIFOS","2215",null,null,null,null,null,null,null,null,null,"549.1-HIGH PERF LIQ CHROM-L/S EXTRACT- UV DETE","549.1",null,null,null,null,null,null,null,null,null,null,null,null,"549.1-HIGH PERF LIQ CHROM-L/S EXTRACT- UV DETE","HIGH PERF LIQ CHROM-L/S EXTRACT- UV DETE",null,true]
[null,null,null,null,null,null,null,null,null,null,null,null,null,null,null,null,"2216-CHLOROETHANE","2216",null,null,null,null,null,null,null,null,null,"549.2-549.2","549.2",null,null,null,null,null,null,null,null,null,null,null,null,"549.2-549.2","549.2",null,true]
[null,null,null,null,null,null,null,null,null,null,null,null,null,null,null,null,"2217-CHLORSULFURON","2217",null,null,null,null,null,null,null,null,null,"550-HIGH PERF LIQ CHR-L/L EXT- UV AND FLUOR","550",null,null,null,null,null,null,null,null,null,null,null,null,"550-HIGH PERF LIQ CHR-L/L EXT- UV AND FLUOR","HIGH PERF LIQ CHR-L/L EXT- UV AND FLUOR",null,true]
[null,null,null,null,null,null,null,null,null,null,null,null,null,null,null,null,"2218-TRICHLOROFLUOROMETHANE","2218",null,null,null,null,null,null,null,null,null,"550.1-HIGH PERF LIQ CHR-L/L EXT- UV AND FLUOR","550.1",null,null,null,null,null,null,null,null,null,null,null,null,"550.1-HIGH PERF LIQ CHR-L/L EXT- UV AND FLUOR","HIGH PERF LIQ CHR-L/L EXT- UV AND FLUOR",null,true]
[null,null,null,null,null,null,null,null,null,null,null,null,null,null,null,null,"2219-TRICHLOROACETONITRILE","2219",null,null,null,null,null,null,null,null,null,"551-DBPS & CL2 SOLVENTS GC L/L ELECTRON CAPT","551",null,null,null,null,null,null,null,null,null,null,null,null,"551-DBPS & CL2 SOLVENTS GC L/L ELECTRON CAPT","DBPS & CL2 SOLVENTS GC L/L ELECTRON CAPT",null,true]
[null,null,null,null,null,null,null,null,null,null,null,null,null,null,null,null,"2220-DICHROTOPHOS","2220",null,null,null,null,null,null,null,null,null,"551.1-DBPS & CL2 SOLVENTS GC L/L ELECTRON CAPT","551.1",null,null,null,null,null,null,null,null,null,null,null,null,"551.1-DBPS & CL2 SOLVENTS GC L/L ELECTRON CAPT","DBPS & CL2 SOLVENTS GC L/L ELECTRON CAPT",null,true]
[null,null,null,null,null,null,null,null,null,null,null,null,null,null,null,null,"2221-DIMETHOATE","2221",null,null,null,null,null,null,null,null,null,"552-HAAS - GC L/L ELECTRON CAPTURE","552",null,null,null,null,null,null,null,null,null,null,null,null,"552-HAAS - GC L/L ELECTRON CAPTURE","HAAS - GC L/L ELECTRON CAPTURE",null,true]
[null,null,null,null,null,null,null,null,null,null,null,null,null,null,null,null,"2222-BIS(2-CHLOROETHYL) ETHER","2222",null,null,null,null,null,null,null,null,null,"552.1-HAAS - GC L/L ELECTRON CAPTURE","552.1",null,null,null,null,null,null,null,null,null,null,null,null,"552.1-HAAS - GC L/L ELECTRON CAPTURE","HAAS - GC L/L ELECTRON CAPTURE",null,true]
[null,null,null,null,null,null,null,null,null,null,null,null,null,null,null,null,"2223-DI-N-OCTYL PHTHALATE","2223",null,null,null,null,null,null,null,null,null,"552.2-DBPS & CL2 SOLVENTS GC L/L ELECTRON CAPT","552.2",null,null,null,null,null,null,null,null,null,null,null,null,"552.2-DBPS & CL2 SOLVENTS GC L/L ELECTRON CAPT","DBPS & CL2 SOLVENTS GC L/L ELECTRON CAPT",null,true]
[null,null,null,null,null,null,null,null,null,null,null,null,null,null,null,null,"2224-TRANS-1,3-DICHLOROPROPENE","2224",null,null,null,null,null,null,null,null,null,"552.3-552.3","552.3",null,null,null,null,null,null,null,null,null,null,null,null,"552.3-552.3","552.3",null,true]
[null,null,null,null,null,null,null,null,null,null,null,null,null,null,null,null,"2225-HEXACHLOROETHANE","2225",null,null,null,null,null,null,null,null,null,"5540C-Methylene Blue Active Substances (MBAS)","5540C",null,null,null,null,null,null,null,null,null,null,null,null,"5540C-Methylene Blue Active Substances (MBAS)","Methylene Blue Active Substances (MBAS)",null,true]
[null,null,null,null,null,null,null,null,null,null,null,null,null,null,null,null,"2226-TRANS-1,2-DICHLOROPROPENE","2226",null,null,null,null,null,null,null,null,null,"5540C-00-5540 C-00","5540C-00",null,null,null,null,null,null,null,null,null,null,null,null,"5540C-00-5540 C-00","5540 C-00",null,true]
[null,null,null,null,null,null,null,null,null,null,null,null,null,null,null,null,"2227-2-METHYL-4,6-DINITROPHENOL","2227",null,null,null,null,null,null,null,null,null,"555-ACIDS, CHLORINATED, GC, ELCAPDET","555",null,null,null,null,null,null,null,null,null,null,null,null,"555-ACIDS, CHLORINATED, GC, ELCAPDET","ACIDS, CHLORINATED, GC, ELCAPDET",null,true]
[null,null,null,null,null,null,null,null,null,null,null,null,null,null,null,null,"2228-CIS-1,3-DICHLOROPROPENE","2228",null,null,null,null,null,null,null,null,null,"557-Ion Chromatography Electrospray Ionization Tandem Mass Spectrometry (IC-ESI-MS/MS)","557",null,null,null,null,null,null,null,null,null,null,null,null,"557-Ion Chromatography Electrospray Ionization Tandem Mass Spectrometry (IC-ESI-MS/MS)","Ion Chromatography Electrospray Ionization Tandem Mass Spectrometry (IC-ESI-MS/MS)",null,true]
[null,null,null,null,null,null,null,null,null,null,null,null,null,null,null,null,"2229-N-NITROSODIPHENYLAMINE","2229",null,null,null,null,null,null,null,null,null,"557, 14-Ion Chromatography Electrospray Ionization Tandem Mass Spectrometry (IC-ESI-MS/MS)","557, 14",null,null,null,null,null,null,null,null,null,null,null,null,"557, 14-Ion Chromatography Electrospray Ionization Tandem Mass Spectrometry (IC-ESI-MS/MS)","Ion Chromatography Electrospray Ionization Tandem Mass Spectrometry (IC-ESI-MS/MS)",null,true]
[null,null,null,null,null,null,null,null,null,null,null,null,null,null,null,null,"2230-ANILINE","2230",null,null,null,null,null,null,null,null,null,"5910B-ULTRAVIOLET ABSORPTION METHOD","5910B",null,null,null,null,null,null,null,null,null,null,null,null,"5910B-ULTRAVIOLET ABSORPTION METHOD","ULTRAVIOLET ABSORPTION METHOD",null,true]
[null,null,null,null,null,null,null,null,null,null,null,null,null,null,null,null,"2231-BENZYL ALCOHOL","2231",null,null,null,null,null,null,null,null,null,"5910B-00-5910B-00","5910B-00",null,null,null,null,null,null,null,null,null,null,null,null,"5910B-00-5910B-00","5910B-00",null,true]
[null,null,null,null,null,null,null,null,null,null,null,null,null,null,null,null,"2232-1,2-DIBROMOETHYLENE","2232",null,null,null,null,null,null,null,null,null,"601-601","601",null,null,null,null,null,null,null,null,null,null,null,null,"601-601","601",null,true]
[null,null,null,null,null,null,null,null,null,null,null,null,null,null,null,null,"2233-2-METHYLPHENOL","2233",null,null,null,null,null,null,null,null,null,"6251B-GC-L/S EXTRACTION-ELECTRON CAPTURE DETEC","6251B",null,null,null,null,null,null,null,null,null,null,null,null,"6251B-GC-L/S EXTRACTION-ELECTRON CAPTURE DETEC","GC-L/S EXTRACTION-ELECTRON CAPTURE DETEC",null,true]
[null,null,null,null,null,null,null,null,null,null,null,null,null,null,null,null,"2234-2-CHLOROETHYL VINYL ETHER","2234",null,null,null,null,null,null,null,null,null,"6251B-07-LLE (diazomethane)/GC/ECD","6251B-07",null,null,null,null,null,null,null,null,null,null,null,null,"6251B-07-LLE (diazomethane)/GC/ECD","LLE (diazomethane)/GC/ECD",null,{"$f":"(AB256=AP256)","v":true}]
[null,null,null,null,null,null,null,null,null,null,null,null,null,null,null,null,"2235-4-METHYLPHENOL","2235",null,null,null,null,null,null,null,null,null,"6251B-94-6251B-94","6251B-94",null,null,null,null,null,null,null,null,null,null,null,null,"6251B-94-6251B-94","6251B-94",null,true]
[null,null,null,null,null,null,null,null,null,null,null,null,null,null,null,null,"2236-DIIODOMETHANE","2236",null,null,null,null,null,null,null,null,null,"6610-PESTICIDES, CARBAMATES, HPLC, POSTCOL","6610",null,null,null,null,null,null,null,null,null,null,null,null,"6610-PESTICIDES, CARBAMATES, HPLC, POSTCOL","PESTICIDES, CARBAMATES, HPLC, POSTCOL",null,true]
[null,null,null,null,null,null,null,null,null,null,null,null,null,null,null,null,"2237-BENZOIC ACID","2237",null,null,null,null,null,null,null,null,null,"6610B-High-performance liquid chromatography (HPLC) with post-column derivatization and fluorescence detection","6610B",null,null,null,null,null,null,null,null,null,null,null,null,"6610B-High-performance liquid chromatography (HPLC) with post-column derivatization and fluorescence detection","High-performance liquid chromatography (HPLC) with post-column derivatization and fluorescence detection",null,true]
[null,null,null,null,null,null,null,null,null,null,null,null,null,null,null,null,"2238-ACROLEIN","2238",null,null,null,null,null,null,null,null,null,"6610B-04-6610B-04","6610B-04",null,null,null,null,null,null,null,null,null,null,null,null,"6610B-04-6610B-04","6610B-04",null,true]
[null,null,null,null,null,null,null,null,null,null,null,null,null,null,null,null,"2239-4-CHLOROANILINE","2239",null,null,null,null,null,null,null,null,null,"6640B-Gas Chromatography/Electron Capture Detection (GC/ECD)","6640B",null,null,null,null,null,null,null,null,null,null,null,null,"6640B-Gas Chromatography/Electron Capture Detection (GC/ECD)","Gas Chromatography/Electron Capture Detection (GC/ECD)",null,true]
[null,null,null,null,null,null,null,null,null,null,null,null,null,null,null,null,"2240-ACRYLONITRILE","2240",null,null,null,null,null,null,null,null,null,"6640B-01-6640B-01","6640B-01",null,null,null,null,null,null,null,null,null,null,null,null,"6640B-01-6640B-01","6640B-01",null,true]
[null,null,null,null,null,null,null,null,null,null,null,null,null,null,null,null,"2241-2-METHYLNAPHTHALENE","2241",null,null,null,null,null,null,null,null,null,"6651-VOC, GC, PID/ECD, P&T, CAPCOLUMN","6651",null,null,null,null,null,null,null,null,null,null,null,null,"6651-VOC, GC, PID/ECD, P&T, CAPCOLUMN","VOC, GC, PID/ECD, P&T, CAPCOLUMN",null,true]
[null,null,null,null,null,null,null,null,null,null,null,null,null,null,null,null,"2242-2,4,5-TRICHLOROPHENOL","2242",null,null,null,null,null,null,null,null,null,"6651B-High-performance liquid chromatography (HPLC) with post-column derivatization and fluorescence detection","6651B",null,null,null,null,null,null,null,null,null,null,null,null,"6651B-High-performance liquid chromatography (HPLC) with post-column derivatization and fluorescence detection","High-performance liquid chromatography (HPLC) with post-column derivatization and fluorescence detection",null,true]
[null,null,null,null,null,null,null,null,null,null,null,null,null,null,null,null,"2243-ACETONE","2243",null,null,null,null,null,null,null,null,null,"6651B-00-6651B-00","6651B-00",null,null,null,null,null,null,null,null,null,null,null,null,"6651B-00-6651B-00","6651B-00",null,true]
[null,null,null,null,null,null,null,null,null,null,null,null,null,null,null,null,"2244-BIS(2-CHLOROISOPROPYL) ETHER","2244",null,null,null,null,null,null,null,null,null,"7110B-EVAPORATION METHOD FOR GROSS ALPHA-BETA","7110B",null,null,null,null,null,null,null,null,null,null,null,null,"7110B-EVAPORATION METHOD FOR GROSS ALPHA-BETA","EVAPORATION METHOD FOR GROSS ALPHA-BETA",null,true]
[null,null,null,null,null,null,null,null,null,null,null,null,null,null,null,null,"2245-ISOPROPYL ETHER","2245",null,null,null,null,null,null,null,null,null,"7110B-00-7110B-00","7110B-00",null,null,null,null,null,null,null,null,null,null,null,null,"7110B-00-7110B-00","7110B-00",null,true]
[null,null,null,null,null,null,null,null,null,null,null,null,null,null,null,null,"2246-HEXACHLOROBUTADIENE","2246",null,null,null,null,null,null,null,null,null,"7110C-Coprecipitation","7110C",null,null,null,null,null,null,null,null,null,null,null,null,"7110C-Coprecipitation","Coprecipitation",null,true]
[null,null,null,null,null,null,null,null,null,null,null,null,null,null,null,null,"2247-METHYL ETHYL KETONE","2247",null,null,null,null,null,null,null,null,null,"7110C-00-7110C-00","7110C-00",null,null,null,null,null,null,null,null,null,null,null,null,"7110C-00-7110C-00","7110C-00",null,true]
[null,null,null,null,null,null,null,null,null,null,null,null,null,null,null,null,"2248-NAPHTHALENE","2248",null,null,null,null,null,null,null,null,null,"7120-Gamma Ray Spectrometry","7120",null,null,null,null,null,null,null,null,null,null,null,null,"7120-Gamma Ray Spectrometry","Gamma Ray Spectrometry",null,true]
[null,null,null,null,null,null,null,null,null,null,null,null,null,null,null,null,"2249-METHYL ISOBUTYL KETONE","2249",null,null,null,null,null,null,null,null,null,"7120-97-7120-97","7120-97",null,null,null,null,null,null,null,null,null,null,null,null,"7120-97-7120-97","7120-97",null,true]
[null,null,null,null,null,null,null,null,null,null,null,null,null,null,null,null,"2250-BIS(2-CHLOROETHOXY)METHANE","2250",null,null,null,null,null,null,null,null,null,"7500-3H-B-00-7500-3H-B-00","7500-3H-B-00",null,null,null,null,null,null,null,null,null,null,null,null,"7500-3H-B-00-7500-3H-B-00","7500-3H-B-00",null,true]
[null,null,null,null,null,null,null,null,null,null,null,null,null,null,null,null,"2251-METHYL TERT-BUTYL ETHER","2251",null,null,null,null,null,null,null,null,null,"7500-3HB-LIQUID SCINTILLATION SPECTROPHOTOMETRIC","7500-3HB",null,null,null,null,null,null,null,null,null,null,null,null,"7500-3HB-LIQUID SCINTILLATION SPECTROPHOTOMETRIC","LIQUID SCINTILLATION SPECTROPHOTOMETRIC",null,true]
[null,null,null,null,null,null,null,null,null,null,null,null,null,null,null,null,"2252-ETHALFLURALIN","2252",null,null,null,null,null,null,null,null,null,"7500-CS-B-7500-CS-B","7500-CS-B",null,null,null,null,null,null,null,null,null,null,null,null,"7500-CS-B-7500-CS-B","7500-CS-B",null,true]
[null,null,null,null,null,null,null,null,null,null,null,null,null,null,null,null,"2253-DEMETON METHYL","2253",null,null,null,null,null,null,null,null,null,"7500-CS-B-00-7500-CS-B-00","7500-CS-B-00",null,null,null,null,null,null,null,null,null,null,null,null,"7500-CS-B-00-7500-CS-B-00","7500-CS-B-00",null,true]
[null,null,null,null,null,null,null,null,null,null,null,null,null,null,null,null,"2254-NITROBENZENE","2254",null,null,null,null,null,null,null,null,null,"7500-I-B-7500-I-B","7500-I-B",null,null,null,null,null,null,null,null,null,null,null,null,"7500-I-B-7500-I-B","7500-I-B",null,true]
[null,null,null,null,null,null,null,null,null,null,null,null,null,null,null,null,"2255-PENDIMETHALIN","2255",null,null,null,null,null,null,null,null,null,"7500-I-B-00-7500-I-B-00","7500-I-B-00",null,null,null,null,null,null,null,null,null,null,null,null,"7500-I-B-00-7500-I-B-00","7500-I-B-00",null,true]
[null,null,null,null,null,null,null,null,null,null,null,null,null,null,null,null,"2256-PROPAZINE","2256",null,null,null,null,null,null,null,null,null,"7500-RA-PRECIPITATION METHOD FOR RADIUM","7500-RA",null,null,null,null,null,null,null,null,null,null,null,null,"7500-RA-PRECIPITATION METHOD FOR RADIUM","PRECIPITATION METHOD FOR RADIUM",null,true]
[null,null,null,null,null,null,null,null,null,null,null,null,null,null,null,null,"2257-EPICHLOROHYDRIN","2257",null,null,null,null,null,null,null,null,null,"7500-RA-B-01-7500-RA-B-01","7500-RA-B-01",null,null,null,null,null,null,null,null,null,null,null,null,"7500-RA-B-01-7500-RA-B-01","7500-RA-B-01",null,true]
[null,null,null,null,null,null,null,null,null,null,null,null,null,null,null,null,"2258-2-CHLORONAPHTHALENE","2258",null,null,null,null,null,null,null,null,null,"7500-RA-C-01-7500-RA-C-01","7500-RA-C-01",null,null,null,null,null,null,null,null,null,null,null,null,"7500-RA-C-01-7500-RA-C-01","7500-RA-C-01",null,true]
[null,null,null,null,null,null,null,null,null,null,null,null,null,null,null,null,"2259-1-NAPHTHOL","2259",null,null,null,null,null,null,null,null,null,"7500-RA-D-01-7500-RA-D-01","7500-RA-D-01",null,null,null,null,null,null,null,null,null,null,null,null,"7500-RA-D-01-7500-RA-D-01","7500-RA-D-01",null,true]
[null,null,null,null,null,null,null,null,null,null,null,null,null,null,null,null,"2260-ACENAPHTHYLENE","2260",null,null,null,null,null,null,null,null,null,"7500-RAB-PRECIPITATION METHOD FOR RADIUM","7500-RAB",null,null,null,null,null,null,null,null,null,null,null,null,"7500-RAB-PRECIPITATION METHOD FOR RADIUM","PRECIPITATION METHOD FOR RADIUM",null,true]
[null,null,null,null,null,null,null,null,null,null,null,null,null,null,null,null,"2261-ACENAPHTHENE","2261",null,null,null,null,null,null,null,null,null,"7500-RAC-Radon emanation","7500-RAC",null,null,null,null,null,null,null,null,null,null,null,null,"7500-RAC-Radon emanation","Radon emanation",null,true]
[null,null,null,null,null,null,null,null,null,null,null,null,null,null,null,null,"2262-ISOPHORONE","2262",null,null,null,null,null,null,null,null,null,"7500-RAD-SEQUENTIAL PRECIPITATION METHOD FOR RADI","7500-RAD",null,null,null,null,null,null,null,null,null,null,null,null,"7500-RAD-SEQUENTIAL PRECIPITATION METHOD FOR RADI","SEQUENTIAL PRECIPITATION METHOD FOR RADI",null,true]
[null,null,null,null,null,null,null,null,null,null,null,null,null,null,null,null,"2263-TETRAHYDROFURAN","2263",null,null,null,null,null,null,null,null,null,"7500RN-RADON ANALYSIS","7500RN",null,null,null,null,null,null,null,null,null,null,null,null,"7500RN-RADON ANALYSIS","RADON ANALYSIS",null,true]
[null,null,null,null,null,null,null,null,null,null,null,null,null,null,null,null,"2264-FLUORENE","2264",null,null,null,null,null,null,null,null,null,"7500-SRB-SR-89 AND SR-90","7500-SRB",null,null,null,null,null,null,null,null,null,null,null,null,"7500-SRB-SR-89 AND SR-90","SR-89 AND SR-90",null,true]
[null,null,null,null,null,null,null,null,null,null,null,null,null,null,null,null,"2265-ACRYLAMIDE","2265",null,null,null,null,null,null,null,null,null,"7500-UB-RADIOCHEMICAL METHOD","7500-UB",null,null,null,null,null,null,null,null,null,null,null,null,"7500-UB-RADIOCHEMICAL METHOD","RADIOCHEMICAL METHOD",null,true]
[null,null,null,null,null,null,null,null,null,null,null,null,null,null,null,null,"2266-2,6-DINITROTOLUENE","2266",null,null,null,null,null,null,null,null,null,"7500-UB-00-7500-UB-00","7500-UB-00",null,null,null,null,null,null,null,null,null,null,null,null,"7500-UB-00-7500-UB-00","7500-UB-00",null,{"$f":"(AB288=AP288)","v":true}]
[null,null,null,null,null,null,null,null,null,null,null,null,null,null,null,null,"2267-PROPHOS","2267",null,null,null,null,null,null,null,null,null,"7500-UC-ISOTOPIC METHOD","7500-UC",null,null,null,null,null,null,null,null,null,null,null,null,"7500-UC-ISOTOPIC METHOD","ISOTOPIC METHOD",null,true]
[null,null,null,null,null,null,null,null,null,null,null,null,null,null,null,null,"2268-1,2-DIPHENYLHYDRAZINE","2268",null,null,null,null,null,null,null,null,null,"7500-UC-00-7500-UC-00","7500-UC-00",null,null,null,null,null,null,null,null,null,null,null,null,"7500-UC-00-7500-UC-00","7500-UC-00",null,true]
[null,null,null,null,null,null,null,null,null,null,null,null,null,null,null,null,"2269-2-HEXANONE","2269",null,null,null,null,null,null,null,null,null,"8270-GAS CHROMATOGRAPHY-L/L OR L/S EXTRACTION","8270",null,null,null,null,null,null,null,null,null,null,null,null,"8270-GAS CHROMATOGRAPHY-L/L OR L/S EXTRACTION","GAS CHROMATOGRAPHY-L/L OR L/S EXTRACTION",null,true]
[null,null,null,null,null,null,null,null,null,null,null,null,null,null,null,null,"2270-2,4-DINITROTOLUENE","2270",null,null,null,null,null,null,null,null,null,"900-EVAPORATION METHOD FOR GROSS ALPHA-BETA","900",null,null,null,null,null,null,null,null,null,null,null,null,"900-EVAPORATION METHOD FOR GROSS ALPHA-BETA","EVAPORATION METHOD FOR GROSS ALPHA-BETA",null,true]
[null,null,null,null,null,null,null,null,null,null,null,null,null,null,null,null,"2271-TEBUTHIURON","2271",null,null,null,null,null,null,null,null,null,"900.0-EVAPORATION METHOD FOR GROSS ALPHA-BETA","900.0",null,null,null,null,null,null,null,null,null,null,null,null,"900.0-EVAPORATION METHOD FOR GROSS ALPHA-BETA","EVAPORATION METHOD FOR GROSS ALPHA-BETA",null,true]
[null,null,null,null,null,null,null,null,null,null,null,null,null,null,null,null,"2272-TERBACIL","2272",null,null,null,null,null,null,null,null,null,"901.0-901.0","901.0",null,null,null,null,null,null,null,null,null,null,null,null,"901.0-901.0","901.0",null,true]
[null,null,null,null,null,null,null,null,null,null,null,null,null,null,null,null,"2273-TRANS-NONACHLOR","2273",null,null,null,null,null,null,null,null,null,"901.1-901.1","901.1",null,null,null,null,null,null,null,null,null,null,null,null,"901.1-901.1","901.1",null,true]
[null,null,null,null,null,null,null,null,null,null,null,null,null,null,null,null,"2274-HEXACHLOROBENZENE","2274",null,null,null,null,null,null,null,null,null,"902.0-902.0","902.0",null,null,null,null,null,null,null,null,null,null,null,null,"902.0-902.0","902.0",null,true]
[null,null,null,null,null,null,null,null,null,null,null,null,null,null,null,null,"2275-TRANS-PERMETHRIN","2275",null,null,null,null,null,null,null,null,null,"903-903","903",null,null,null,null,null,null,null,null,null,null,null,null,"903-903","903",null,true]
[null,null,null,null,null,null,null,null,null,null,null,null,null,null,null,null,"2276-4-BROMOPHENYL PHENYL ETHER","2276",null,null,null,null,null,null,null,null,null,"903.0-ALPHA-EMITTING RADIUM ISOTOPES","903.0",null,null,null,null,null,null,null,null,null,null,null,null,"903.0-ALPHA-EMITTING RADIUM ISOTOPES","ALPHA-EMITTING RADIUM ISOTOPES",null,true]
[null,null,null,null,null,null,null,null,null,null,null,null,null,null,null,null,"2277-4-METHYL-2-PENTANONE","2277",null,null,null,null,null,null,null,null,null,"903.1-PRECIPITATION METHOD FOR RADIUM","903.1",null,null,null,null,null,null,null,null,null,null,null,null,"903.1-PRECIPITATION METHOD FOR RADIUM","PRECIPITATION METHOD FOR RADIUM",null,true]
[null,null,null,null,null,null,null,null,null,null,null,null,null,null,null,null,"2278-PHENANTHRENE","2278",null,null,null,null,null,null,null,null,null,"904-SEQUENTIAL PRECIPITATION METHOD FOR RADI","904",null,null,null,null,null,null,null,null,null,null,null,null,"904-SEQUENTIAL PRECIPITATION METHOD FOR RADI","SEQUENTIAL PRECIPITATION METHOD FOR RADI",null,true]
[null,null,null,null,null,null,null,null,null,null,null,null,null,null,null,null,"2280-ANTHRACENE","2280",null,null,null,null,null,null,null,null,null,"904.0-SEQUENTIAL PRECIPITATION METHOD FOR RADI","904.0",null,null,null,null,null,null,null,null,null,null,null,null,"904.0-SEQUENTIAL PRECIPITATION METHOD FOR RADI","SEQUENTIAL PRECIPITATION METHOD FOR RADI",null,true]
[null,null,null,null,null,null,null,null,null,null,null,null,null,null,null,null,"2282-DIMETHYL PHTHALATE","2282",null,null,null,null,null,null,null,null,null,"904.4-SEQUENTIAL PRECIPITATION METHOD FOR RADI","904.4",null,null,null,null,null,null,null,null,null,null,null,null,"904.4-SEQUENTIAL PRECIPITATION METHOD FOR RADI","SEQUENTIAL PRECIPITATION METHOD FOR RADI",null,true]
[null,null,null,null,null,null,null,null,null,null,null,null,null,null,null,null,"2283-LINURON","2283",null,null,null,null,null,null,null,null,null,"905-905","905",null,null,null,null,null,null,null,null,null,null,null,null,"905-905","905",null,true]
[null,null,null,null,null,null,null,null,null,null,null,null,null,null,null,null,"2284-DIETHYL PHTHALATE","2284",null,null,null,null,null,null,null,null,null,"905.0-LIQUID SCINTILLATION SPECTROPHOTOMETRIC","905.0",null,null,null,null,null,null,null,null,null,null,null,null,"905.0-LIQUID SCINTILLATION SPECTROPHOTOMETRIC","LIQUID SCINTILLATION SPECTROPHOTOMETRIC",null,true]
[null,null,null,null,null,null,null,null,null,null,null,null,null,null,null,null,"2286-FLUORANTHENE","2286",null,null,null,null,null,null,null,null,null,"906-LIQUID SCINTILLATION SPECTROPHOTOMETRIC","906",null,null,null,null,null,null,null,null,null,null,null,null,"906-LIQUID SCINTILLATION SPECTROPHOTOMETRIC","LIQUID SCINTILLATION SPECTROPHOTOMETRIC",null,true]
[null,null,null,null,null,null,null,null,null,null,null,null,null,null,null,null,"2288-PYRENE","2288",null,null,null,null,null,null,null,null,null,"908-RADIOCHEMICAL METHOD","908",null,null,null,null,null,null,null,null,null,null,null,null,"908-RADIOCHEMICAL METHOD","RADIOCHEMICAL METHOD",null,true]
[null,null,null,null,null,null,null,null,null,null,null,null,null,null,null,null,"2289-PROPANIL","2289",null,null,null,null,null,null,null,null,null,"908.0-908.0","908.0",null,null,null,null,null,null,null,null,null,null,null,null,"908.0-908.0","908.0",null,true]
[null,null,null,null,null,null,null,null,null,null,null,null,null,null,null,null,"2290-DI-N-BUTYL PHTHALATE","2290",null,null,null,null,null,null,null,null,null,"908.1-ISOTOPIC METHOD","908.1",null,null,null,null,null,null,null,null,null,null,null,null,"908.1-ISOTOPIC METHOD","ISOTOPIC METHOD",null,true]
[null,null,null,null,null,null,null,null,null,null,null,null,null,null,null,null,"2291-DIFLUBENZURON","2291",null,null,null,null,null,null,null,null,null,"AMI Turbiwell.15-LED Nephelometry (on-line)","AMI Turbiwell.15",null,null,null,null,null,null,null,null,null,null,null,null,"AMI Turbiwell.15-LED Nephelometry (on-line)","LED Nephelometry (on-line)",null,{"$f":"(AB310=AP310)","v":true}]
[null,null,null,null,null,null,null,null,null,null,null,null,null,null,null,null,"2292-BENZIDINE","2292",null,null,null,null,null,null,null,null,null,"ASTM D5174-ASTM D5174","ASTM D5174",null,null,null,null,null,null,null,null,null,null,null,null,"ASTM D5174-ASTM D5174","ASTM D5174",null,true]
[null,null,null,null,null,null,null,null,null,null,null,null,null,null,null,null,"2293-ETHYL METHACRYLATE","2293",null,null,null,null,null,null,null,null,null,"ASTMD6919-ASTM D6919","ASTMD6919",null,null,null,null,null,null,null,null,null,null,null,null,"ASTMD6919-ASTM D6919","ASTM D6919",null,true]
[null,null,null,null,null,null,null,null,null,null,null,null,null,null,null,null,"2294-BUTYLBENZYL PHTHALATE","2294",null,null,null,null,null,null,null,null,null,"B1011-B1011","B1011",null,null,null,null,null,null,null,null,null,null,null,null,"B1011-B1011","B1011",null,true]
[null,null,null,null,null,null,null,null,null,null,null,null,null,null,null,null,"2295-METHYL METHACRYLATE","2295",null,null,null,null,null,null,null,null,null,"C400-80-Corrosivity, Aggr Index","C400-80",null,null,null,null,null,null,null,null,null,null,null,null,"C400-80-Corrosivity, Aggr Index","Corrosivity, Aggr Index",null,true]
[null,null,null,null,null,null,null,null,null,null,null,null,null,null,null,null,"2296-CHRYSENE","2296",null,null,null,null,null,null,null,null,null,"CALCUL LAB-CALCULATED BY LABORATORY","CALCUL LAB",null,null,null,null,null,null,null,null,null,null,null,null,"CALCUL LAB-CALCULATED BY LABORATORY","CALCULATED BY LABORATORY",null,true]
[null,null,null,null,null,null,null,null,null,null,null,null,null,null,null,null,"2297-FLUOMETURON","2297",null,null,null,null,null,null,null,null,null,"CALCUL PRIM-CALCULATED BY WATER SYSTEM","CALCUL PRIM",null,null,null,null,null,null,null,null,null,null,null,null,"CALCUL PRIM-CALCULATED BY WATER SYSTEM","CALCULATED BY WATER SYSTEM",null,true]
[null,null,null,null,null,null,null,null,null,null,null,null,null,null,null,null,"2298-BIS(2-ETHYLHEXYL) PHTHALATE","2298",null,null,null,null,null,null,null,null,null,"CALCUL SDWIS-CALCULATED BY PRIMACY AGENCY","CALCUL SDWIS",null,null,null,null,null,null,null,null,null,null,null,null,"CALCUL SDWIS-CALCULATED BY PRIMACY AGENCY","CALCULATED BY PRIMACY AGENCY",null,true]
[null,null,null,null,null,null,null,null,null,null,null,null,null,null,null,null,"2300-BENZO(A)ANTHRACENE","2300",null,null,null,null,null,null,null,null,null,"CALCUL WS-CALCULATED BY SDWIS STATE CDS PROCESS","CALCUL WS",null,null,null,null,null,null,null,null,null,null,null,null,"CALCUL WS-CALCULATED BY SDWIS STATE CDS PROCESS","CALCULATED BY SDWIS STATE CDS PROCESS",null,true]
[null,null,null,null,null,null,null,null,null,null,null,null,null,null,null,null,"2301-SIDURON","2301",null,null,null,null,null,null,null,null,null,"ChlordioX Plus.32-Amperometric Sensor","ChlordioX Plus.32",null,null,null,null,null,null,null,null,null,null,null,null,"ChlordioX Plus.32-Amperometric Sensor","Amperometric Sensor",null,true]
[null,null,null,null,null,null,null,null,null,null,null,null,null,null,null,null,"2302-BENZO(B)FLUORANTHENE","2302",null,null,null,null,null,null,null,null,null,"ChloroSense-ChloroSense","ChloroSense",null,null,null,null,null,null,null,null,null,null,null,null,"ChloroSense-ChloroSense","ChloroSense",null,true]
[null,null,null,null,null,null,null,null,null,null,null,null,null,null,null,null,"2303-THIDIAZURON","2303",null,null,null,null,null,null,null,null,null,"ChloroSense.17-Amperometric Sensor","ChloroSense.17",null,null,null,null,null,null,null,null,null,null,null,null,"ChloroSense.17-Amperometric Sensor","Amperometric Sensor",null,true]
[null,null,null,null,null,null,null,null,null,null,null,null,null,null,null,null,"2304-BENZO(K)FLUORANTHENE","2304",null,null,null,null,null,null,null,null,null,"D1067-02B-D1067-02B","D1067-02B",null,null,null,null,null,null,null,null,null,null,null,null,"D1067-02B-D1067-02B","D1067-02B",null,true]
[null,null,null,null,null,null,null,null,null,null,null,null,null,null,null,null,"2306-BENZO(A)PYRENE","2306",null,null,null,null,null,null,null,null,null,"D1067-06B-D1067-06B","D1067-06B",null,null,null,null,null,null,null,null,null,null,null,null,"D1067-06B-D1067-06B","D1067-06B",null,true]
[null,null,null,null,null,null,null,null,null,null,null,null,null,null,null,null,"2308-IDENO(1,2,3-CD)PYRENE","2308",null,null,null,null,null,null,null,null,null,"D1067-11B-D1067-11B","D1067-11B",null,null,null,null,null,null,null,null,null,null,null,null,"D1067-11B-D1067-11B","D1067-11B",null,true]
[null,null,null,null,null,null,null,null,null,null,null,null,null,null,null,null,"2310-DIBENZO(A,H)ANTHRACENE","2310",null,null,null,null,null,null,null,null,null,"D1067-88B-TITRIMETRIC","D1067-88B",null,null,null,null,null,null,null,null,null,null,null,null,"D1067-88B-TITRIMETRIC","TITRIMETRIC",null,true]
[null,null,null,null,null,null,null,null,null,null,null,null,null,null,null,null,"2312-BENZO(G,H,I)PERYLENE","2312",null,null,null,null,null,null,null,null,null,"D1067-92B-TITRIMETRIC","D1067-92B",null,null,null,null,null,null,null,null,null,null,null,null,"D1067-92B-TITRIMETRIC","TITRIMETRIC",null,true]
[null,null,null,null,null,null,null,null,null,null,null,null,null,null,null,null,"2314-N-NITROSODIMETHYLAMINE","2314",null,null,null,null,null,null,null,null,null,"D1125-14-CONDUCTANCE AT 25C","D1125-14",null,null,null,null,null,null,null,null,null,null,null,null,"D1125-14-CONDUCTANCE AT 25C","CONDUCTANCE AT 25C",null,true]
[null,null,null,null,null,null,null,null,null,null,null,null,null,null,null,null,"2315-1-METHYL-NAPHTHALENE","2315",null,null,null,null,null,null,null,null,null,"D1125-91A-CONDUCTANCE AT 25C","D1125-91A",null,null,null,null,null,null,null,null,null,null,null,null,"D1125-91A-CONDUCTANCE AT 25C","CONDUCTANCE AT 25C",null,true]
[null,null,null,null,null,null,null,null,null,null,null,null,null,null,null,null,"2316-N-NITROSODI-N-PROPYLAMINE","2316",null,null,null,null,null,null,null,null,null,"D1125-95A-CONDUCTANCE AT 25C","D1125-95A",null,null,null,null,null,null,null,null,null,null,null,null,"D1125-95A-CONDUCTANCE AT 25C","CONDUCTANCE AT 25C",null,true]
[null,null,null,null,null,null,null,null,null,null,null,null,null,null,null,null,"2318-4-CHLOROPHENYL PHENYL ETHER","2318",null,null,null,null,null,null,null,null,null,"D1179-04B-D1179-04B","D1179-04B",null,null,null,null,null,null,null,null,null,null,null,null,"D1179-04B-D1179-04B","D1179-04B",null,true]
[null,null,null,null,null,null,null,null,null,null,null,null,null,null,null,null,"2320-3,3-DICHLOROBENZIDINE","2320",null,null,null,null,null,null,null,null,null,"D1179-10B-D1179-10B","D1179-10B",null,null,null,null,null,null,null,null,null,null,null,null,"D1179-10B-D1179-10B","D1179-10B",null,true]
[null,null,null,null,null,null,null,null,null,null,null,null,null,null,null,null,"2324-BIS(CHLOROMETHYL) ETHER","2324",null,null,null,null,null,null,null,null,null,"D1179-93B-POTENTIOMETER ION SELECTIVE ELECTRODE","D1179-93B",null,null,null,null,null,null,null,null,null,null,null,null,"D1179-93B-POTENTIOMETER ION SELECTIVE ELECTRODE","POTENTIOMETER ION SELECTIVE ELECTRODE",null,true]
[null,null,null,null,null,null,null,null,null,null,null,null,null,null,null,null,"2325-PENTANE","2325",null,null,null,null,null,null,null,null,null,"D1179-99B-D1179-99B","D1179-99B",null,null,null,null,null,null,null,null,null,null,null,null,"D1179-99B-D1179-99B","D1179-99B",null,true]
[null,null,null,null,null,null,null,null,null,null,null,null,null,null,null,null,"2326-PENTACHLOROPHENOL","2326",null,null,null,null,null,null,null,null,null,"D1253-03-D1253-03","D1253-03",null,null,null,null,null,null,null,null,null,null,null,null,"D1253-03-D1253-03","D1253-03",null,true]
[null,null,null,null,null,null,null,null,null,null,null,null,null,null,null,null,"2327-PENTACHLOROETHANE","2327",null,null,null,null,null,null,null,null,null,"D1253-08-D1253-08","D1253-08",null,null,null,null,null,null,null,null,null,null,null,null,"D1253-08-D1253-08","D1253-08",null,true]
[null,null,null,null,null,null,null,null,null,null,null,null,null,null,null,null,"2328-2,4-DINITROPHENOL","2328",null,null,null,null,null,null,null,null,null,"D1253-86-D1253-86","D1253-86",null,null,null,null,null,null,null,null,null,null,null,null,"D1253-86-D1253-86","D1253-86",null,true]
[null,null,null,null,null,null,null,null,null,null,null,null,null,null,null,null,"2330-P-CHLORO-M-CRESOL","2330",null,null,null,null,null,null,null,null,null,"D1293-12-D1293-12","D1293-12",null,null,null,null,null,null,null,null,null,null,null,null,"D1293-12-D1293-12","D1293-12",null,true]
[null,null,null,null,null,null,null,null,null,null,null,null,null,null,null,null,"2332-2,4,6-TRICHLOROPHENOL","2332",null,null,null,null,null,null,null,null,null,"D1293-84B-ELECTROMETRIC-ONLINE MEASUREMENT","D1293-84B",null,null,null,null,null,null,null,null,null,null,null,null,"D1293-84B-ELECTROMETRIC-ONLINE MEASUREMENT","ELECTROMETRIC-ONLINE MEASUREMENT",null,true]
[null,null,null,null,null,null,null,null,null,null,null,null,null,null,null,null,"2334-2,4-DICHLOROPHENOL","2334",null,null,null,null,null,null,null,null,null,"D1293-95-ELECTROMETRIC-ONLINE MEASUREMENT","D1293-95",null,null,null,null,null,null,null,null,null,null,null,null,"D1293-95-ELECTROMETRIC-ONLINE MEASUREMENT","ELECTROMETRIC-ONLINE MEASUREMENT",null,true]
[null,null,null,null,null,null,null,null,null,null,null,null,null,null,null,null,"2336-2,4-DIMETHYLPHENOL","2336",null,null,null,null,null,null,null,null,null,"D1293-99-D1293-99","D1293-99",null,null,null,null,null,null,null,null,null,null,null,null,"D1293-99-D1293-99","D1293-99",null,true]
[null,null,null,null,null,null,null,null,null,null,null,null,null,null,null,null,"2340-2-NITROPHENOL","2340",null,null,null,null,null,null,null,null,null,"D1688-02A-D1688-02A","D1688-02A",null,null,null,null,null,null,null,null,null,null,null,null,"D1688-02A-D1688-02A","D1688-02A",null,true]
[null,null,null,null,null,null,null,null,null,null,null,null,null,null,null,null,"2342-4-NITROPHENOL","2342",null,null,null,null,null,null,null,null,null,"D1688-02C-D1688-02C","D1688-02C",null,null,null,null,null,null,null,null,null,null,null,null,"D1688-02C-D1688-02C","D1688-02C",null,true]
[null,null,null,null,null,null,null,null,null,null,null,null,null,null,null,null,"2344-2-CHLOROPHENOL","2344",null,null,null,null,null,null,null,null,null,"D1688-07A-D1688-07A","D1688-07A",null,null,null,null,null,null,null,null,null,null,null,null,"D1688-07A-D1688-07A","D1688-07A",null,true]
[null,null,null,null,null,null,null,null,null,null,null,null,null,null,null,null,"2346-4,6-DINITRO-O-CRESOL","2346",null,null,null,null,null,null,null,null,null,"D1688-07C-D1688-07C","D1688-07C",null,null,null,null,null,null,null,null,null,null,null,null,"D1688-07C-D1688-07C","D1688-07C",null,true]
[null,null,null,null,null,null,null,null,null,null,null,null,null,null,null,null,"2348-.ALPHA.-BHC","2348",null,null,null,null,null,null,null,null,null,"D1688-90A-ATOMIC ABSORPTION DIRECT ASPIRATION","D1688-90A",null,null,null,null,null,null,null,null,null,null,null,null,"D1688-90A-ATOMIC ABSORPTION DIRECT ASPIRATION","ATOMIC ABSORPTION DIRECT ASPIRATION",null,true]
[null,null,null,null,null,null,null,null,null,null,null,null,null,null,null,null,"2350-.BETA.-BHC","2350",null,null,null,null,null,null,null,null,null,"D1688-90C-ATOMIC ABSORPTION, FURNACE","D1688-90C",null,null,null,null,null,null,null,null,null,null,null,null,"D1688-90C-ATOMIC ABSORPTION, FURNACE","ATOMIC ABSORPTION, FURNACE",null,true]
[null,null,null,null,null,null,null,null,null,null,null,null,null,null,null,null,"2354-.DELTA.-BHC","2354",null,null,null,null,null,null,null,null,null,"D1688-95A-D1688-95A","D1688-95A",null,null,null,null,null,null,null,null,null,null,null,null,"D1688-95A-D1688-95A","D1688-95A",null,true]
[null,null,null,null,null,null,null,null,null,null,null,null,null,null,null,null,"2356-ALDRIN","2356",null,null,null,null,null,null,null,null,null,"D1688-95C-D1688-95C","D1688-95C",null,null,null,null,null,null,null,null,null,null,null,null,"D1688-95C-D1688-95C","D1688-95C",null,true]
[null,null,null,null,null,null,null,null,null,null,null,null,null,null,null,null,"2365-ORTHO-PARA DDE","2365",null,null,null,null,null,null,null,null,null,"D1943-81-EVAPORATION METHOD FOR GROSS ALPHA-BETA","D1943-81",null,null,null,null,null,null,null,null,null,null,null,null,"D1943-81-EVAPORATION METHOD FOR GROSS ALPHA-BETA","EVAPORATION METHOD FOR GROSS ALPHA-BETA",null,true]
[null,null,null,null,null,null,null,null,null,null,null,null,null,null,null,null,"2367-ORTHO-PARA DDD","2367",null,null,null,null,null,null,null,null,null,"D2036-06A-Manual Distillation followed by","D2036-06A",null,null,null,null,null,null,null,null,null,null,null,null,"D2036-06A-Manual Distillation followed by","Manual Distillation followed by",null,true]
[null,null,null,null,null,null,null,null,null,null,null,null,null,null,null,null,"2369-ORTHO-PARA DDT","2369",null,null,null,null,null,null,null,null,null,"D2036-06B-D2036-06B","D2036-06B",null,null,null,null,null,null,null,null,null,null,null,null,"D2036-06B-D2036-06B","D2036-06B",null,true]
[null,null,null,null,null,null,null,null,null,null,null,null,null,null,null,null,"2370-KELTHANE","2370",null,null,null,null,null,null,null,null,null,"D2036-91A-SPECTROPHOTOMETRIC, MANUAL","D2036-91A",null,null,null,null,null,null,null,null,null,null,null,null,"D2036-91A-SPECTROPHOTOMETRIC, MANUAL","SPECTROPHOTOMETRIC, MANUAL",null,true]
[null,null,null,null,null,null,null,null,null,null,null,null,null,null,null,null,"2371-TEDION","2371",null,null,null,null,null,null,null,null,null,"D2036-91B-AMENABLE SPECTROPHOTOMETRIC","D2036-91B",null,null,null,null,null,null,null,null,null,null,null,null,"D2036-91B-AMENABLE SPECTROPHOTOMETRIC","AMENABLE SPECTROPHOTOMETRIC",null,true]
[null,null,null,null,null,null,null,null,null,null,null,null,null,null,null,null,"2372-ENDRIN ALDEHYDE","2372",null,null,null,null,null,null,null,null,null,"D2460-07-D2460-07","D2460-07",null,null,null,null,null,null,null,null,null,null,null,null,"D2460-07-D2460-07","D2460-07",null,true]
[null,null,null,null,null,null,null,null,null,null,null,null,null,null,null,null,"2374-KEROSENE","2374",null,null,null,null,null,null,null,null,null,"D2460-97-D2460-97","D2460-97",null,null,null,null,null,null,null,null,null,null,null,null,"D2460-97-D2460-97","D2460-97",null,true]
[null,null,null,null,null,null,null,null,null,null,null,null,null,null,null,null,"2376-N-HEXANE","2376",null,null,null,null,null,null,null,null,null,"D2476-81-LIQUID SCINTILLATION SPECTROPHOTOMETRIC","D2476-81",null,null,null,null,null,null,null,null,null,null,null,null,"D2476-81-LIQUID SCINTILLATION SPECTROPHOTOMETRIC","LIQUID SCINTILLATION SPECTROPHOTOMETRIC",null,true]
[null,null,null,null,null,null,null,null,null,null,null,null,null,null,null,null,"2377-1,3,5-TRICHLOROBENZENE","2377",null,null,null,null,null,null,null,null,null,"D2907-97-D2907-97","D2907-97",null,null,null,null,null,null,null,null,null,null,null,null,"D2907-97-D2907-97","D2907-97",null,true]
[null,null,null,null,null,null,null,null,null,null,null,null,null,null,null,null,"2378-1,2,4-TRICHLOROBENZENE","2378",null,null,null,null,null,null,null,null,null,"D2972-08B-D2972-08B","D2972-08B",null,null,null,null,null,null,null,null,null,null,null,null,"D2972-08B-D2972-08B","D2972-08B",null,true]
[null,null,null,null,null,null,null,null,null,null,null,null,null,null,null,null,"2380-CIS-1,2-DICHLOROETHYLENE","2380",null,null,null,null,null,null,null,null,null,"D2972-08C-D2972-08C","D2972-08C",null,null,null,null,null,null,null,null,null,null,null,null,"D2972-08C-D2972-08C","D2972-08C",null,true]
[null,null,null,null,null,null,null,null,null,null,null,null,null,null,null,null,"2383-TOTAL POLYCHLORINATED BIPHENYLS (PCB)","2383",null,null,null,null,null,null,null,null,null,"D2972-93C-ATOMIC ABSORPTION, FURNACE","D2972-93C",null,null,null,null,null,null,null,null,null,null,null,null,"D2972-93C-ATOMIC ABSORPTION, FURNACE","ATOMIC ABSORPTION, FURNACE",null,true]
[null,null,null,null,null,null,null,null,null,null,null,null,null,null,null,null,"2384-DECACHLOROBIPHENYL","2384",null,null,null,null,null,null,null,null,null,"D3223-91-MANUAL COLD VAPOR TECHNIQUE","D3223-91",null,null,null,null,null,null,null,null,null,null,null,null,"D3223-91-MANUAL COLD VAPOR TECHNIQUE","MANUAL COLD VAPOR TECHNIQUE",null,true]
[null,null,null,null,null,null,null,null,null,null,null,null,null,null,null,null,"2388-AROCLOR 1016","2388",null,null,null,null,null,null,null,null,null,"D3454-05-D3454-05","D3454-05",null,null,null,null,null,null,null,null,null,null,null,null,"D3454-05-D3454-05","D3454-05",null,true]
[null,null,null,null,null,null,null,null,null,null,null,null,null,null,null,null,"2390-AROCLOR 1221","2390",null,null,null,null,null,null,null,null,null,"D3454-86-PRECIPITATION METHOD FOR RADIUM","D3454-86",null,null,null,null,null,null,null,null,null,null,null,null,"D3454-86-PRECIPITATION METHOD FOR RADIUM","PRECIPITATION METHOD FOR RADIUM",null,true]
[null,null,null,null,null,null,null,null,null,null,null,null,null,null,null,null,"2392-AROCLOR 1232","2392",null,null,null,null,null,null,null,null,null,"D3454-97-D3454-97","D3454-97",null,null,null,null,null,null,null,null,null,null,null,null,"D3454-97-D3454-97","D3454-97",null,true]
[null,null,null,null,null,null,null,null,null,null,null,null,null,null,null,null,"2394-AROCLOR 1242","2394",null,null,null,null,null,null,null,null,null,"D3559-08D-D3559-08D","D3559-08D",null,null,null,null,null,null,null,null,null,null,null,null,"D3559-08D-D3559-08D","D3559-08D",null,true]
[null,null,null,null,null,null,null,null,null,null,null,null,null,null,null,null,"2396-AROCLOR 1248","2396",null,null,null,null,null,null,null,null,null,"D3559-90D-ATOMIC ABSORPTION, FURNACE","D3559-90D",null,null,null,null,null,null,null,null,null,null,null,null,"D3559-90D-ATOMIC ABSORPTION, FURNACE","ATOMIC ABSORPTION, FURNACE",null,true]
[null,null,null,null,null,null,null,null,null,null,null,null,null,null,null,null,"2398-AROCLOR 1254","2398",null,null,null,null,null,null,null,null,null,"D3645-08B-D3645-08B","D3645-08B",null,null,null,null,null,null,null,null,null,null,null,null,"D3645-08B-D3645-08B","D3645-08B",null,true]
[null,null,null,null,null,null,null,null,null,null,null,null,null,null,null,null,"2399-PCB 1262","2399",null,null,null,null,null,null,null,null,null,"D3645-93B-ATOMIC ABSORPTION, FURNACE","D3645-93B",null,null,null,null,null,null,null,null,null,null,null,null,"D3645-93B-ATOMIC ABSORPTION, FURNACE","ATOMIC ABSORPTION, FURNACE",null,true]
[null,null,null,null,null,null,null,null,null,null,null,null,null,null,null,null,"2400-AROCLOR 1260","2400",null,null,null,null,null,null,null,null,null,"D3649-06-D3649-06","D3649-06",null,null,null,null,null,null,null,null,null,null,null,null,"D3649-06-D3649-06","D3649-06",null,true]
[null,null,null,null,null,null,null,null,null,null,null,null,null,null,null,null,"2401-DICHLOROBENZENES, TOTAL","2401",null,null,null,null,null,null,null,null,null,"D3649-91-D3649-91","D3649-91",null,null,null,null,null,null,null,null,null,null,null,null,"D3649-91-D3649-91","D3649-91",null,true]
[null,null,null,null,null,null,null,null,null,null,null,null,null,null,null,null,"2402-ALLYL CHLORIDE","2402",null,null,null,null,null,null,null,null,null,"D3649-98A-D3649-98A","D3649-98A",null,null,null,null,null,null,null,null,null,null,null,null,"D3649-98A-D3649-98A","D3649-98A",null,true]
[null,null,null,null,null,null,null,null,null,null,null,null,null,null,null,null,"2408-DIBROMOMETHANE","2408",null,null,null,null,null,null,null,null,null,"D3697-07-Hydride—Atomic Absorption","D3697-07",null,null,null,null,null,null,null,null,null,null,null,null,"D3697-07-Hydride—Atomic Absorption","Hydride—Atomic Absorption",null,true]
[null,null,null,null,null,null,null,null,null,null,null,null,null,null,null,null,"2410-1,1-DICHLOROPROPENE","2410",null,null,null,null,null,null,null,null,null,"D3697-87-ATOMIC ABSORPTION, GASEOUS HYDRIDE","D3697-87",null,null,null,null,null,null,null,null,null,null,null,null,"D3697-87-ATOMIC ABSORPTION, GASEOUS HYDRIDE","ATOMIC ABSORPTION, GASEOUS HYDRIDE",null,true]
[null,null,null,null,null,null,null,null,null,null,null,null,null,null,null,null,"2412-1,3-DICHLOROPROPANE","2412",null,null,null,null,null,null,null,null,null,"D3697-92-ATOMIC ABSORPTION, GASEOUS HYDRIDE","D3697-92",null,null,null,null,null,null,null,null,null,null,null,null,"D3697-92-ATOMIC ABSORPTION, GASEOUS HYDRIDE","ATOMIC ABSORPTION, GASEOUS HYDRIDE",null,{"$f":"(AB374=AP374)","v":true}]
[null,null,null,null,null,null,null,null,null,null,null,null,null,null,null,null,"2413-1,3-DICHLOROPROPENE","2413",null,null,null,null,null,null,null,null,null,"D3859-08A-D3859-08A","D3859-08A",null,null,null,null,null,null,null,null,null,null,null,null,"D3859-08A-D3859-08A","D3859-08A",null,true]
[null,null,null,null,null,null,null,null,null,null,null,null,null,null,null,null,"2414-1,2,3-TRICHLOROPROPANE","2414",null,null,null,null,null,null,null,null,null,"D3859-08B-D3859-08B","D3859-08B",null,null,null,null,null,null,null,null,null,null,null,null,"D3859-08B-D3859-08B","D3859-08B",null,true]
[null,null,null,null,null,null,null,null,null,null,null,null,null,null,null,null,"2416-2,2-DICHLOROPROPANE","2416",null,null,null,null,null,null,null,null,null,"D3859-93B-ATOMIC ABSORPTION, FURNACE","D3859-93B",null,null,null,null,null,null,null,null,null,null,null,null,"D3859-93B-ATOMIC ABSORPTION, FURNACE","ATOMIC ABSORPTION, FURNACE",null,true]
[null,null,null,null,null,null,null,null,null,null,null,null,null,null,null,null,"2418-1,2,4-TRIMETHYLBENZENE","2418",null,null,null,null,null,null,null,null,null,"D3867-90A-CADMIUM REDUCTION, AUTOMATED","D3867-90A",null,null,null,null,null,null,null,null,null,null,null,null,"D3867-90A-CADMIUM REDUCTION, AUTOMATED","CADMIUM REDUCTION, AUTOMATED",null,true]
[null,null,null,null,null,null,null,null,null,null,null,null,null,null,null,null,"2419-1,2,3-TRIMETHYLBENZENE","2419",null,null,null,null,null,null,null,null,null,"D3867-90B-CADMIUM REDUCTION, MANUAL","D3867-90B",null,null,null,null,null,null,null,null,null,null,null,null,"D3867-90B-CADMIUM REDUCTION, MANUAL","CADMIUM REDUCTION, MANUAL",null,true]
[null,null,null,null,null,null,null,null,null,null,null,null,null,null,null,null,"2420-1,2,3-TRICHLOROBENZENE","2420",null,null,null,null,null,null,null,null,null,"D3972-02-D3972-02","D3972-02",null,null,null,null,null,null,null,null,null,null,null,null,"D3972-02-D3972-02","D3972-02",null,true]
[null,null,null,null,null,null,null,null,null,null,null,null,null,null,null,null,"2422-N-BUTYLBENZENE","2422",null,null,null,null,null,null,null,null,null,"D3972-09-D3972-09","D3972-09",null,null,null,null,null,null,null,null,null,null,null,null,"D3972-09-D3972-09","D3972-09",null,true]
[null,null,null,null,null,null,null,null,null,null,null,null,null,null,null,null,"2424-1,3,5-TRIMETHYLBENZENE","2424",null,null,null,null,null,null,null,null,null,"D3972-97-D3972-97","D3972-97",null,null,null,null,null,null,null,null,null,null,null,null,"D3972-97-D3972-97","D3972-97",null,true]
[null,null,null,null,null,null,null,null,null,null,null,null,null,null,null,null,"2426-TERT-BUTYLBENZENE","2426",null,null,null,null,null,null,null,null,null,"D4107-08-D4107-08","D4107-08",null,null,null,null,null,null,null,null,null,null,null,null,"D4107-08-D4107-08","D4107-08",null,true]
[null,null,null,null,null,null,null,null,null,null,null,null,null,null,null,null,"2428-SEC-BUTYLBENZENE","2428",null,null,null,null,null,null,null,null,null,"D4107-91-D4107-91","D4107-91",null,null,null,null,null,null,null,null,null,null,null,null,"D4107-91-D4107-91","D4107-91",null,true]
[null,null,null,null,null,null,null,null,null,null,null,null,null,null,null,null,"2430-BROMOCHLOROMETHANE","2430",null,null,null,null,null,null,null,null,null,"D4107-98(Reapproved 2002)-D4107-98(Reapproved 2002)","D4107-98(Reapproved 2002)",null,null,null,null,null,null,null,null,null,null,null,null,"D4107-98(Reapproved 2002)-D4107-98(Reapproved 2002)","D4107-98(Reapproved 2002)",null,true]
[null,null,null,null,null,null,null,null,null,null,null,null,null,null,null,null,"2440-DICAMBA","2440",null,null,null,null,null,null,null,null,null,"D4327-03-D4327-03","D4327-03",null,null,null,null,null,null,null,null,null,null,null,null,"D4327-03-D4327-03","D4327-03",null,true]
[null,null,null,null,null,null,null,null,null,null,null,null,null,null,null,null,"2441-METHANE","2441",null,null,null,null,null,null,null,null,null,"D4327-11-ION CHROMATOGRAPHY","D4327-11",null,null,null,null,null,null,null,null,null,null,null,null,"D4327-11-ION CHROMATOGRAPHY","ION CHROMATOGRAPHY",null,true]
[null,null,null,null,null,null,null,null,null,null,null,null,null,null,null,null,"2442-METHYL ACETATE","2442",null,null,null,null,null,null,null,null,null,"D4327-91-ION CHROMATOGRAPHY","D4327-91",null,null,null,null,null,null,null,null,null,null,null,null,"D4327-91-ION CHROMATOGRAPHY","ION CHROMATOGRAPHY",null,true]
[null,null,null,null,null,null,null,null,null,null,null,null,null,null,null,null,"2443-METHYL ALCOHOL","2443",null,null,null,null,null,null,null,null,null,"D4327-97-D4327-97","D4327-97",null,null,null,null,null,null,null,null,null,null,null,null,"D4327-97-D4327-97","D4327-97",null,true]
[null,null,null,null,null,null,null,null,null,null,null,null,null,null,null,null,"2444-METHYL CELLOSOLVE","2444",null,null,null,null,null,null,null,null,null,"D4785-00A-D4785-00A","D4785-00A",null,null,null,null,null,null,null,null,null,null,null,null,"D4785-00A-D4785-00A","D4785-00A",null,true]
[null,null,null,null,null,null,null,null,null,null,null,null,null,null,null,null,"2445-PROPYL ACETATE","2445",null,null,null,null,null,null,null,null,null,"D4785-08-D4785-08","D4785-08",null,null,null,null,null,null,null,null,null,null,null,null,"D4785-08-D4785-08","D4785-08",null,true]
[null,null,null,null,null,null,null,null,null,null,null,null,null,null,null,null,"2446-N-PROPYL ALCOHOL","2446",null,null,null,null,null,null,null,null,null,"D4785-93-D4785-93","D4785-93",null,null,null,null,null,null,null,null,null,null,null,null,"D4785-93-D4785-93","D4785-93",null,true]
[null,null,null,null,null,null,null,null,null,null,null,null,null,null,null,null,"2447-VINYL ACETATE","2447",null,null,null,null,null,null,null,null,null,"D511-03A-D511-03A","D511-03A",null,null,null,null,null,null,null,null,null,null,null,null,"D511-03A-D511-03A","D511-03A",null,true]
[null,null,null,null,null,null,null,null,null,null,null,null,null,null,null,null,"2449-ETHANOIC ACID","2449",null,null,null,null,null,null,null,null,null,"D511-03B-D511-03B","D511-03B",null,null,null,null,null,null,null,null,null,null,null,null,"D511-03B-D511-03B","D511-03B",null,true]
[null,null,null,null,null,null,null,null,null,null,null,null,null,null,null,null,"2450-MONOCHLOROACETIC ACID","2450",null,null,null,null,null,null,null,null,null,"D511-09A-D511-09A","D511-09A",null,null,null,null,null,null,null,null,null,null,null,null,"D511-09A-D511-09A","D511-09A",null,true]
[null,null,null,null,null,null,null,null,null,null,null,null,null,null,null,null,"2451-DICHLOROACETIC ACID","2451",null,null,null,null,null,null,null,null,null,"D511-09B-D511-09B","D511-09B",null,null,null,null,null,null,null,null,null,null,null,null,"D511-09B-D511-09B","D511-09B",null,true]
[null,null,null,null,null,null,null,null,null,null,null,null,null,null,null,null,"2452-TRICHLOROACETIC ACID","2452",null,null,null,null,null,null,null,null,null,"D511-14A-Titration","D511-14A",null,null,null,null,null,null,null,null,null,null,null,null,"D511-14A-Titration","Titration",null,true]
[null,null,null,null,null,null,null,null,null,null,null,null,null,null,null,null,"2453-MONOBROMOACETIC ACID","2453",null,null,null,null,null,null,null,null,null,"D511-14B-ATOMIC ABSORPTION DIRECT ASPIRATION","D511-14B",null,null,null,null,null,null,null,null,null,null,null,null,"D511-14B-ATOMIC ABSORPTION DIRECT ASPIRATION","ATOMIC ABSORPTION DIRECT ASPIRATION",null,true]
[null,null,null,null,null,null,null,null,null,null,null,null,null,null,null,null,"2454-DIBROMOACETIC ACID","2454",null,null,null,null,null,null,null,null,null,"D511-93A-EDTA TITRIMETRIC","D511-93A",null,null,null,null,null,null,null,null,null,null,null,null,"D511-93A-EDTA TITRIMETRIC","EDTA TITRIMETRIC",null,true]
[null,null,null,null,null,null,null,null,null,null,null,null,null,null,null,null,"2455-BROMOCHLOROACETIC ACID","2455",null,null,null,null,null,null,null,null,null,"D511-93B-ATOMIC ABSORPTION DIRECT ASPIRATION","D511-93B",null,null,null,null,null,null,null,null,null,null,null,null,"D511-93B-ATOMIC ABSORPTION DIRECT ASPIRATION","ATOMIC ABSORPTION DIRECT ASPIRATION",null,true]
[null,null,null,null,null,null,null,null,null,null,null,null,null,null,null,null,"2456-TOTAL HALOACETIC ACIDS (HAA5)","2456",null,null,null,null,null,null,null,null,null,"D512-04B-Silver Nitrate Titration","D512-04B",null,null,null,null,null,null,null,null,null,null,null,null,"D512-04B-Silver Nitrate Titration","Silver Nitrate Titration",null,true]
[null,null,null,null,null,null,null,null,null,null,null,null,null,null,null,null,"2458-METHYL IODINE","2458",null,null,null,null,null,null,null,null,null,"D512-12B-Silver Nitrate Titration","D512-12B",null,null,null,null,null,null,null,null,null,null,null,null,"D512-12B-Silver Nitrate Titration","Silver Nitrate Titration",null,true]
[null,null,null,null,null,null,null,null,null,null,null,null,null,null,null,null,"2460-CHLORAL HYDRATE","2460",null,null,null,null,null,null,null,null,null,"D512-89B (Reapproved 1999)-D512-89B (Reapproved 1999)","D512-89B (Reapproved 1999)",null,null,null,null,null,null,null,null,null,null,null,null,"D512-89B (Reapproved 1999)-D512-89B (Reapproved 1999)","D512-89B (Reapproved 1999)",null,true]
[null,null,null,null,null,null,null,null,null,null,null,null,null,null,null,null,"2461-DICHLOROACETONITRILE","2461",null,null,null,null,null,null,null,null,null,"D515-88A-COLORIMETRIC, MANUAL","D515-88A",null,null,null,null,null,null,null,null,null,null,null,null,"D515-88A-COLORIMETRIC, MANUAL","COLORIMETRIC, MANUAL",null,true]
[null,null,null,null,null,null,null,null,null,null,null,null,null,null,null,null,"2462-BROMOCHLOROACETONITRILE","2462",null,null,null,null,null,null,null,null,null,"D516-02-D516-02","D516-02",null,null,null,null,null,null,null,null,null,null,null,null,"D516-02-D516-02","D516-02",null,true]
[null,null,null,null,null,null,null,null,null,null,null,null,null,null,null,null,"2463-1,1-DICHLOROPROPANONE","2463",null,null,null,null,null,null,null,null,null,"D516-07-D516-07","D516-07",null,null,null,null,null,null,null,null,null,null,null,null,"D516-07-D516-07","D516-07",null,true]
[null,null,null,null,null,null,null,null,null,null,null,null,null,null,null,null,"2464-1,1,1-TRICHLOROPROPANONE","2464",null,null,null,null,null,null,null,null,null,"D516-11-D516-11","D516-11",null,null,null,null,null,null,null,null,null,null,null,null,"D516-11-D516-11","D516-11",null,true]
[null,null,null,null,null,null,null,null,null,null,null,null,null,null,null,null,"2465-CHLOROPICRIN","2465",null,null,null,null,null,null,null,null,null,"D516-90-TURBIDIMETRIC","D516-90",null,null,null,null,null,null,null,null,null,null,null,null,"D516-90-TURBIDIMETRIC","TURBIDIMETRIC",null,true]
[null,null,null,null,null,null,null,null,null,null,null,null,null,null,null,null,"2466-CHLOROACETONITRILE","2466",null,null,null,null,null,null,null,null,null,"D5174-02-D5174-02","D5174-02",null,null,null,null,null,null,null,null,null,null,null,null,"D5174-02-D5174-02","D5174-02",null,true]
[null,null,null,null,null,null,null,null,null,null,null,null,null,null,null,null,"2467-METHACRYLONITRILE","2467",null,null,null,null,null,null,null,null,null,"D5174-07-Laser Phosphorimetry","D5174-07",null,null,null,null,null,null,null,null,null,null,null,null,"D5174-07-Laser Phosphorimetry","Laser Phosphorimetry",null,true]
[null,null,null,null,null,null,null,null,null,null,null,null,null,null,null,null,"2468-PROPIONITRILE","2468",null,null,null,null,null,null,null,null,null,"D5174-97-D5174-97","D5174-97",null,null,null,null,null,null,null,null,null,null,null,null,"D5174-97-D5174-97","D5174-97",null,true]
[null,null,null,null,null,null,null,null,null,null,null,null,null,null,null,null,"2469-2-NITROPROPANE","2469",null,null,null,null,null,null,null,null,null,"D5317-93-D5317-93","D5317-93",null,null,null,null,null,null,null,null,null,null,null,null,"D5317-93-D5317-93","D5317-93",null,true]
[null,null,null,null,null,null,null,null,null,null,null,null,null,null,null,null,"2470-ACETALDEHYDE","2470",null,null,null,null,null,null,null,null,null,"D5317-98(Reapproved 2003)-D5317-98(Reapproved 2003)","D5317-98(Reapproved 2003)",null,null,null,null,null,null,null,null,null,null,null,null,"D5317-98(Reapproved 2003)-D5317-98(Reapproved 2003)","D5317-98(Reapproved 2003)",null,true]
[null,null,null,null,null,null,null,null,null,null,null,null,null,null,null,null,"2471-PROPANAL","2471",null,null,null,null,null,null,null,null,null,"D5673-03-D5673-03","D5673-03",null,null,null,null,null,null,null,null,null,null,null,null,"D5673-03-D5673-03","D5673-03",null,true]
[null,null,null,null,null,null,null,null,null,null,null,null,null,null,null,null,"2472-BUTANAL","2472",null,null,null,null,null,null,null,null,null,"D5673-05-D5673-05","D5673-05",null,null,null,null,null,null,null,null,null,null,null,null,"D5673-05-D5673-05","D5673-05",null,true]
[null,null,null,null,null,null,null,null,null,null,null,null,null,null,null,null,"2473-PENTANAL","2473",null,null,null,null,null,null,null,null,null,"D5673-10-D5673-10","D5673-10",null,null,null,null,null,null,null,null,null,null,null,null,"D5673-10-D5673-10","D5673-10",null,true]
[null,null,null,null,null,null,null,null,null,null,null,null,null,null,null,null,"2474-GLYOXAL","2474",null,null,null,null,null,null,null,null,null,"D6239-09-Alpha Liquid Scintillation Spectrometry","D6239-09",null,null,null,null,null,null,null,null,null,null,null,null,"D6239-09-Alpha Liquid Scintillation Spectrometry","Alpha Liquid Scintillation Spectrometry",null,true]
[null,null,null,null,null,null,null,null,null,null,null,null,null,null,null,null,"2475-METHYL GLOYOXAL","2475",null,null,null,null,null,null,null,null,null,"D6508-00-Ion Electrophoresis","D6508-00",null,null,null,null,null,null,null,null,null,null,null,null,"D6508-00-Ion Electrophoresis","Ion Electrophoresis",null,true]
[null,null,null,null,null,null,null,null,null,null,null,null,null,null,null,null,"2476-HEXANAL","2476",null,null,null,null,null,null,null,null,null,"D6581-00-D6581-00","D6581-00",null,null,null,null,null,null,null,null,null,null,null,null,"D6581-00-D6581-00","D6581-00",null,true]
[null,null,null,null,null,null,null,null,null,null,null,null,null,null,null,null,"2477-HEPTANAL","2477",null,null,null,null,null,null,null,null,null,"D6581-08A-Chemically Suppressed Ion Chromatography","D6581-08A",null,null,null,null,null,null,null,null,null,null,null,null,"D6581-08A-Chemically Suppressed Ion Chromatography","Chemically Suppressed Ion Chromatography",null,true]
[null,null,null,null,null,null,null,null,null,null,null,null,null,null,null,null,"2478-OCTANAL","2478",null,null,null,null,null,null,null,null,null,"D6581-08B-Electrolytically Suppressed Ion Chromatography","D6581-08B",null,null,null,null,null,null,null,null,null,null,null,null,"D6581-08B-Electrolytically Suppressed Ion Chromatography","Electrolytically Suppressed Ion Chromatography",null,true]
[null,null,null,null,null,null,null,null,null,null,null,null,null,null,null,null,"2479-BENZALDEHYDE","2479",null,null,null,null,null,null,null,null,null,"D6919-03-D6919-03","D6919-03",null,null,null,null,null,null,null,null,null,null,null,null,"D6919-03-D6919-03","D6919-03",null,true]
[null,null,null,null,null,null,null,null,null,null,null,null,null,null,null,null,"2480-NONANAL","2480",null,null,null,null,null,null,null,null,null,"D6919-09-ION CHROMATOGRAPHY","D6919-09",null,null,null,null,null,null,null,null,null,null,null,null,"D6919-09-ION CHROMATOGRAPHY","ION CHROMATOGRAPHY",null,true]
[null,null,null,null,null,null,null,null,null,null,null,null,null,null,null,null,"2481-DECANAL","2481",null,null,null,null,null,null,null,null,null,"D859-00-COLORIMETRIC","D859-00",null,null,null,null,null,null,null,null,null,null,null,null,"D859-00-COLORIMETRIC","COLORIMETRIC",null,true]
[null,null,null,null,null,null,null,null,null,null,null,null,null,null,null,null,"2485-AOC/BDOC","2485",null,null,null,null,null,null,null,null,null,"D859-05-COLORIMETRIC","D859-05",null,null,null,null,null,null,null,null,null,null,null,null,"D859-05-COLORIMETRIC","COLORIMETRIC",null,true]
[null,null,null,null,null,null,null,null,null,null,null,null,null,null,null,null,"2486-1,3-BUTADIENE","2486",null,null,null,null,null,null,null,null,null,"D859-10-D859-10","D859-10",null,null,null,null,null,null,null,null,null,null,null,null,"D859-10-D859-10","D859-10",null,true]
[null,null,null,null,null,null,null,null,null,null,null,null,null,null,null,null,"2487-CHLORODIFLUOROMETHANE (HCFC-22)","2487",null,null,null,null,null,null,null,null,null,"D859-88-COLORIMETRIC-MOLYBDATE BLUE","D859-88",null,null,null,null,null,null,null,null,null,null,null,null,"D859-88-COLORIMETRIC-MOLYBDATE BLUE","COLORIMETRIC-MOLYBDATE BLUE",null,true]
[null,null,null,null,null,null,null,null,null,null,null,null,null,null,null,null,"2520-VINYL 2-CHLOROETHYL ETHER","2520",null,null,null,null,null,null,null,null,null,"D859-94-COLORIMETRIC","D859-94",null,null,null,null,null,null,null,null,null,null,null,null,"D859-94-COLORIMETRIC","COLORIMETRIC",null,true]
[null,null,null,null,null,null,null,null,null,null,null,null,null,null,null,null,"2545-TERBUFOS","2545",null,null,null,null,null,null,null,null,null,"E-SR-01-DEPT OF ENERGY","E-SR-01",null,null,null,null,null,null,null,null,null,null,null,null,"E-SR-01-DEPT OF ENERGY","DEPT OF ENERGY",null,true]
[null,null,null,null,null,null,null,null,null,null,null,null,null,null,null,null,"2570-FONOFOS","2570",null,null,null,null,null,null,null,null,null,"EPA 00-01-EPA 00-01","EPA 00-01",null,null,null,null,null,null,null,null,null,null,null,null,"EPA 00-01-EPA 00-01","EPA 00-01",null,true]
[null,null,null,null,null,null,null,null,null,null,null,null,null,null,null,null,"2590-MOCAP","2590",null,null,null,null,null,null,null,null,null,"EPA 00-02-EPA 00-02","EPA 00-02",null,null,null,null,null,null,null,null,null,null,null,null,"EPA 00-02-EPA 00-02","EPA 00-02",null,true]
[null,null,null,null,null,null,null,null,null,null,null,null,null,null,null,null,"2595-METRIBUZIN","2595",null,null,null,null,null,null,null,null,null,"EPA 00-07-EPA 00-07","EPA 00-07",null,null,null,null,null,null,null,null,null,null,null,null,"EPA 00-07-EPA 00-07","EPA 00-07",null,true]
[null,null,null,null,null,null,null,null,null,null,null,null,null,null,null,null,"2605-THIMET","2605",null,null,null,null,null,null,null,null,null,"EPA 1694-EPA 1694","EPA 1694",null,null,null,null,null,null,null,null,null,null,null,null,"EPA 1694-EPA 1694","EPA 1694",null,true]
[null,null,null,null,null,null,null,null,null,null,null,null,null,null,null,null,"2615-PROWL","2615",null,null,null,null,null,null,null,null,null,"EPA 1698-EPA 1698","EPA 1698",null,null,null,null,null,null,null,null,null,null,null,null,"EPA 1698-EPA 1698","EPA 1698",null,true]
[null,null,null,null,null,null,null,null,null,null,null,null,null,null,null,null,"2620-AMIBEN","2620",null,null,null,null,null,null,null,null,null,"EPA 200.5-EPA 200.5","EPA 200.5",null,null,null,null,null,null,null,null,null,null,null,null,"EPA 200.5-EPA 200.5","EPA 200.5",null,true]
[null,null,null,null,null,null,null,null,null,null,null,null,null,null,null,null,"2625-BENTAZON","2625",null,null,null,null,null,null,null,null,null,"EPA 200.7-EPA 200.7","EPA 200.7",null,null,null,null,null,null,null,null,null,null,null,null,"EPA 200.7-EPA 200.7","EPA 200.7",null,true]
[null,null,null,null,null,null,null,null,null,null,null,null,null,null,null,null,"2626-MOLINATE","2626",null,null,null,null,null,null,null,null,null,"EPA 200.8-EPA 200.8","EPA 200.8",null,null,null,null,null,null,null,null,null,null,null,null,"EPA 200.8-EPA 200.8","EPA 200.8",null,true]
[null,null,null,null,null,null,null,null,null,null,null,null,null,null,null,null,"2635-BOLSTAR","2635",null,null,null,null,null,null,null,null,null,"EPA 200.9-EPA 200.9","EPA 200.9",null,null,null,null,null,null,null,null,null,null,null,null,"EPA 200.9-EPA 200.9","EPA 200.9",null,{"$f":"(AB438=AP438)","v":true}]
[null,null,null,null,null,null,null,null,null,null,null,null,null,null,null,null,"2650-DICHLOROETHYLENE, TOTAL","2650",null,null,null,null,null,null,null,null,null,"EPA 218.6-EPA 218.6","EPA 218.6",null,null,null,null,null,null,null,null,null,null,null,null,"EPA 218.6-EPA 218.6","EPA 218.6",null,true]
[null,null,null,null,null,null,null,null,null,null,null,null,null,null,null,null,"2655-1,3-DICHLOROPROPYLENE, TOTAL","2655",null,null,null,null,null,null,null,null,null,"EPA 218.7-EPA 218.7","EPA 218.7",null,null,null,null,null,null,null,null,null,null,null,null,"EPA 218.7-EPA 218.7","EPA 218.7",null,true]
[null,null,null,null,null,null,null,null,null,null,null,null,null,null,null,null,"2702-17-ALPHA-ETHYNYLESTRADIOL","2702",null,null,null,null,null,null,null,null,null,"EPA 300.0-EPA 300.0","EPA 300.0",null,null,null,null,null,null,null,null,null,null,null,null,"EPA 300.0-EPA 300.0","EPA 300.0",null,true]
[null,null,null,null,null,null,null,null,null,null,null,null,null,null,null,null,"2703-EQUILIN","2703",null,null,null,null,null,null,null,null,null,"EPA 300.1-EPA 300.1","EPA 300.1",null,null,null,null,null,null,null,null,null,null,null,null,"EPA 300.1-EPA 300.1","EPA 300.1",null,true]
[null,null,null,null,null,null,null,null,null,null,null,null,null,null,null,null,"2704-ESTRIOL","2704",null,null,null,null,null,null,null,null,null,"EPA 314-EPA 314","EPA 314",null,null,null,null,null,null,null,null,null,null,null,null,"EPA 314-EPA 314","EPA 314",null,true]
[null,null,null,null,null,null,null,null,null,null,null,null,null,null,null,null,"2705-4-ANDROSTENE-3,17-DIONE","2705",null,null,null,null,null,null,null,null,null,"EPA 314.1-EPA 314.1","EPA 314.1",null,null,null,null,null,null,null,null,null,null,null,null,"EPA 314.1-EPA 314.1","EPA 314.1",null,true]
[null,null,null,null,null,null,null,null,null,null,null,null,null,null,null,null,"2706-TESTOSTERONE","2706",null,null,null,null,null,null,null,null,null,"EPA 331-EPA 331","EPA 331",null,null,null,null,null,null,null,null,null,null,null,null,"EPA 331-EPA 331","EPA 331",null,true]
[null,null,null,null,null,null,null,null,null,null,null,null,null,null,null,null,"2707-ESTRONE","2707",null,null,null,null,null,null,null,null,null,"EPA 332-EPA 332","EPA 332",null,null,null,null,null,null,null,null,null,null,null,null,"EPA 332-EPA 332","EPA 332",null,true]
[null,null,null,null,null,null,null,null,null,null,null,null,null,null,null,null,"2727-THIOBENCARB (BOLERO)","2727",null,null,null,null,null,null,null,null,null,"EPA 353.3-EPA 353.3","EPA 353.3",null,null,null,null,null,null,null,null,null,null,null,null,"EPA 353.3-EPA 353.3","EPA 353.3",null,true]
[null,null,null,null,null,null,null,null,null,null,null,null,null,null,null,null,"2801-PERFLUOROBUTANESULFONIC ACID (PFBS)","2801",null,null,null,null,null,null,null,null,null,"EPA 502.2-EPA 502.2","EPA 502.2",null,null,null,null,null,null,null,null,null,null,null,null,"EPA 502.2-EPA 502.2","EPA 502.2",null,true]
[null,null,null,null,null,null,null,null,null,null,null,null,null,null,null,null,"2802-PERFLUOROHEPTANOIC ACID (PFHPA)","2802",null,null,null,null,null,null,null,null,null,"EPA 507-EPA 507","EPA 507",null,null,null,null,null,null,null,null,null,null,null,null,"EPA 507-EPA 507","EPA 507",null,true]
[null,null,null,null,null,null,null,null,null,null,null,null,null,null,null,null,"2803-PERFLUOROHEXANE SULFONIC ACID (PFHXS)","2803",null,null,null,null,null,null,null,null,null,"EPA 508-EPA 508","EPA 508",null,null,null,null,null,null,null,null,null,null,null,null,"EPA 508-EPA 508","EPA 508",null,true]
[null,null,null,null,null,null,null,null,null,null,null,null,null,null,null,null,"2804-PERFLUORONONANOIC ACID (PFNA)","2804",null,null,null,null,null,null,null,null,null,"EPA 508.1-EPA 508.1","EPA 508.1",null,null,null,null,null,null,null,null,null,null,null,null,"EPA 508.1-EPA 508.1","EPA 508.1",null,true]
[null,null,null,null,null,null,null,null,null,null,null,null,null,null,null,null,"2805-PERFLUOROCTANE SULFONIC ACID (PFOS)","2805",null,null,null,null,null,null,null,null,null,"EPA 515.1-EPA 515.1","EPA 515.1",null,null,null,null,null,null,null,null,null,null,null,null,"EPA 515.1-EPA 515.1","EPA 515.1",null,true]
[null,null,null,null,null,null,null,null,null,null,null,null,null,null,null,null,"2806-PERFLUOROCTANOIC ACID (PFOA)","2806",null,null,null,null,null,null,null,null,null,"EPA 515.2-EPA 515.2","EPA 515.2",null,null,null,null,null,null,null,null,null,null,null,null,"EPA 515.2-EPA 515.2","EPA 515.2",null,true]
[null,null,null,null,null,null,null,null,null,null,null,null,null,null,null,null,"2807-PERFLUORODECANOIC ACID (PFDA)","2807",null,null,null,null,null,null,null,null,null,"EPA 515.3-EPA 515.3","EPA 515.3",null,null,null,null,null,null,null,null,null,null,null,null,"EPA 515.3-EPA 515.3","EPA 515.3",null,true]
[null,null,null,null,null,null,null,null,null,null,null,null,null,null,null,null,"2808-PERFLUORODODECANOIC ACID (PFDOA)","2808",null,null,null,null,null,null,null,null,null,"EPA 515.4-EPA 515.4","EPA 515.4",null,null,null,null,null,null,null,null,null,null,null,null,"EPA 515.4-EPA 515.4","EPA 515.4",null,true]
[null,null,null,null,null,null,null,null,null,null,null,null,null,null,null,null,"2809-PERFLUOROHEXANOIC ACID (PFHXA)","2809",null,null,null,null,null,null,null,null,null,"EPA 521-EPA 521","EPA 521",null,null,null,null,null,null,null,null,null,null,null,null,"EPA 521-EPA 521","EPA 521",null,true]
[null,null,null,null,null,null,null,null,null,null,null,null,null,null,null,null,"2810-PERFLUOROTETRADECANOIC ACID (PFTA)","2810",null,null,null,null,null,null,null,null,null,"EPA 522-EPA 522","EPA 522",null,null,null,null,null,null,null,null,null,null,null,null,"EPA 522-EPA 522","EPA 522",null,true]
[null,null,null,null,null,null,null,null,null,null,null,null,null,null,null,null,"2811-PERFLUOROTRIDECANOIC ACID (PFTRDA)","2811",null,null,null,null,null,null,null,null,null,"EPA 524.2-EPA 524.2","EPA 524.2",null,null,null,null,null,null,null,null,null,null,null,null,"EPA 524.2-EPA 524.2","EPA 524.2",null,true]
[null,null,null,null,null,null,null,null,null,null,null,null,null,null,null,null,"2812-PERFLUOROUNDECANOIC ACID (PFUNA)","2812",null,null,null,null,null,null,null,null,null,"EPA 524.3-EPA 524.3","EPA 524.3",null,null,null,null,null,null,null,null,null,null,null,null,"EPA 524.3-EPA 524.3","EPA 524.3",null,true]
[null,null,null,null,null,null,null,null,null,null,null,null,null,null,null,null,"2813-11-CHLOROEICOSAFLUORO-3-3OXAUNDECANE-1-SULFONIC (11CL-PF3OUDS)","2813",null,null,null,null,null,null,null,null,null,"EPA 524.4-EPA 524.4","EPA 524.4",null,null,null,null,null,null,null,null,null,null,null,null,"EPA 524.4-EPA 524.4","EPA 524.4",null,true]
[null,null,null,null,null,null,null,null,null,null,null,null,null,null,null,null,"2814-9-CHLOROHEXADECAFLUORO-3OXANONE-1-SULFONIC ACID (9CL-PF3ONS)","2814",null,null,null,null,null,null,null,null,null,"EPA 525.2-EPA 525.2","EPA 525.2",null,null,null,null,null,null,null,null,null,null,null,null,"EPA 525.2-EPA 525.2","EPA 525.2",null,true]
[null,null,null,null,null,null,null,null,null,null,null,null,null,null,null,null,"2815-4,8-DIOXA-3H-PERFLUORONONANOIC ACID (ADONA)","2815",null,null,null,null,null,null,null,null,null,"EPA 525.3-EPA 525.3","EPA 525.3",null,null,null,null,null,null,null,null,null,null,null,null,"EPA 525.3-EPA 525.3","EPA 525.3",null,true]
[null,null,null,null,null,null,null,null,null,null,null,null,null,null,null,null,"2816-HEXAFLUOROPROPYLENE OXIDE DIMER ACID (HFPO-DA)","2816",null,null,null,null,null,null,null,null,null,"EPA 529-EPA 529","EPA 529",null,null,null,null,null,null,null,null,null,null,null,null,"EPA 529-EPA 529","EPA 529",null,true]
[null,null,null,null,null,null,null,null,null,null,null,null,null,null,null,null,"2817-N-ETHYL PERFLUOROOCTANESULFONAMIDOACETIC ACID (NETFOSAA)","2817",null,null,null,null,null,null,null,null,null,"EPA 533-EPA 533","EPA 533",null,null,null,null,null,null,null,null,null,null,null,null,"EPA 533-EPA 533","EPA 533",null,true]
[null,null,null,null,null,null,null,null,null,null,null,null,null,null,null,null,"2818-N-METHYL PERFLUOROOCTANESULFONAMIDOACETIC ACID (NMEFOSAA)","2818",null,null,null,null,null,null,null,null,null,"EPA 537-EPA 537","EPA 537",null,null,null,null,null,null,null,null,null,null,null,null,"EPA 537-EPA 537","EPA 537",null,true]
[null,null,null,null,null,null,null,null,null,null,null,null,null,null,null,null,"2819-PERFLUOROBUTANOIC ACID (PFBA)",2819,null,null,null,null,null,null,null,null,null,"EPA 537.1-EPA 537.1","EPA 537.1",null,null,null,null,null,null,null,null,null,null,null,null,"EPA 537.1-EPA 537.1","EPA 537.1",null,true]
[null,null,null,null,null,null,null,null,null,null,null,null,null,null,null,null,"2820-1H,1H, 2H, 2H-PERFLUOROOCTANE SULFONIC ACID (6:2FTS)",2820,null,null,null,null,null,null,null,null,null,"EPA 539-EPA 539","EPA 539",null,null,null,null,null,null,null,null,null,null,null,null,"EPA 539-EPA 539","EPA 539",null,true]
[null,null,null,null,null,null,null,null,null,null,null,null,null,null,null,null,"2821-1H,1H, 2H, 2H-PERFLUOROHEXANE SULFONIC ACID (4:2FTS)",2821,null,null,null,null,null,null,null,null,null,"EPA 541-EPA 541","EPA 541",null,null,null,null,null,null,null,null,null,null,null,null,"EPA 541-EPA 541","EPA 541",null,true]
[null,null,null,null,null,null,null,null,null,null,null,null,null,null,null,null,"2822-1H,1H, 2H, 2H-PERFLUORODECANE SULFONIC ACID (8:2FTS)",2822,null,null,null,null,null,null,null,null,null,"EPA 542-EPA 542","EPA 542",null,null,null,null,null,null,null,null,null,null,null,null,"EPA 542-EPA 542","EPA 542",null,true]
[null,null,null,null,null,null,null,null,null,null,null,null,null,null,null,null,"2823-PERFLUORO-3-METHOXYPROPANOIC ACID (PFMPA)",2823,null,null,null,null,null,null,null,null,null,"EPA 555-EPA 555","EPA 555",null,null,null,null,null,null,null,null,null,null,null,null,"EPA 555-EPA 555","EPA 555",null,true]
[null,null,null,null,null,null,null,null,null,null,null,null,null,null,null,null,"2824-PERFLUOROPENTANOIC ACID (PFPeA)",2824,null,null,null,null,null,null,null,null,null,"EPA 556-EPA 556","EPA 556",null,null,null,null,null,null,null,null,null,null,null,null,"EPA 556-EPA 556","EPA 556",null,true]
[null,null,null,null,null,null,null,null,null,null,null,null,null,null,null,null,"2825-PERFLUORO-4-METHOXYBUTANOIC ACID (PFMBA)",2825,null,null,null,null,null,null,null,null,null,"EPA 607 / 625-EPA 607 / 625","EPA 607 / 625",null,null,null,null,null,null,null,null,null,null,null,null,"EPA 607 / 625-EPA 607 / 625","EPA 607 / 625",null,true]
[null,null,null,null,null,null,null,null,null,null,null,null,null,null,null,null,"2826-PERFLUORO(2-ETHOXYETHANE)SULFONIC ACID (PFEESA)",2826,null,null,null,null,null,null,null,null,null,"EPA 8015B-EPA 8015B","EPA 8015B",null,null,null,null,null,null,null,null,null,null,null,null,"EPA 8015B-EPA 8015B","EPA 8015B",null,true]
[null,null,null,null,null,null,null,null,null,null,null,null,null,null,null,null,"2827-NONAFLUORO-3,6-DIOXAHEPTANOIC ACID (NFDHA)",2827,null,null,null,null,null,null,null,null,null,"EPA 8330-EPA 8330","EPA 8330",null,null,null,null,null,null,null,null,null,null,null,null,"EPA 8330-EPA 8330","EPA 8330",null,true]
[null,null,null,null,null,null,null,null,null,null,null,null,null,null,null,null,"2828-PERFLUOROPENTANESULFONIC ACID (PFPeS)",2828,null,null,null,null,null,null,null,null,null,"EPA H-02-EPA H-02","EPA H-02",null,null,null,null,null,null,null,null,null,null,null,null,"EPA H-02-EPA H-02","EPA H-02",null,true]
[null,null,null,null,null,null,null,null,null,null,null,null,null,null,null,null,"2829-PERFLUOROHEPTANESULFONIC ACID (PFHpS)",2829,null,null,null,null,null,null,null,null,null,"GA-Gamma-Ray Spectrometry Using HPGE or Ge(Li) Detectors","GA",null,null,null,null,null,null,null,null,null,null,null,null,"GA-Gamma-Ray Spectrometry Using HPGE or Ge(Li) Detectors","Gamma-Ray Spectrometry Using HPGE or Ge(Li) Detectors",null,true]
[null,null,null,null,null,null,null,null,null,null,null,null,null,null,null,null,"2904-TRICHLOROTRIFLUOROETHANE","2904",null,null,null,null,null,null,null,null,null,"Ga-01-R-Ga-01-R","Ga-01-R",null,null,null,null,null,null,null,null,null,null,null,null,"Ga-01-R-Ga-01-R","Ga-01-R",null,true]
[null,null,null,null,null,null,null,null,null,null,null,null,null,null,null,null,"2905-FOAMING AGENTS (SURFACTANTS)","2905",null,null,null,null,null,null,null,null,null,"Hach 10020-Chromotropic Acid","Hach 10020",null,null,null,null,null,null,null,null,null,null,null,null,"Hach 10020-Chromotropic Acid","Chromotropic Acid",null,true]
[null,null,null,null,null,null,null,null,null,null,null,null,null,null,null,null,"2910-PHENOLS","2910",null,null,null,null,null,null,null,null,null,"HACH 10206-HACH 10206","HACH 10206",null,null,null,null,null,null,null,null,null,null,null,null,"HACH 10206-HACH 10206","HACH 10206",null,true]
[null,null,null,null,null,null,null,null,null,null,null,null,null,null,null,null,"2919-CARBON, DISSOLVED ORGANIC (DOC)","2919",null,null,null,null,null,null,null,null,null,"HACH 10261-Ozone Oxidation","HACH 10261",null,null,null,null,null,null,null,null,null,null,null,null,"HACH 10261-Ozone Oxidation","Ozone Oxidation",null,true]
[null,null,null,null,null,null,null,null,null,null,null,null,null,null,null,null,"2920-CARBON, TOTAL","2920",null,null,null,null,null,null,null,null,null,"HACH 10258 (2016)-360 DEGREE NEPHELOMETRY (LASER)","HACH 10258 (2016)",null,null,null,null,null,null,null,null,null,null,null,null,"HACH 10258 (2016)-360 DEGREE NEPHELOMETRY (LASER)","360 DEGREE NEPHELOMETRY (LASER)",null,true]
[null,null,null,null,null,null,null,null,null,null,null,null,null,null,null,null,"2921-TOTAL ORGANIC HALIDE (TOX)","2921",null,null,null,null,null,null,null,null,null,"HACH 10267-PERSULFATE-ULTRAVIOLET OR OXIDATION","HACH 10267",null,null,null,null,null,null,null,null,null,null,null,null,"HACH 10267-PERSULFATE-ULTRAVIOLET OR OXIDATION","PERSULFATE-ULTRAVIOLET OR OXIDATION",null,true]
[null,null,null,null,null,null,null,null,null,null,null,null,null,null,null,null,"2922-UV ABSORBANCE @254 NM","2922",null,null,null,null,null,null,null,null,null,"Hach SPADNS 2 Method 10225 22-Arsenite-Free Colorimetric SPADNS","Hach SPADNS 2 Method 10225 22",null,null,null,null,null,null,null,null,null,null,null,null,"Hach SPADNS 2 Method 10225 22-Arsenite-Free Colorimetric SPADNS","Arsenite-Free Colorimetric SPADNS",null,true]
[null,null,null,null,null,null,null,null,null,null,null,null,null,null,null,null,"2923-SUVA (SPECFIC ULTRAVIOLET ABSORBANCE)","2923",null,null,null,null,null,null,null,null,null,"Hach TNTplusTM 835/836 Method 10206 23-Colorimetric; Direct","Hach TNTplusTM 835/836 Method 10206 23",null,null,null,null,null,null,null,null,null,null,null,null,"Hach TNTplusTM 835/836 Method 10206 23-Colorimetric; Direct","Colorimetric; Direct",null,true]
[null,null,null,null,null,null,null,null,null,null,null,null,null,null,null,null,"2930-KEPONE","2930",null,null,null,null,null,null,null,null,null,"I-1030-85-TITRIMETRIC","I-1030-85",null,null,null,null,null,null,null,null,null,null,null,null,"I-1030-85-TITRIMETRIC","TITRIMETRIC",null,true]
[null,null,null,null,null,null,null,null,null,null,null,null,null,null,null,null,"2931-1,2-DIBROMO-3-CHLOROPROPANE","2931",null,null,null,null,null,null,null,null,null,"I-1601-85-COLORIMETRIC-MOLYBDATE BLUE","I-1601-85",null,null,null,null,null,null,null,null,null,null,null,null,"I-1601-85-COLORIMETRIC-MOLYBDATE BLUE","COLORIMETRIC-MOLYBDATE BLUE",null,true]
[null,null,null,null,null,null,null,null,null,null,null,null,null,null,null,null,"2932-MIREX","2932",null,null,null,null,null,null,null,null,null,"I-1700-85-COLORIMETRIC-MOLYBDATE BLUE","I-1700-85",null,null,null,null,null,null,null,null,null,null,null,null,"I-1700-85-COLORIMETRIC-MOLYBDATE BLUE","COLORIMETRIC-MOLYBDATE BLUE",null,true]
[null,null,null,null,null,null,null,null,null,null,null,null,null,null,null,null,"2933-DICHLORAN","2933",null,null,null,null,null,null,null,null,null,"I-2598-85-COLORIMETRIC, AUTO; DISCRETE","I-2598-85",null,null,null,null,null,null,null,null,null,null,null,null,"I-2598-85-COLORIMETRIC, AUTO; DISCRETE","COLORIMETRIC, AUTO; DISCRETE",null,true]
[null,null,null,null,null,null,null,null,null,null,null,null,null,null,null,null,"2934-PENTACHLORONITROBENZENE","2934",null,null,null,null,null,null,null,null,null,"I-2601-90-COLORIMETRIC, AUTO; SEGMENTED","I-2601-90",null,null,null,null,null,null,null,null,null,null,null,null,"I-2601-90-COLORIMETRIC, AUTO; SEGMENTED","COLORIMETRIC, AUTO; SEGMENTED",null,true]
[null,null,null,null,null,null,null,null,null,null,null,null,null,null,null,null,"2940-HMPA","2940",null,null,null,null,null,null,null,null,null,"I-2700-85-COLORIMETRIC, AUTO; SEGMENTED","I-2700-85",null,null,null,null,null,null,null,null,null,null,null,null,"I-2700-85-COLORIMETRIC, AUTO; SEGMENTED","COLORIMETRIC, AUTO; SEGMENTED",null,true]
[null,null,null,null,null,null,null,null,null,null,null,null,null,null,null,null,"2941-CHLOROFORM","2941",null,null,null,null,null,null,null,null,null,"I-3300-85-SPECTROPHOTOMETRIC, MANUAL","I-3300-85",null,null,null,null,null,null,null,null,null,null,null,null,"I-3300-85-SPECTROPHOTOMETRIC, MANUAL","SPECTROPHOTOMETRIC, MANUAL",null,true]
[null,null,null,null,null,null,null,null,null,null,null,null,null,null,null,null,"2942-BROMOFORM","2942",null,null,null,null,null,null,null,null,null,"I-3720-85-I-3720-85","I-3720-85",null,null,null,null,null,null,null,null,null,null,null,null,"I-3720-85-I-3720-85","I-3720-85",null,true]
[null,null,null,null,null,null,null,null,null,null,null,null,null,null,null,null,"2943-BROMODICHLOROMETHANE","2943",null,null,null,null,null,null,null,null,null,"KELADA-01-KELADA 01 AUTOMATED CYANIDE METHOD","KELADA-01",null,null,null,null,null,null,null,null,null,null,null,null,"KELADA-01-KELADA 01 AUTOMATED CYANIDE METHOD","KELADA 01 AUTOMATED CYANIDE METHOD",null,true]
[null,null,null,null,null,null,null,null,null,null,null,null,null,null,null,null,"2944-DIBROMOCHLOROMETHANE","2944",null,null,null,null,null,null,null,null,null,"Kelada 01-Kelada 01","Kelada 01",null,null,null,null,null,null,null,null,null,null,null,null,"Kelada 01-Kelada 01","Kelada 01",null,true]
[null,null,null,null,null,null,null,null,null,null,null,null,null,null,null,null,"2946-ETHYLENE DIBROMIDE","2946",null,null,null,null,null,null,null,null,null,"LACHAT AUTO-MICRO DIST, FLOW INJ. SPECT","LACHAT AUTO",null,null,null,null,null,null,null,null,null,null,null,null,"LACHAT AUTO-MICRO DIST, FLOW INJ. SPECT","MICRO DIST, FLOW INJ. SPECT",null,true]
[null,null,null,null,null,null,null,null,null,null,null,null,null,null,null,null,"2949-MAXIMUM TOTAL TRIHALOMETHANE POTENTIAL","2949",null,null,null,null,null,null,null,null,null,"LQ 10-107-04-1-C-LACHAT QUIKCHEM-NITRATE/NITRITE","LQ 10-107-04-1-C",null,null,null,null,null,null,null,null,null,null,null,null,"LQ 10-107-04-1-C-LACHAT QUIKCHEM-NITRATE/NITRITE","LACHAT QUIKCHEM-NITRATE/NITRITE",null,true]
[null,null,null,null,null,null,null,null,null,null,null,null,null,null,null,null,"2950-TTHM","2950",null,null,null,null,null,null,null,null,null,"LQ 10-109-12-2-A-LACHAT QUIKCHEM - FLUORIDE","LQ 10-109-12-2-A",null,null,null,null,null,null,null,null,null,null,null,null,"LQ 10-109-12-2-A-LACHAT QUIKCHEM - FLUORIDE","LACHAT QUIKCHEM - FLUORIDE",null,true]
[null,null,null,null,null,null,null,null,null,null,null,null,null,null,null,null,"2951-SIMULATED DISTRIBUTION SYSTEM (SDS) TEST","2951",null,null,null,null,null,null,null,null,null,"LQ 10-204-00-1-X-LACHAT QUIKCHEM - CYANIDE BY MICRO DIST","LQ 10-204-00-1-X",null,null,null,null,null,null,null,null,null,null,null,null,"LQ 10-204-00-1-X-LACHAT QUIKCHEM - CYANIDE BY MICRO DIST","LACHAT QUIKCHEM - CYANIDE BY MICRO DIST",null,true]
[null,null,null,null,null,null,null,null,null,null,null,null,null,null,null,null,"2952-CHLORAL HYDRATE","2952",null,null,null,null,null,null,null,null,null,"ME355.01-ME355.01","ME355.01",null,null,null,null,null,null,null,null,null,null,null,null,"ME355.01-ME355.01","ME355.01",null,true]
[null,null,null,null,null,null,null,null,null,null,null,null,null,null,null,null,"2953-CHLOROPICRIN","2953",null,null,null,null,null,null,null,null,null,"ME355.01 7-Headspace Gas Chromatography/Mass Spectrometry","ME355.01 7",null,null,null,null,null,null,null,null,null,null,null,null,"ME355.01 7-Headspace Gas Chromatography/Mass Spectrometry","Headspace Gas Chromatography/Mass Spectrometry",null,true]
[null,null,null,null,null,null,null,null,null,null,null,null,null,null,null,null,"2954-DICHLOROACETONITRILE","2954",null,null,null,null,null,null,null,null,null,"Method 1001-Method 1001","Method 1001",null,null,null,null,null,null,null,null,null,null,null,null,"Method 1001-Method 1001","Method 1001",null,true]
[null,null,null,null,null,null,null,null,null,null,null,null,null,null,null,null,"2955-XYLENES, TOTAL","2955",null,null,null,null,null,null,null,null,null,"Method 2-Method 2","Method 2",null,null,null,null,null,null,null,null,null,null,null,null,"Method 2-Method 2","Method 2",null,{"$f":"(AB502=AP502)","v":true}]
[null,null,null,null,null,null,null,null,null,null,null,null,null,null,null,null,"2956-1,1,1-TRICHLORO-2-PROPANONE","2956",null,null,null,null,null,null,null,null,null,"Method D6508-Method D6508","Method D6508",null,null,null,null,null,null,null,null,null,null,null,null,"Method D6508-Method D6508","Method D6508",null,true]
[null,null,null,null,null,null,null,null,null,null,null,null,null,null,null,null,"2957-1,1-DICHLORO-2-PROPANONE","2957",null,null,null,null,null,null,null,null,null,"Method OIA- 1677, DW-Method OIA- 1677, DW","Method OIA- 1677, DW",null,null,null,null,null,null,null,null,null,null,null,null,"Method OIA- 1677, DW-Method OIA- 1677, DW","Method OIA- 1677, DW",null,true]
[null,null,null,null,null,null,null,null,null,null,null,null,null,null,null,null,"2959-CHLORDANE","2959",null,null,null,null,null,null,null,null,null,"Mitchell M5271.10-Laser Nephelometry (on-line)","Mitchell M5271.10",null,null,null,null,null,null,null,null,null,null,null,null,"Mitchell M5271.10-Laser Nephelometry (on-line)","Laser Nephelometry (on-line)",null,true]
[null,null,null,null,null,null,null,null,null,null,null,null,null,null,null,null,"2960-ETHYLENE GLYCOL","2960",null,null,null,null,null,null,null,null,null,"Mitchell M5331.11-LED Nephelometry (on-line)","Mitchell M5331.11",null,null,null,null,null,null,null,null,null,null,null,null,"Mitchell M5331.11-LED Nephelometry (on-line)","LED Nephelometry (on-line)",null,true]
[null,null,null,null,null,null,null,null,null,null,null,null,null,null,null,null,"2961-FORMALDEHYDE","2961",null,null,null,null,null,null,null,null,null,"NJ-NJ","NJ",null,null,null,null,null,null,null,null,null,null,null,null,"NJ-NJ","NJ",null,true]
[null,null,null,null,null,null,null,null,null,null,null,null,null,null,null,null,"2962-P-XYLENE","2962",null,null,null,null,null,null,null,null,null,"NY-NY","NY",null,null,null,null,null,null,null,null,null,null,null,null,"NY-NY","NY",null,true]
[null,null,null,null,null,null,null,null,null,null,null,null,null,null,null,null,"2963-XYLENE, META AND PARA","2963",null,null,null,null,null,null,null,null,null,"OIA-1677-LIGAND EXCHANGE AND FLOW INJECTION ANALY","OIA-1677",null,null,null,null,null,null,null,null,null,null,null,null,"OIA-1677-LIGAND EXCHANGE AND FLOW INJECTION ANALY","LIGAND EXCHANGE AND FLOW INJECTION ANALY",null,true]
[null,null,null,null,null,null,null,null,null,null,null,null,null,null,null,null,"2964-DICHLOROMETHANE","2964",null,null,null,null,null,null,null,null,null,"Orion AQ4500.12-LED Nephelometry (portable)","Orion AQ4500.12",null,null,null,null,null,null,null,null,null,null,null,null,"Orion AQ4500.12-LED Nephelometry (portable)","LED Nephelometry (portable)",null,true]
[null,null,null,null,null,null,null,null,null,null,null,null,null,null,null,null,"2965-O-CHLOROTOLUENE","2965",null,null,null,null,null,null,null,null,null,"Page 1 in EMSL LV 053917-Page 1 in EMSL LV 053917","Page 1 in EMSL LV 053917",null,null,null,null,null,null,null,null,null,null,null,null,"Page 1 in EMSL LV 053917-Page 1 in EMSL LV 053917","Page 1 in EMSL LV 053917",null,true]
[null,null,null,null,null,null,null,null,null,null,null,null,null,null,null,null,"2966-P-CHLOROTOLUENE","2966",null,null,null,null,null,null,null,null,null,"Page 1 in EPA 600/4-75-008-Page 1 in EPA 600/4-75-008","Page 1 in EPA 600/4-75-008",null,null,null,null,null,null,null,null,null,null,null,null,"Page 1 in EPA 600/4-75-008-Page 1 in EPA 600/4-75-008","Page 1 in EPA 600/4-75-008",null,true]
[null,null,null,null,null,null,null,null,null,null,null,null,null,null,null,null,"2967-M-DICHLOROBENZENE","2967",null,null,null,null,null,null,null,null,null,"Page 13 in EPA 600/4-75- 008-Page 13 in EPA 600/4-75- 008","Page 13 in EPA 600/4-75- 008",null,null,null,null,null,null,null,null,null,null,null,null,"Page 13 in EPA 600/4-75- 008-Page 13 in EPA 600/4-75- 008","Page 13 in EPA 600/4-75- 008",null,true]
[null,null,null,null,null,null,null,null,null,null,null,null,null,null,null,null,"2968-O-DICHLOROBENZENE","2968",null,null,null,null,null,null,null,null,null,"Page 16 in EPA 600/4/- 75-008-Page 16 in EPA 600/4/- 75-008","Page 16 in EPA 600/4/- 75-008",null,null,null,null,null,null,null,null,null,null,null,null,"Page 16 in EPA 600/4/- 75-008-Page 16 in EPA 600/4/- 75-008","Page 16 in EPA 600/4/- 75-008",null,true]
[null,null,null,null,null,null,null,null,null,null,null,null,null,null,null,null,"2969-P-DICHLOROBENZENE","2969",null,null,null,null,null,null,null,null,null,"Page 19 in EMSL LV 053917-Page 19 in EMSL LV 053917","Page 19 in EMSL LV 053917",null,null,null,null,null,null,null,null,null,null,null,null,"Page 19 in EMSL LV 053917-Page 19 in EMSL LV 053917","Page 19 in EMSL LV 053917",null,true]
[null,null,null,null,null,null,null,null,null,null,null,null,null,null,null,null,"2970-TRANS-1,4-DICHLORO-2-BUTENE","2970",null,null,null,null,null,null,null,null,null,"Page 24 in EPA 600/4-75- 008-Page 24 in EPA 600/4-75- 008","Page 24 in EPA 600/4-75- 008",null,null,null,null,null,null,null,null,null,null,null,null,"Page 24 in EPA 600/4-75- 008-Page 24 in EPA 600/4-75- 008","Page 24 in EPA 600/4-75- 008",null,true]
[null,null,null,null,null,null,null,null,null,null,null,null,null,null,null,null,"2975-DICHLOROIODOMETHANE","2975",null,null,null,null,null,null,null,null,null,"Page 33 in EMSL LV 053917-Page 33 in EMSL LV 053917","Page 33 in EMSL LV 053917",null,null,null,null,null,null,null,null,null,null,null,null,"Page 33 in EMSL LV 053917-Page 33 in EMSL LV 053917","Page 33 in EMSL LV 053917",null,true]
[null,null,null,null,null,null,null,null,null,null,null,null,null,null,null,null,"2976-VINYL CHLORIDE","2976",null,null,null,null,null,null,null,null,null,"Page 34 in EPA 600/4-75- 008-Page 34 in EPA 600/4-75- 008","Page 34 in EPA 600/4-75- 008",null,null,null,null,null,null,null,null,null,null,null,null,"Page 34 in EPA 600/4-75- 008-Page 34 in EPA 600/4-75- 008","Page 34 in EPA 600/4-75- 008",null,true]
[null,null,null,null,null,null,null,null,null,null,null,null,null,null,null,null,"2977-1,1-DICHLOROETHYLENE","2977",null,null,null,null,null,null,null,null,null,"Page 87 in EMSL LV 053917-Page 87 in EMSL LV 053917","Page 87 in EMSL LV 053917",null,null,null,null,null,null,null,null,null,null,null,null,"Page 87 in EMSL LV 053917-Page 87 in EMSL LV 053917","Page 87 in EMSL LV 053917",null,true]
[null,null,null,null,null,null,null,null,null,null,null,null,null,null,null,null,"2978-1,1-DICHLOROETHANE","2978",null,null,null,null,null,null,null,null,null,"Page 92 in EMSL LV 053917-Page 92 in EMSL LV 053917","Page 92 in EMSL LV 053917",null,null,null,null,null,null,null,null,null,null,null,null,"Page 92 in EMSL LV 053917-Page 92 in EMSL LV 053917","Page 92 in EMSL LV 053917",null,true]
[null,null,null,null,null,null,null,null,null,null,null,null,null,null,null,null,"2979-TRANS-1,2-DICHLOROETHYLENE","2979",null,null,null,null,null,null,null,null,null,"R-1110-76-R-1110-76","R-1110-76",null,null,null,null,null,null,null,null,null,null,null,null,"R-1110-76-R-1110-76","R-1110-76",null,true]
[null,null,null,null,null,null,null,null,null,null,null,null,null,null,null,null,"2980-1,2-DICHLOROETHANE","2980",null,null,null,null,null,null,null,null,null,"R-1120-76-EVAPORATION METHOD FOR GROSS ALPHA-BETA","R-1120-76",null,null,null,null,null,null,null,null,null,null,null,null,"R-1120-76-EVAPORATION METHOD FOR GROSS ALPHA-BETA","EVAPORATION METHOD FOR GROSS ALPHA-BETA",null,true]
[null,null,null,null,null,null,null,null,null,null,null,null,null,null,null,null,"2981-1,1,1-TRICHLOROETHANE","2981",null,null,null,null,null,null,null,null,null,"R-1140-76-R-1140-76","R-1140-76",null,null,null,null,null,null,null,null,null,null,null,null,"R-1140-76-R-1140-76","R-1140-76",null,true]
[null,null,null,null,null,null,null,null,null,null,null,null,null,null,null,null,"2982-CARBON TETRACHLORIDE","2982",null,null,null,null,null,null,null,null,null,"R-1141-76-PRECIPITATION METHOD FOR RADIUM","R-1141-76",null,null,null,null,null,null,null,null,null,null,null,null,"R-1141-76-PRECIPITATION METHOD FOR RADIUM","PRECIPITATION METHOD FOR RADIUM",null,true]
[null,null,null,null,null,null,null,null,null,null,null,null,null,null,null,null,"2983-1,2-DICHLOROPROPANE","2983",null,null,null,null,null,null,null,null,null,"R-1142-76-SEQUENTIAL PRECIPITATION METHOD FOR RADI","R-1142-76",null,null,null,null,null,null,null,null,null,null,null,null,"R-1142-76-SEQUENTIAL PRECIPITATION METHOD FOR RADI","SEQUENTIAL PRECIPITATION METHOD FOR RADI",null,true]
[null,null,null,null,null,null,null,null,null,null,null,null,null,null,null,null,"2984-TRICHLOROETHYLENE","2984",null,null,null,null,null,null,null,null,null,"R-1171-76-LIQUID SCINTILLATION SPECTROPHOTOMETRIC","R-1171-76",null,null,null,null,null,null,null,null,null,null,null,null,"R-1171-76-LIQUID SCINTILLATION SPECTROPHOTOMETRIC","LIQUID SCINTILLATION SPECTROPHOTOMETRIC",null,true]
[null,null,null,null,null,null,null,null,null,null,null,null,null,null,null,null,"2985-1,1,2-TRICHLOROETHANE","2985",null,null,null,null,null,null,null,null,null,"R-1180-76-R-1180-76","R-1180-76",null,null,null,null,null,null,null,null,null,null,null,null,"R-1180-76-R-1180-76","R-1180-76",null,true]
[null,null,null,null,null,null,null,null,null,null,null,null,null,null,null,null,"2986-1,1,1,2-TETRACHLOROETHANE","2986",null,null,null,null,null,null,null,null,null,"R-1181-76-R-1181-76","R-1181-76",null,null,null,null,null,null,null,null,null,null,null,null,"R-1181-76-R-1181-76","R-1181-76",null,true]
[null,null,null,null,null,null,null,null,null,null,null,null,null,null,null,null,"2987-TETRACHLOROETHYLENE","2987",null,null,null,null,null,null,null,null,null,"R-1182-76-R-1182-76","R-1182-76",null,null,null,null,null,null,null,null,null,null,null,null,"R-1182-76-R-1182-76","R-1182-76",null,true]
[null,null,null,null,null,null,null,null,null,null,null,null,null,null,null,null,"2988-1,1,2,2-TETRACHLOROETHANE","2988",null,null,null,null,null,null,null,null,null,"RA-03-RA-03","RA-03",null,null,null,null,null,null,null,null,null,null,null,null,"RA-03-RA-03","RA-03",null,true]
[null,null,null,null,null,null,null,null,null,null,null,null,null,null,null,null,"2989-CHLOROBENZENE","2989",null,null,null,null,null,null,null,null,null,"RA-04-RA-04","RA-04",null,null,null,null,null,null,null,null,null,null,null,null,"RA-04-RA-04","RA-04",null,true]
[null,null,null,null,null,null,null,null,null,null,null,null,null,null,null,null,"2990-BENZENE","2990",null,null,null,null,null,null,null,null,null,"RA-05-RA-05","RA-05",null,null,null,null,null,null,null,null,null,null,null,null,"RA-05-RA-05","RA-05",null,true]
[null,null,null,null,null,null,null,null,null,null,null,null,null,null,null,null,"2991-TOLUENE","2991",null,null,null,null,null,null,null,null,null,"RA226_RA228-COMBINED RADIUM (-226,-228)","RA226_RA228",null,null,null,null,null,null,null,null,null,null,null,null,"RA226_RA228-COMBINED RADIUM (-226,-228)","COMBINED RADIUM (-226,-228)",null,true]
[null,null,null,null,null,null,null,null,null,null,null,null,null,null,null,null,"2992-ETHYLBENZENE","2992",null,null,null,null,null,null,null,null,null,"SM 6810-SM 6810","SM 6810",null,null,null,null,null,null,null,null,null,null,null,null,"SM 6810-SM 6810","SM 6810",null,true]
[null,null,null,null,null,null,null,null,null,null,null,null,null,null,null,null,"2993-BROMOBENZENE","2993",null,null,null,null,null,null,null,null,null,"SM3111B-SM3111B","SM3111B",null,null,null,null,null,null,null,null,null,null,null,null,"SM3111B-SM3111B","SM3111B",null,true]
[null,null,null,null,null,null,null,null,null,null,null,null,null,null,null,null,"2994-ISOPROPYLBENZENE","2994",null,null,null,null,null,null,null,null,null,"SM3111D-SM3111D","SM3111D",null,null,null,null,null,null,null,null,null,null,null,null,"SM3111D-SM3111D","SM3111D",null,true]
[null,null,null,null,null,null,null,null,null,null,null,null,null,null,null,null,"2995-M-XYLENE","2995",null,null,null,null,null,null,null,null,null,"SM3113B-SM3113B","SM3113B",null,null,null,null,null,null,null,null,null,null,null,null,"SM3113B-SM3113B","SM3113B",null,true]
[null,null,null,null,null,null,null,null,null,null,null,null,null,null,null,null,"2996-STYRENE","2996",null,null,null,null,null,null,null,null,null,"SM3120B-SM3120B","SM3120B",null,null,null,null,null,null,null,null,null,null,null,null,"SM3120B-SM3120B","SM3120B",null,true]
[null,null,null,null,null,null,null,null,null,null,null,null,null,null,null,null,"2997-O-XYLENE","2997",null,null,null,null,null,null,null,null,null,"SM 4500‐P B(5)‐2011-DIGESTION","SM 4500‐P B(5)‐2011",null,null,null,null,null,null,null,null,null,null,null,null,"SM 4500‐P B(5)‐2011-DIGESTION","DIGESTION",null,true]
[null,null,null,null,null,null,null,null,null,null,null,null,null,null,null,null,"2998-N-PROPYLBENZENE","2998",null,null,null,null,null,null,null,null,null,"SRL 524M-TCP-SRL 524M-TCP","SRL 524M-TCP",null,null,null,null,null,null,null,null,null,null,null,null,"SRL 524M-TCP-SRL 524M-TCP","SRL 524M-TCP",null,true]
[null,null,null,null,null,null,null,null,null,null,null,null,null,null,null,null,"2A01-GASOLINE","2A01",null,null,null,null,null,null,null,null,null,"Syngenta AG- 625-Syngenta AG- 625","Syngenta AG- 625",null,null,null,null,null,null,null,null,null,null,null,null,"Syngenta AG- 625-Syngenta AG- 625","Syngenta AG- 625",null,true]
[null,null,null,null,null,null,null,null,null,null,null,null,null,null,null,null,"2A02-#2 FUEL OIL","2A02",null,null,null,null,null,null,null,null,null,"Systea Easy (1-Reagent) 8-Reduction/Colorimetric","Systea Easy (1-Reagent) 8",null,null,null,null,null,null,null,null,null,null,null,null,"Systea Easy (1-Reagent) 8-Reduction/Colorimetric","Reduction/Colorimetric",null,true]
[null,null,null,null,null,null,null,null,null,null,null,null,null,null,null,null,"2A03-JET FUEL","2A03",null,null,null,null,null,null,null,null,null,"Thermo Discrete Analyzer-Discrete Analyzer","Thermo Discrete Analyzer",null,null,null,null,null,null,null,null,null,null,null,null,"Thermo Discrete Analyzer-Discrete Analyzer","Discrete Analyzer",null,true]
[null,null,null,null,null,null,null,null,null,null,null,null,null,null,null,null,"2A04-#4 FUEL OIL","2A04",null,null,null,null,null,null,null,null,null,"U-02-U-02","U-02",null,null,null,null,null,null,null,null,null,null,null,null,"U-02-U-02","U-02",null,true]
[null,null,null,null,null,null,null,null,null,null,null,null,null,null,null,null,"2A05-#5 FUEL OIL","2A05",null,null,null,null,null,null,null,null,null,"U-04-U-04","U-04",null,null,null,null,null,null,null,null,null,null,null,null,"U-04-U-04","U-04",null,true]
[null,null,null,null,null,null,null,null,null,null,null,null,null,null,null,null,"2A06-MOTOR OIL","2A06",null,null,null,null,null,null,null,null,null,"UOM-UOM","UOM",null,null,null,null,null,null,null,null,null,null,null,null,"UOM-UOM","UOM",null,true]
[null,null,null,null,null,null,null,null,null,null,null,null,null,null,null,null,"2A07-SUBMERSIBLE PUMP OIL","2A07"]
[null,null,null,null,null,null,null,null,null,null,null,null,null,null,null,null,"2A08-VARSOL","2A08"]
[null,null,null,null,null,null,null,null,null,null,null,null,null,null,null,null,"2A09-PROPANE","2A09"]
[null,null,null,null,null,null,null,null,null,null,null,null,null,null,null,null,"4000-GROSS ALPHA, EXCL. RADON & U","4000"]
[null,null,null,null,null,null,null,null,null,null,null,null,null,null,null,null,"4002-GROSS ALPHA, INCL. RADON & U","4002"]
[null,null,null,null,null,null,null,null,null,null,null,null,null,null,null,null,"4004-RADON","4004"]
[null,null,null,null,null,null,null,null,null,null,null,null,null,null,null,null,"4006-COMBINED URANIUM","4006"]
[null,null,null,null,null,null,null,null,null,null,null,null,null,null,null,null,"4007-URANIUM-234","4007"]
[null,null,null,null,null,null,null,null,null,null,null,null,null,null,null,null,"4008-URANIUM-235","4008"]
[null,null,null,null,null,null,null,null,null,null,null,null,null,null,null,null,"4009-URANIUM-238","4009"]
[null,null,null,null,null,null,null,null,null,null,null,null,null,null,null,null,"4010-COMBINED RADIUM (-226 & -228)","4010"]
[null,null,null,null,null,null,null,null,null,null,null,null,null,null,null,null,"4012-PHOTON EMITTERS","4012"]
[null,null,null,null,null,null,null,null,null,null,null,null,null,null,null,null,"4020-RADIUM-226","4020"]
[null,null,null,null,null,null,null,null,null,null,null,null,null,null,null,null,"4030-RADIUM-228","4030"]
[null,null,null,null,null,null,null,null,null,null,null,null,null,null,null,null,"4040-ALPHA, DISSOLVED","4040"]
[null,null,null,null,null,null,null,null,null,null,null,null,null,null,null,null,"4041-ALPHA, SUSPENDED","4041"]
[null,null,null,null,null,null,null,null,null,null,null,null,null,null,null,null,"4042-BETA, DISSOLVED","4042"]
[null,null,null,null,null,null,null,null,null,null,null,null,null,null,null,null,"4043-BETA, SUSPENDED","4043"]
[null,null,null,null,null,null,null,null,null,null,null,null,null,null,null,null,"4044-POTASSIUM-40, TOTAL","4044"]
[null,null,null,null,null,null,null,null,null,null,null,null,null,null,null,null,"4100-GROSS BETA PARTICLE ACTIVITY","4100"]
[null,null,null,null,null,null,null,null,null,null,null,null,null,null,null,null,"4101-MAN-MADE BETA PARTICLE & PHOTON EMITTERS","4101"]
[null,null,null,null,null,null,null,null,null,null,null,null,null,null,null,null,"4102-TRITIUM","4102"]
[null,null,null,null,null,null,null,null,null,null,null,null,null,null,null,null,"4103-GROSS BETA PARTICLE ACTIVITY MINUS THE NATURALLY OCCURRING POTASSIUM-40 BETA PARTICLE ACTIVITY","4103"]
[null,null,null,null,null,null,null,null,null,null,null,null,null,null,null,null,"4104-4-BERYLLIUM-7","4104"]
[null,null,null,null,null,null,null,null,null,null,null,null,null,null,null,null,"4106-4-BERYLLIUM-10","4106"]
[null,null,null,null,null,null,null,null,null,null,null,null,null,null,null,null,"4108-6-CARBON-14","4108"]
[null,null,null,null,null,null,null,null,null,null,null,null,null,null,null,null,"4109-GROSS ALPHA PARTICLE ACTIVITY","4109"]
[null,null,null,null,null,null,null,null,null,null,null,null,null,null,null,null,"4110-11-SODIUM-22","4110"]
[null,null,null,null,null,null,null,null,null,null,null,null,null,null,null,null,"4112-15-PHOSPHORUS-32","4112"]
[null,null,null,null,null,null,null,null,null,null,null,null,null,null,null,null,"4114-16-SULFUR-35","4114"]
[null,null,null,null,null,null,null,null,null,null,null,null,null,null,null,null,"4116-17-CHLORINE-36","4116"]
[null,null,null,null,null,null,null,null,null,null,null,null,null,null,null,null,"4118-20-CALCIUM-45","4118"]
[null,null,null,null,null,null,null,null,null,null,null,null,null,null,null,null,"4120-20-CALCIUM-47","4120"]
[null,null,null,null,null,null,null,null,null,null,null,null,null,null,null,null,"4122-21-SCANDIUM-46","4122"]
[null,null,null,null,null,null,null,null,null,null,null,null,null,null,null,null,"4124-21-SCANDIUM-47","4124"]
[null,null,null,null,null,null,null,null,null,null,null,null,null,null,null,null,"4126-21-SCANDIUM-48","4126"]
[null,null,null,null,null,null,null,null,null,null,null,null,null,null,null,null,"4128-23-VANADIUM-48","4128"]
[null,null,null,null,null,null,null,null,null,null,null,null,null,null,null,null,"4130-24-CHROMIUM-51","4130"]
[null,null,null,null,null,null,null,null,null,null,null,null,null,null,null,null,"4132-25-MANGANESE-54","4132"]
[null,null,null,null,null,null,null,null,null,null,null,null,null,null,null,null,"4134-26-IRON-55","4134"]
[null,null,null,null,null,null,null,null,null,null,null,null,null,null,null,null,"4136-26-IRON-59","4136"]
[null,null,null,null,null,null,null,null,null,null,null,null,null,null,null,null,"4138-27-COBALT-57","4138"]
[null,null,null,null,null,null,null,null,null,null,null,null,null,null,null,null,"4140-27-COBALT-58","4140"]
[null,null,null,null,null,null,null,null,null,null,null,null,null,null,null,null,"4142-27-COBALT-60","4142"]
[null,null,null,null,null,null,null,null,null,null,null,null,null,null,null,null,"4144-28-NICKEL-59","4144"]
[null,null,null,null,null,null,null,null,null,null,null,null,null,null,null,null,"4146-28-NICKEL-63","4146"]
[null,null,null,null,null,null,null,null,null,null,null,null,null,null,null,null,"4148-30-ZINC-65","4148"]
[null,null,null,null,null,null,null,null,null,null,null,null,null,null,null,null,"4150-32-GERANIUM-71","4150"]
[null,null,null,null,null,null,null,null,null,null,null,null,null,null,null,null,"4152-33-ARSENIC-73","4152"]
[null,null,null,null,null,null,null,null,null,null,null,null,null,null,null,null,"4154-33-ARSENIC-74","4154"]
[null,null,null,null,null,null,null,null,null,null,null,null,null,null,null,null,"4156-33-ARSENIC-76","4156"]
[null,null,null,null,null,null,null,null,null,null,null,null,null,null,null,null,"4158-33-ARSENIC-77","4158"]
[null,null,null,null,null,null,null,null,null,null,null,null,null,null,null,null,"4160-34-SELENIUM-75","4160"]
[null,null,null,null,null,null,null,null,null,null,null,null,null,null,null,null,"4162-34-SELENIUM-79","4162"]
[null,null,null,null,null,null,null,null,null,null,null,null,null,null,null,null,"4164-35-BROMIDE-82","4164"]
[null,null,null,null,null,null,null,null,null,null,null,null,null,null,null,null,"4166-37-RUBIDIUM-86","4166"]
[null,null,null,null,null,null,null,null,null,null,null,null,null,null,null,null,"4168-37-RUBIDIUM-87","4168"]
[null,null,null,null,null,null,null,null,null,null,null,null,null,null,null,null,"4170-38-STRONTIUM-85","4170"]
[null,null,null,null,null,null,null,null,null,null,null,null,null,null,null,null,"4172-38-STRONTIUM-89","4172"]
[null,null,null,null,null,null,null,null,null,null,null,null,null,null,null,null,"4174-38-STRONTIUM-90","4174"]
[null,null,null,null,null,null,null,null,null,null,null,null,null,null,null,null,"4176-39-YTTRIUM-90","4176"]
[null,null,null,null,null,null,null,null,null,null,null,null,null,null,null,null,"4178-39-YTTRIUM-91","4178"]
[null,null,null,null,null,null,null,null,null,null,null,null,null,null,null,null,"4180-39-YTTRIUM-91M","4180"]
[null,null,null,null,null,null,null,null,null,null,null,null,null,null,null,null,"4182-40-ZIRCONIUM-93","4182"]
[null,null,null,null,null,null,null,null,null,null,null,null,null,null,null,null,"4184-40-ZIRCONIUM-95","4184"]
[null,null,null,null,null,null,null,null,null,null,null,null,null,null,null,null,"4186-41-NIOBIUM-93","4186"]
[null,null,null,null,null,null,null,null,null,null,null,null,null,null,null,null,"4188-41-NIOBIUM-95","4188"]
[null,null,null,null,null,null,null,null,null,null,null,null,null,null,null,null,"4190-42-MOLYBDENUM-93","4190"]
[null,null,null,null,null,null,null,null,null,null,null,null,null,null,null,null,"4192-42-MOLYBDENUM-99","4192"]
[null,null,null,null,null,null,null,null,null,null,null,null,null,null,null,null,"4194-43-TECHNETIUM-96","4194"]
[null,null,null,null,null,null,null,null,null,null,null,null,null,null,null,null,"4196-43-TECHNETIUM-97M","4196"]
[null,null,null,null,null,null,null,null,null,null,null,null,null,null,null,null,"4198-43-TECHNETIUM-97","4198"]
[null,null,null,null,null,null,null,null,null,null,null,null,null,null,null,null,"4200-43-TECHNETIUM-99","4200"]
[null,null,null,null,null,null,null,null,null,null,null,null,null,null,null,null,"4202-43-TECHNETIUM-99M","4202"]
[null,null,null,null,null,null,null,null,null,null,null,null,null,null,null,null,"4204-44-RUTHENIUM-97","4204"]
[null,null,null,null,null,null,null,null,null,null,null,null,null,null,null,null,"4206-44-RUTHENIUM-103","4206"]
[null,null,null,null,null,null,null,null,null,null,null,null,null,null,null,null,"4208-44-RUTHENIUM-106","4208"]
[null,null,null,null,null,null,null,null,null,null,null,null,null,null,null,null,"4210-45-RHODIUM-105","4210"]
[null,null,null,null,null,null,null,null,null,null,null,null,null,null,null,null,"4212-46-PALLADIUM-103","4212"]
[null,null,null,null,null,null,null,null,null,null,null,null,null,null,null,null,"4214-46-PALLADIUM-107","4214"]
[null,null,null,null,null,null,null,null,null,null,null,null,null,null,null,null,"4216-47-SILVER-105M","4216"]
[null,null,null,null,null,null,null,null,null,null,null,null,null,null,null,null,"4218-47-SILVER-110M","4218"]
[null,null,null,null,null,null,null,null,null,null,null,null,null,null,null,null,"4220-47-SILVER-110","4220"]
[null,null,null,null,null,null,null,null,null,null,null,null,null,null,null,null,"4222-47-SILVER-111","4222"]
[null,null,null,null,null,null,null,null,null,null,null,null,null,null,null,null,"4224-48-CADMIUM-109","4224"]
[null,null,null,null,null,null,null,null,null,null,null,null,null,null,null,null,"4226-48-CADMIUM-113M","4226"]
[null,null,null,null,null,null,null,null,null,null,null,null,null,null,null,null,"4228-48-CADMIUM-115M","4228"]
[null,null,null,null,null,null,null,null,null,null,null,null,null,null,null,null,"4230-48-CADMIUM-115","4230"]
[null,null,null,null,null,null,null,null,null,null,null,null,null,null,null,null,"4232-49-INDIUM-115","4232"]
[null,null,null,null,null,null,null,null,null,null,null,null,null,null,null,null,"4234-50-TIN-113","4234"]
[null,null,null,null,null,null,null,null,null,null,null,null,null,null,null,null,"4236-50-TIN-123","4236"]
[null,null,null,null,null,null,null,null,null,null,null,null,null,null,null,null,"4238-50-TIN-125","4238"]
[null,null,null,null,null,null,null,null,null,null,null,null,null,null,null,null,"4240-51-ANTIMONY-122","4240"]
[null,null,null,null,null,null,null,null,null,null,null,null,null,null,null,null,"4242-51-ANTIMONY-124","4242"]
[null,null,null,null,null,null,null,null,null,null,null,null,null,null,null,null,"4244-51-ANTIMONY-125","4244"]
[null,null,null,null,null,null,null,null,null,null,null,null,null,null,null,null,"4246-51-ANTIMONY-127","4246"]
[null,null,null,null,null,null,null,null,null,null,null,null,null,null,null,null,"4248-52-TELLURIUM-125M","4248"]
[null,null,null,null,null,null,null,null,null,null,null,null,null,null,null,null,"4250-52-TELLURIUM-127M","4250"]
[null,null,null,null,null,null,null,null,null,null,null,null,null,null,null,null,"4252-52-TELLURIUM-127","4252"]
[null,null,null,null,null,null,null,null,null,null,null,null,null,null,null,null,"4254-52-TELLURIUM-129M","4254"]
[null,null,null,null,null,null,null,null,null,null,null,null,null,null,null,null,"4256-52-TELLURIUM-129","4256"]
[null,null,null,null,null,null,null,null,null,null,null,null,null,null,null,null,"4258-52-TELLURIUM-132","4258"]
[null,null,null,null,null,null,null,null,null,null,null,null,null,null,null,null,"4260-53-IODINE-126","4260"]
[null,null,null,null,null,null,null,null,null,null,null,null,null,null,null,null,"4262-53-IODINE-129","4262"]
[null,null,null,null,null,null,null,null,null,null,null,null,null,null,null,null,"4264-53-IODINE-131","4264"]
[null,null,null,null,null,null,null,null,null,null,null,null,null,null,null,null,"4266-55-CESIUM-131","4266"]
[null,null,null,null,null,null,null,null,null,null,null,null,null,null,null,null,"4270-55-CESIUM-134","4270"]
[null,null,null,null,null,null,null,null,null,null,null,null,null,null,null,null,"4272-55-CESIUM-135","4272"]
[null,null,null,null,null,null,null,null,null,null,null,null,null,null,null,null,"4274-55-CESIUM-136","4274"]
[null,null,null,null,null,null,null,null,null,null,null,null,null,null,null,null,"4276-55-CESIUM-137","4276"]
[null,null,null,null,null,null,null,null,null,null,null,null,null,null,null,null,"4278-56-BARIUM-140","4278"]
[null,null,null,null,null,null,null,null,null,null,null,null,null,null,null,null,"4280-57-LANTHANUM-140","4280"]
[null,null,null,null,null,null,null,null,null,null,null,null,null,null,null,null,"4282-58-CERIUM-141","4282"]
[null,null,null,null,null,null,null,null,null,null,null,null,null,null,null,null,"4284-58-CERIUM-143","4284"]
[null,null,null,null,null,null,null,null,null,null,null,null,null,null,null,null,"4286-58-CERIUM-144","4286"]
[null,null,null,null,null,null,null,null,null,null,null,null,null,null,null,null,"4288-59-PRASEODYMIUM-143","4288"]
[null,null,null,null,null,null,null,null,null,null,null,null,null,null,null,null,"4290-60-NEODYMIUM-147","4290"]
[null,null,null,null,null,null,null,null,null,null,null,null,null,null,null,null,"4292-61-PROMETHIUM-147","4292"]
[null,null,null,null,null,null,null,null,null,null,null,null,null,null,null,null,"4294-61-PROMETHIUM-148","4294"]
[null,null,null,null,null,null,null,null,null,null,null,null,null,null,null,null,"4296-61-PROMETHIUM-148M","4296"]
[null,null,null,null,null,null,null,null,null,null,null,null,null,null,null,null,"4298-61-PROMETHIUM-149","4298"]
[null,null,null,null,null,null,null,null,null,null,null,null,null,null,null,null,"4300-62-SAMARIUM-151","4300"]
[null,null,null,null,null,null,null,null,null,null,null,null,null,null,null,null,"4302-62-SAMARIUM-153","4302"]
[null,null,null,null,null,null,null,null,null,null,null,null,null,null,null,null,"4304-63-EUROPIUM-152","4304"]
[null,null,null,null,null,null,null,null,null,null,null,null,null,null,null,null,"4306-63-EUROPIUM-154","4306"]
[null,null,null,null,null,null,null,null,null,null,null,null,null,null,null,null,"4308-63-EUROPIUM-155","4308"]
[null,null,null,null,null,null,null,null,null,null,null,null,null,null,null,null,"4310-63-EUROPIUM-156","4310"]
[null,null,null,null,null,null,null,null,null,null,null,null,null,null,null,null,"4312-64-GADOLIUM-153","4312"]
[null,null,null,null,null,null,null,null,null,null,null,null,null,null,null,null,"4314-65-TERBIUM-160","4314"]
[null,null,null,null,null,null,null,null,null,null,null,null,null,null,null,null,"4316-66-DYSPROSIUM-166","4316"]
[null,null,null,null,null,null,null,null,null,null,null,null,null,null,null,null,"4318-67-HOLMIUM-166","4318"]
[null,null,null,null,null,null,null,null,null,null,null,null,null,null,null,null,"4320-67-HOLMIUM-166M","4320"]
[null,null,null,null,null,null,null,null,null,null,null,null,null,null,null,null,"4322-68-ERBIUM-169","4322"]
[null,null,null,null,null,null,null,null,null,null,null,null,null,null,null,null,"4324-69-THULIUM-170","4324"]
[null,null,null,null,null,null,null,null,null,null,null,null,null,null,null,null,"4326-69-THULIUM-171","4326"]
[null,null,null,null,null,null,null,null,null,null,null,null,null,null,null,null,"4328-70-YTTERBIUM-175","4328"]
[null,null,null,null,null,null,null,null,null,null,null,null,null,null,null,null,"4330-71-LUTETIUM-177","4330"]
[null,null,null,null,null,null,null,null,null,null,null,null,null,null,null,null,"4332-72-HAFNIUM-181","4332"]
[null,null,null,null,null,null,null,null,null,null,null,null,null,null,null,null,"4334-73-TANTALUM-182","4334"]
[null,null,null,null,null,null,null,null,null,null,null,null,null,null,null,null,"4336-74-TUNGSTEN-181","4336"]
[null,null,null,null,null,null,null,null,null,null,null,null,null,null,null,null,"4338-74-TUNGSTEN-185","4338"]
[null,null,null,null,null,null,null,null,null,null,null,null,null,null,null,null,"4340-74-TUNGSTEN-187","4340"]
[null,null,null,null,null,null,null,null,null,null,null,null,null,null,null,null,"4342-75-RHENIUM-183","4342"]
[null,null,null,null,null,null,null,null,null,null,null,null,null,null,null,null,"4344-75-RHENIUM-186","4344"]
[null,null,null,null,null,null,null,null,null,null,null,null,null,null,null,null,"4346-75-RHENIUM-187","4346"]
[null,null,null,null,null,null,null,null,null,null,null,null,null,null,null,null,"4348-76-OSMIUM-185","4348"]
[null,null,null,null,null,null,null,null,null,null,null,null,null,null,null,null,"4350-76-OSMIUM-191","4350"]
[null,null,null,null,null,null,null,null,null,null,null,null,null,null,null,null,"4352-76-OSMIUM-193","4352"]
[null,null,null,null,null,null,null,null,null,null,null,null,null,null,null,null,"4354-77-IRIDIUM-190","4354"]
[null,null,null,null,null,null,null,null,null,null,null,null,null,null,null,null,"4356-77-IRIDIUM-192","4356"]
[null,null,null,null,null,null,null,null,null,null,null,null,null,null,null,null,"4358-78-PLATINUM-191","4358"]
[null,null,null,null,null,null,null,null,null,null,null,null,null,null,null,null,"4360-78-PLATINUM-193","4360"]
[null,null,null,null,null,null,null,null,null,null,null,null,null,null,null,null,"4362-78-PLATINUM-193M","4362"]
[null,null,null,null,null,null,null,null,null,null,null,null,null,null,null,null,"4364-79-GOLD-196","4364"]
[null,null,null,null,null,null,null,null,null,null,null,null,null,null,null,null,"4366-79-GOLD-198","4366"]
[null,null,null,null,null,null,null,null,null,null,null,null,null,null,null,null,"4368-81-THALLIUM-204","4368"]
[null,null,null,null,null,null,null,null,null,null,null,null,null,null,null,null,"4370-82-LEAD-203","4370"]
[null,null,null,null,null,null,null,null,null,null,null,null,null,null,null,null,"4372-82-LEAD-210","4372"]
[null,null,null,null,null,null,null,null,null,null,null,null,null,null,null,null,"4374-83-BISMUTH-206","4374"]
[null,null,null,null,null,null,null,null,null,null,null,null,null,null,null,null,"4376-83-BISMUTH-207","4376"]
[null,null,null,null,null,null,null,null,null,null,null,null,null,null,null,null,"4378-83-BISMUTH-210","4378"]
[null,null,null,null,null,null,null,null,null,null,null,null,null,null,null,null,"4380-84-POLONIUM-210","4380"]
[null,null,null,null,null,null,null,null,null,null,null,null,null,null,null,null,"4382-91-PROTACTINIUM-233","4382"]
[null,null,null,null,null,null,null,null,null,null,null,null,null,null,null,null,"4550-CYCLOATE","4550"]
[null,null,null,null,null,null,null,null,null,null,null,null,null,null,null,null,"6440-NAPROPAMIDE","6440"]
[null,null,null,null,null,null,null,null,null,null,null,null,null,null,null,null,"6650-PRONAMIDE","6650"]
[null,null,null,null,null,null,null,null,null,null,null,null,null,null,null,null,"7035-AMETRYN","7035"]
[null,null,null,null,null,null,null,null,null,null,null,null,null,null,null,null,"7060-ATRATON","7060"]
[null,null,null,null,null,null,null,null,null,null,null,null,null,null,null,null,"7230-CARBOXIN","7230"]
[null,null,null,null,null,null,null,null,null,null,null,null,null,null,null,null,"7240-ALPHA-CHLORDANE","7240"]
[null,null,null,null,null,null,null,null,null,null,null,null,null,null,null,null,"7245-GAMMA-CHLORDANE","7245"]
[null,null,null,null,null,null,null,null,null,null,null,null,null,null,null,null,"7260-CHLOROBENZILATE","7260"]
[null,null,null,null,null,null,null,null,null,null,null,null,null,null,null,null,"7265-CHLORONEB","7265"]
[null,null,null,null,null,null,null,null,null,null,null,null,null,null,null,null,"7275-CHLOROPROPHAM","7275"]
[null,null,null,null,null,null,null,null,null,null,null,null,null,null,null,null,"7570-ETHOPROPHOS","7570"]
[null,null,null,null,null,null,null,null,null,null,null,null,null,null,null,null,"7575-ETRIDIAZOLE","7575"]
[null,null,null,null,null,null,null,null,null,null,null,null,null,null,null,null,"7585-FERNAMIPHOS","7585"]
[null,null,null,null,null,null,null,null,null,null,null,null,null,null,null,null,"7590-FENARIMOL","7590"]
[null,null,null,null,null,null,null,null,null,null,null,null,null,null,null,null,"7635-FLURIDONE","7635"]
[null,null,null,null,null,null,null,null,null,null,null,null,null,null,null,null,"7705-HEXAZINONE","7705"]
[null,null,null,null,null,null,null,null,null,null,null,null,null,null,null,null,"7785-MERPHOS","7785"]
[null,null,null,null,null,null,null,null,null,null,null,null,null,null,null,null,"7820-METHYL PARAXON","7820"]
[null,null,null,null,null,null,null,null,null,null,null,null,null,null,null,null,"7850-MEVINPHOS","7850"]
[null,null,null,null,null,null,null,null,null,null,null,null,null,null,null,null,"7930-NORFLURAZON","7930"]
[null,null,null,null,null,null,null,null,null,null,null,null,null,null,null,null,"8040-PROMETRYN","8040"]
[null,null,null,null,null,null,null,null,null,null,null,null,null,null,null,null,"8130-SIMETRYN","8130"]
[null,null,null,null,null,null,null,null,null,null,null,null,null,null,null,null,"8140-STIROFOS","8140"]
[null,null,null,null,null,null,null,null,null,null,null,null,null,null,null,null,"8195-TERBUTRYN","8195"]
[null,null,null,null,null,null,null,null,null,null,null,null,null,null,null,null,"8255-TRIADIMEFON","8255"]
[null,null,null,null,null,null,null,null,null,null,null,null,null,null,null,null,"8285-TRICYCLAZOLE","8285"]
[null,null,null,null,null,null,null,null,null,null,null,null,null,null,null,null,"8320-VERNOLATE","8320"]
[null,null,null,null,null,null,null,null,null,null,null,null,null,null,null,null,"8401-17-BETA-ESTRADIOL","8401"]
[null,null,null,null,null,null,null,null,null,null,null,null,null,null,null,null,"8402-ACETAMINOPHEN","8402"]
[null,null,null,null,null,null,null,null,null,null,null,null,null,null,null,null,"8403-TRIBUFOS","8403"]
[null,null,null,null,null,null,null,null,null,null,null,null,null,null,null,null,"8404-TERTIARY BUTYL ALCOHOL (TBA)","8404"]
[null,null,null,null,null,null,null,null,null,null,null,null,null,null,null,null,"8405-N-NITROSOMORPHOLINE (NMOR)","8405"]
[null,null,null,null,null,null,null,null,null,null,null,null,null,null,null,null,"8406-N-NITROSOMETHYLETHYLAMINE (NMEA)","8406"]
[null,null,null,null,null,null,null,null,null,null,null,null,null,null,null,null,"8407-N-NITROSOPIPERIDINE (NPIP)","8407"]
[null,null,null,null,null,null,null,null,null,null,null,null,null,null,null,null,"8408-N-NITROSODIETHYLAMINE (NDEA)","8408"]
[null,null,null,null,null,null,null,null,null,null,null,null,null,null,null,null,"8409-N-NITROSOPYRROLIDINE (NPYR)","8409"]
[null,null,null,null,null,null,null,null,null,null,null,null,null,null,null,null,"8410-N-NITROSODI-N-BUTYLAMINE (NDBA)","8410"]
[null,null,null,null,null,null,null,null,null,null,null,null,null,null,null,null,"8411-2,4,6-TRINITROTOLUENE (TNT)","8411"]
[null,null,null,null,null,null,null,null,null,null,null,null,null,null,null,null,"8412-CAFFEINE","8412"]
[null,null,null,null,null,null,null,null,null,null,null,null,null,null,null,null,"8413-CYCLOTETRAMETHYLENETETRANITRAMINE (HMX)","8413"]
[null,null,null,null,null,null,null,null,null,null,null,null,null,null,null,null,"8414-GEMFIBROZIL","8414"]
[null,null,null,null,null,null,null,null,null,null,null,null,null,null,null,null,"8610-DICHLOROVOS","8610"]
[null,null,null,null,null,null,null,null,null,null,null,null,null,null,null,null,"8901-TRICLOSAN","8901"]
[null,null,null,null,null,null,null,null,null,null,null,null,null,null,null,null,"8915-2-CHLOROBIPHENYL","8915"]
[null,null,null,null,null,null,null,null,null,null,null,null,null,null,null,null,"8920-2,3-DICHLOROBIPHENYL","8920"]
[null,null,null,null,null,null,null,null,null,null,null,null,null,null,null,null,"8940-2,4,5-TRICHLOROBIPHENYL","8940"]
[null,null,null,null,null,null,null,null,null,null,null,null,null,null,null,null,"8947-2,2,4,4-TETRACHLOROBIPHENYL","8947"]
[null,null,null,null,null,null,null,null,null,null,null,null,null,null,null,null,"8977-2,2,3,4,6-PENTACHLOROBIPHENYL","8977"]
[null,null,null,null,null,null,null,null,null,null,null,null,null,null,null,null,"9042-2,2,4,4,5,6-HEXACHLOROBIPHENYL","9042"]
[null,null,null,null,null,null,null,null,null,null,null,null,null,null,null,null,"9067-2,2,3,3,4,4,6-HEPTACHLOROBIPHENYL","9067"]
[null,null,null,null,null,null,null,null,null,null,null,null,null,null,null,null,"9092-2,2,3,3,4,5,6,6-OCTACHLORPBIPHENYL","9092"]
[null,null,null,null,null,null,null,null,null,null,null,null,null,null,null,null,"9339-CHLORODIBROMOACETIC ACID","9339"]
[null,null,null,null,null,null,null,null,null,null,null,null,null,null,null,null,"9535-BROMODICHLOROACETIC ACID","9535"]
[null,null,null,null,null,null,null,null,null,null,null,null,null,null,null,null,"9537-PEBULATE","9537"]
[null,null,null,null,null,null,null,null,null,null,null,null,null,null,null,null,"9639-TRIBROMOACETIC ACID","9639"]
[null,null,null,null,null,null,null,null,null,null,null,null,null,null,null,null,"9999-BENEZENE 2","9999"]
[null,null,null,null,null,null,null,null,null,null,null,null,null,null,null,null,"CU90-COPPER SUMMARY","CU90"]
[null,null,null,null,null,null,null,null,null,null,null,null,null,null,null,null,"PB90-LEAD SUMMARY","PB90"]

{"sheet":"Excel Val. Crypto","index":7,"n_rows":49,"n_cols":43,"rows_kept":49,"cut":false,"hidden":true,"merged":[]}
["Microbiological Template Validations"]
["Field","Reporting Lab","Sample ID","WS ID","Facility ID","Sampling Point ID","Sampling Location","Collection Date","Collection Time","Sample Type",null,"Sample Volume",null,"Analyte*",null,"Count","Oocysts",null,"Per",null,"Interference",null,"Analysis Start Date","Analysis Start Time","Analysis Completed Date","Analysis Completed Time","Analyzing Lab","Was 100% of filtered volume examined?",null,"Measures",null,"Result","UOM",null,"Parameter",null,"Result","UOM",null,"Method NM","Method CD","Method NM","Method Name"]
["Validation","None","None","None","None","None","None","Less than or equal to Today()","Between 00:00 and 23:59","List of values",null,"List of values",null,"List of values",null,"None","None",null,"List of values",null,"List of values",null,"Greater than or equal to Collection Date",null,"Greater than or equal to Analysis Start Date","Must be between 00:00 and 23:59","Must be between 00:00 and 23:59","List of values",null,"List of values",null,null,"List of values",null,"List of values",null,"None","List of values",null,"10133-10133","10133","10133-10133","10133"]
["Extra (Values)",null,null,null,null,null,null,{"$f":"TODAY()","v":"2026-07-02"},null,"Field ie Routine","RT","100 ml","100 ml","3015 - Cryptosporidium",3015,null,"Colonies","Colonies","1 ml","1 ml","Confluent Growth","CNFG",null,null,null,null,null,"Yes","true","Sample Volume Filtered","SAMPLE VOL FILTER",null,"G","G","0100 - Turbidity","0100",null,"mg/L","mg/L","110.2-VISUAL COMPARISON METHOD","110.2","110.2-VISUAL COMPARISON METHOD","VISUAL COMPARISON METHOD"]
[null,null,null,null,null,null,null,null,null,"Special","SP","200 ml","200 ml",null,null,null,"Tubes","Tubes","5 ml","5 ml","Turbid Culture - no gas","TCNG",null,null,null,null,null,"No","false","Sample Volume Spiked","SAMPLE VOL SPIKE",null,"L","L","0999 - Chlorine","0999",null,"Fahrenheit","F","150.1-ELECTROMETRIC-INDIVIDUAL MEASUREMENT","150.1","150.1-ELECTROMETRIC-INDIVIDUAL MEASUREMENT","ELECTROMETRIC-INDIVIDUAL MEASUREMENT"]
[null,null,null,null,null,null,null,null,null,"Batch Blanks","BB","300 ml","300 ml",null,null,null,"Most Probable Number","Most Probable Number","10 ml","10 ml","Too Numerous To Count","TNTC",null,null,null,null,null,null,null,"Number of Oocysts Spiked","#OOCYSTS SPIKE",null,"mL","mL","1006 - Chloramine","1006",null,"Celsius","C","150.2-ELECTROMETRIC-ONLINE MEASUREMENT","150.2","150.2-ELECTROMETRIC-ONLINE MEASUREMENT","ELECTROMETRIC-ONLINE MEASUREMENT"]
[null,null,null,null,null,null,null,null,null,"Field Blanks","FB","400 ml","400 ml",null,null,null,"Colony Forming Units",null,"100 ml","100 ml",null,null,null,null,null,null,null,null,null,"Number of filters used","#FILTER USE",null,"N","N","1012 - Total Chlorine Residual","1012",null,"NTU","NTU","1622-Cryptosporidium in Water by Filtration/IMS/FA","1622","1622-Cryptosporidium in Water by Filtration/IMS/FA","Cryptosporidium in Water by Filtration/IMS/FA"]
[null,null,null,null,null,null,null,null,null,"Performance Evaluation","PE","500 ml","500 ml",null,null,null,"Cysts, Calculated",null,"400 ml","400 ml",null,null,null,null,null,null,null,null,null,"Packed Pellet Volume","PACK PELLET VOL",null,"SAMP VOL","SAMP VOL","1013 - Free Chlorine Residual","1013",null,"pH","ph","1623-Cryptosporidium and Giardia in Water by Filtration/IMS/FA","1623","1623-Cryptosporidium and Giardia in Water by Filtration/IMS/FA","Cryptosporidium and Giardia in Water by Filtration/IMS/FA"]
[null,null,null,null,null,null,null,null,null,"Shipping Blanks","SB","1 liter","1 liter",null,null,null,"Cysts, Observed",null,"500 ml","500 ml",null,null,null,null,null,null,null,null,null,"Volume of resuspended concentrate","VOL RESSP C",null,"SLIDE","SLIDE","1925 - pH","1925",null,"mL","mL","1623.1-Filtration/Immunomagnetic Separation/Immunofluorescence Assay Microscopy","1623.1","1623.1-Filtration/Immunomagnetic Separation/Immunofluorescence Assay Microscopy","Filtration/Immunomagnetic Separation/Immunofluorescence Assay Microscopy"]
[null,null,null,null,null,null,null,null,null,"Split Blanks","ST",null,null,null,null,null,"Observations",null,null,null,null,null,null,null,null,null,null,null,null,"Volume of resuspended conc. Processed","VOL RESSP CP",null,"Org/100mL","Org/100mL","1996 - Temperature","1996",null,"L","L","180.1-180.1","180.1","180.1-180.1","180.1"]
[null,null,null,null,null,null,null,null,null,"Matrix Spike","MS",null,null,null,null,null,"Oocysts, Calculated",null,null,null,null,null,null,null,null,null,null,null,null,"Calculated number of oocysts per volume","#OOCYSTS CLC",null,"Org/l","Org/l","1905 - Color","1905",null,"CU","CU","2120B-VISUAL COMPARISON METHOD","2120B","2120B-VISUAL COMPARISON METHOD","VISUAL COMPARISON METHOD"]
[null,null,null,null,null,null,null,null,null,null,null,null,null,null,null,null,"Oocysts, Observed",null,null,null,null,null,null,null,null,null,null,null,null,"Number of oocysts","#OOCYSTS",null,null,null,null,null,null,null,null,"2120B-01-2120 B-01","2120B-01","2120B-01-2120 B-01","2120 B-01"]
[null,null,null,null,null,null,null,null,null,null,null,null,null,null,null,null,"Plaque Forming Units",null,null,null,null,null,null,null,null,null,null,null,null,null,null,null,null,null,null,null,null,null,null,"2130B-NEPHELOMETRIC","2130B","2130B-NEPHELOMETRIC","NEPHELOMETRIC"]
[null,null,null,null,null,null,null,null,null,null,null,null,null,null,null,null,null,null,null,null,null,null,null,null,null,null,null,null,null,null,null,null,null,null,null,null,null,null,null,"2130B-01-2130B-01","2130B-01","2130B-01-2130B-01","2130B-01"]
[null,null,null,null,null,null,null,null,null,null,null,null,null,null,null,null,null,null,null,null,null,null,null,null,null,null,null,null,null,null,null,null,null,null,null,null,null,null,null,"2550-THERMOMETRIC","2550","2550-THERMOMETRIC","THERMOMETRIC"]
[null,null,null,null,null,null,null,null,null,null,null,null,null,null,null,null,null,null,null,null,null,null,null,null,null,null,null,null,null,null,null,null,null,null,null,null,null,null,null,"2550-00-2550-00","2550-00","2550-00-2550-00","2550-00"]
[null,null,null,null,null,null,null,null,null,null,null,null,null,null,null,null,null,null,null,null,null,null,null,null,null,null,null,null,null,null,null,null,null,null,null,null,null,null,null,"334.0-On-line Chlorine Analyzer","334.0","334.0-On-line Chlorine Analyzer","On-line Chlorine Analyzer"]
[null,null,null,null,null,null,null,null,null,null,null,null,null,null,null,null,null,null,null,null,null,null,null,null,null,null,null,null,null,null,null,null,null,null,null,null,null,null,null,"334.0.16-On-line Chlorine Analyzer","334.0.16","334.0.16-On-line Chlorine Analyzer","On-line Chlorine Analyzer"]
[null,null,null,null,null,null,null,null,null,null,null,null,null,null,null,null,null,null,null,null,null,null,null,null,null,null,null,null,null,null,null,null,null,null,null,null,null,null,null,"4500-CL D-AMPEROMETRIC TITRATION","4500-CL D","4500-CL D-AMPEROMETRIC TITRATION","AMPEROMETRIC TITRATION"]
[null,null,null,null,null,null,null,null,null,null,null,null,null,null,null,null,null,null,null,null,null,null,null,null,null,null,null,null,null,null,null,null,null,null,null,null,null,null,null,"4500-CL D-00-AMPEROMETRIC TITRATION","4500-CL D-00","4500-CL D-00-AMPEROMETRIC TITRATION","AMPEROMETRIC TITRATION"]
[null,null,null,null,null,null,null,null,null,null,null,null,null,null,null,null,null,null,null,null,null,null,null,null,null,null,null,null,null,null,null,null,null,null,null,null,null,null,null,"4500-CL E-AMPEROMETRIC TITRATION (LOW LEVEL MEASUREMENT)","4500-CL E","4500-CL E-AMPEROMETRIC TITRATION (LOW LEVEL MEASUREMENT)","AMPEROMETRIC TITRATION (LOW LEVEL MEASUREMENT)"]
[null,null,null,null,null,null,null,null,null,null,null,null,null,null,null,null,null,null,null,null,null,null,null,null,null,null,null,null,null,null,null,null,null,null,null,null,null,null,null,"4500-CL E-00-AMPEROMETRIC TITRATION (LOW LEVEL MEASUREMENT)","4500-CL E-00","4500-CL E-00-AMPEROMETRIC TITRATION (LOW LEVEL MEASUREMENT)","AMPEROMETRIC TITRATION (LOW LEVEL MEASUREMENT)"]
[null,null,null,null,null,null,null,null,null,null,null,null,null,null,null,null,null,null,null,null,null,null,null,null,null,null,null,null,null,null,null,null,null,null,null,null,null,null,null,"4500-CL F-DPD FERROUS TITRIMETRIC","4500-CL F","4500-CL F-DPD FERROUS TITRIMETRIC","DPD FERROUS TITRIMETRIC"]
[null,null,null,null,null,null,null,null,null,null,null,null,null,null,null,null,null,null,null,null,null,null,null,null,null,null,null,null,null,null,null,null,null,null,null,null,null,null,null,"4500-CL F-00-DPD FERROUS TITRIMETRIC","4500-CL F-00","4500-CL F-00-DPD FERROUS TITRIMETRIC","DPD FERROUS TITRIMETRIC"]
[null,null,null,null,null,null,null,null,null,null,null,null,null,null,null,null,null,null,null,null,null,null,null,null,null,null,null,null,null,null,null,null,null,null,null,null,null,null,null,"4500-CL G-DPD COLORIMETRIC","4500-CL G","4500-CL G-DPD COLORIMETRIC","DPD COLORIMETRIC"]
[null,null,null,null,null,null,null,null,null,null,null,null,null,null,null,null,null,null,null,null,null,null,null,null,null,null,null,null,null,null,null,null,null,null,null,null,null,null,null,"4500-CL G-00-DPD COLORIMETRIC","4500-CL G-00","4500-CL G-00-DPD COLORIMETRIC","DPD COLORIMETRIC"]
[null,null,null,null,null,null,null,null,null,null,null,null,null,null,null,null,null,null,null,null,null,null,null,null,null,null,null,null,null,null,null,null,null,null,null,null,null,null,null,"4500-CL H-SYRINGALDAZINE (FACTS)","4500-CL H","4500-CL H-SYRINGALDAZINE (FACTS)","SYRINGALDAZINE (FACTS)"]
[null,null,null,null,null,null,null,null,null,null,null,null,null,null,null,null,null,null,null,null,null,null,null,null,null,null,null,null,null,null,null,null,null,null,null,null,null,null,null,"4500-CL H-00-SYRINGALDAZINE (FACTS)","4500-CL H-00","4500-CL H-00-SYRINGALDAZINE (FACTS)","SYRINGALDAZINE (FACTS)"]
[null,null,null,null,null,null,null,null,null,null,null,null,null,null,null,null,null,null,null,null,null,null,null,null,null,null,null,null,null,null,null,null,null,null,null,null,null,null,null,"4500-CL I-IODOMETRIC ELECTRODE","4500-CL I","4500-CL I-IODOMETRIC ELECTRODE","IODOMETRIC ELECTRODE"]
[null,null,null,null,null,null,null,null,null,null,null,null,null,null,null,null,null,null,null,null,null,null,null,null,null,null,null,null,null,null,null,null,null,null,null,null,null,null,null,"4500-CL I-00-IODOMETRIC ELECTRODE","4500-CL I-00","4500-CL I-00-IODOMETRIC ELECTRODE","IODOMETRIC ELECTRODE"]
[null,null,null,null,null,null,null,null,null,null,null,null,null,null,null,null,null,null,null,null,null,null,null,null,null,null,null,null,null,null,null,null,null,null,null,null,null,null,null,"4500H+B-4500H+B","4500H+B","4500H+B-4500H+B","4500H+B"]
[null,null,null,null,null,null,null,null,null,null,null,null,null,null,null,null,null,null,null,null,null,null,null,null,null,null,null,null,null,null,null,null,null,null,null,null,null,null,null,"4500H-B-ELECTROMETRIC-ONLINE MEASUREMENT","4500H-B","4500H-B-ELECTROMETRIC-ONLINE MEASUREMENT","ELECTROMETRIC-ONLINE MEASUREMENT"]
[null,null,null,null,null,null,null,null,null,null,null,null,null,null,null,null,null,null,null,null,null,null,null,null,null,null,null,null,null,null,null,null,null,null,null,null,null,null,null,"4500H-B-00-4500-H-B-00","4500H-B-00","4500H-B-00-4500-H-B-00","4500-H-B-00"]
[null,null,null,null,null,null,null,null,null,null,null,null,null,null,null,null,null,null,null,null,null,null,null,null,null,null,null,null,null,null,null,null,null,null,null,null,null,null,null,"976-EPA 1623","976","976-EPA 1623","EPA 1623"]
[null,null,null,null,null,null,null,null,null,null,null,null,null,null,null,null,null,null,null,null,null,null,null,null,null,null,null,null,null,null,null,null,null,null,null,null,null,null,null,"AMI Turbiwell.15-LED Nephelometry (on-line)","AMI Turbiwell.15","AMI Turbiwell.15-LED Nephelometry (on-line)","LED Nephelometry (on-line)"]
[null,null,null,null,null,null,null,null,null,null,null,null,null,null,null,null,null,null,null,null,null,null,null,null,null,null,null,null,null,null,null,null,null,null,null,null,null,null,null,"ChloroSense-ChloroSense","ChloroSense","ChloroSense-ChloroSense","ChloroSense"]
[null,null,null,null,null,null,null,null,null,null,null,null,null,null,null,null,null,null,null,null,null,null,null,null,null,null,null,null,null,null,null,null,null,null,null,null,null,null,null,"ChloroSense.17-Amperometric Sensor","ChloroSense.17","ChloroSense.17-Amperometric Sensor","Amperometric Sensor"]
[null,null,null,null,null,null,null,null,null,null,null,null,null,null,null,null,null,null,null,null,null,null,null,null,null,null,null,null,null,null,null,null,null,null,null,null,null,null,null,"D1253-03-D1253-03","D1253-03","D1253-03-D1253-03","D1253-03"]
[null,null,null,null,null,null,null,null,null,null,null,null,null,null,null,null,null,null,null,null,null,null,null,null,null,null,null,null,null,null,null,null,null,null,null,null,null,null,null,"D1253-08-D1253-08","D1253-08","D1253-08-D1253-08","D1253-08"]
[null,null,null,null,null,null,null,null,null,null,null,null,null,null,null,null,null,null,null,null,null,null,null,null,null,null,null,null,null,null,null,null,null,null,null,null,null,null,null,"D1253-86-D1253-86","D1253-86","D1253-86-D1253-86","D1253-86"]
[null,null,null,null,null,null,null,null,null,null,null,null,null,null,null,null,null,null,null,null,null,null,null,null,null,null,null,null,null,null,null,null,null,null,null,null,null,null,null,"D1293-12-D1293-12","D1293-12","D1293-12-D1293-12","D1293-12"]
[null,null,null,null,null,null,null,null,null,null,null,null,null,null,null,null,null,null,null,null,null,null,null,null,null,null,null,null,null,null,null,null,null,null,null,null,null,null,null,"D1293-84B-ELECTROMETRIC-ONLINE MEASUREMENT","D1293-84B","D1293-84B-ELECTROMETRIC-ONLINE MEASUREMENT","ELECTROMETRIC-ONLINE MEASUREMENT"]
[null,null,null,null,null,null,null,null,null,null,null,null,null,null,null,null,null,null,null,null,null,null,null,null,null,null,null,null,null,null,null,null,null,null,null,null,null,null,null,"D1293-95-ELECTROMETRIC-ONLINE MEASUREMENT","D1293-95","D1293-95-ELECTROMETRIC-ONLINE MEASUREMENT","ELECTROMETRIC-ONLINE MEASUREMENT"]
[null,null,null,null,null,null,null,null,null,null,null,null,null,null,null,null,null,null,null,null,null,null,null,null,null,null,null,null,null,null,null,null,null,null,null,null,null,null,null,"D1293-99-D1293-99","D1293-99","D1293-99-D1293-99","D1293-99"]
[null,null,null,null,null,null,null,null,null,null,null,null,null,null,null,null,null,null,null,null,null,null,null,null,null,null,null,null,null,null,null,null,null,null,null,null,null,null,null,"HACH 10258 (2016)-360 DEGREE NEPHELOMETRY (LASER)","HACH 10258 (2016)","HACH 10258 (2016)-360 DEGREE NEPHELOMETRY (LASER)","360 DEGREE NEPHELOMETRY (LASER)"]
[null,null,null,null,null,null,null,null,null,null,null,null,null,null,null,null,null,null,null,null,null,null,null,null,null,null,null,null,null,null,null,null,null,null,null,null,null,null,null,"Method 2-Method 2","Method 2","Method 2-Method 2","Method 2"]
[null,null,null,null,null,null,null,null,null,null,null,null,null,null,null,null,null,null,null,null,null,null,null,null,null,null,null,null,null,null,null,null,null,null,null,null,null,null,null,"Mitchell M5271.10-Laser Nephelometry (on-line)","Mitchell M5271.10","Mitchell M5271.10-Laser Nephelometry (on-line)","Laser Nephelometry (on-line)"]
[null,null,null,null,null,null,null,null,null,null,null,null,null,null,null,null,null,null,null,null,null,null,null,null,null,null,null,null,null,null,null,null,null,null,null,null,null,null,null,"Mitchell M5331.11-LED Nephelometry (on-line)","Mitchell M5331.11","Mitchell M5331.11-LED Nephelometry (on-line)","LED Nephelometry (on-line)"]
[null,null,null,null,null,null,null,null,null,null,null,null,null,null,null,null,null,null,null,null,null,null,null,null,null,null,null,null,null,null,null,null,null,null,null,null,null,null,null,"Orion AQ4500.12-LED Nephelometry (portable)","Orion AQ4500.12","Orion AQ4500.12-LED Nephelometry (portable)","LED Nephelometry (portable)"]